Organisation Name,Directorate,Supplier Name,Supplier ID,Expense type,Best Value Accounting Code of Practice,Document/Invoice number,Clearing/Payment date,Invoice Amount
Buckinghamshire Council,Adults and Health,Corporate Document Services Ltd,1000000,Printing & Stationery,Supplies & Services,4100684184,06/03/2024,572
Buckinghamshire Council,"Planning, Growth & Sustainability",COMBINED OFFICE INTERIORS LTD,1000001,Furniture,Supplies & Services,4101087146,08/03/2024,1320
Buckinghamshire Council,"Planning, Growth & Sustainability",COMBINED OFFICE INTERIORS LTD,1000001,Furniture,Supplies & Services,4101087147,08/03/2024,1650
Buckinghamshire Council,Children's Services,LYRECO UK LTD,1000008,Stationery & Office Supplies,Supplies & Services,4800103156,26/03/2024,523.73
Buckinghamshire Council,Adults and Health,LYRECO UK LTD,1000008,Stationery & Office Supplies,Supplies & Services,4800102996,26/03/2024,43.44
Buckinghamshire Council,Adults and Health,LYRECO UK LTD,1000008,Stationery & Office Supplies,Supplies & Services,4800102996,26/03/2024,45
Buckinghamshire Council,Adults and Health,LYRECO UK LTD,1000008,Stationery & Office Supplies,Supplies & Services,4800102996,26/03/2024,40
Buckinghamshire Council,Adults and Health,LYRECO UK LTD,1000008,Stationery & Office Supplies,Supplies & Services,4800102996,26/03/2024,29.3
Buckinghamshire Council,Adults and Health,LYRECO UK LTD,1000008,Stationery & Office Supplies,Supplies & Services,4800102996,26/03/2024,45.2
Buckinghamshire Council,Adults and Health,LYRECO UK LTD,1000008,Stationery & Office Supplies,Supplies & Services,4800102996,26/03/2024,430.4
Buckinghamshire Council,Communities,Arriva The Shires Ltd,1000010,Travel Choice Scheme,Transfer Payments,4101089904,01/03/2024,717.85
Buckinghamshire Council,Communities,Arriva The Shires Ltd,1000010,Subsidised Bus Services - Accessibility,Transfer Payments,4101090030,06/03/2024,37422.86
Buckinghamshire Council,Communities,Arriva The Shires Ltd,1000010,Subsidised Bus Services - Accessibility,Transfer Payments,4101090043,06/03/2024,2595
Buckinghamshire Council,Communities,Arriva The Shires Ltd,1000010,Contracts (Mainstream),Transport,4101092885,22/03/2024,53235.52
Buckinghamshire Council,Communities,Arriva The Shires Ltd,1000010,Travel Choice Scheme,Transfer Payments,4101093126,22/03/2024,668.71
Buckinghamshire Council,Communities,Arriva The Shires Ltd,1000010,National Concessionary Fares Scheme,Third Party Payments,4101091387,15/03/2024,476422.1
Buckinghamshire Council,Adults and Health,RIVERSIDE ECHG,1000014,SP Legacy Care/Counsel - Gross,Third Party Payments,4101092716,20/03/2024,11018
Buckinghamshire Council,Adults and Health,RIVERSIDE ECHG,1000014,SP Legacy Care/Counsel - Gross,Third Party Payments,4101092717,20/03/2024,16876.25
Buckinghamshire Council,Adults and Health,RIVERSIDE ECHG,1000014,SP Legacy Care/Counsel - Gross,Third Party Payments,4101091649,15/03/2024,16876.25
Buckinghamshire Council,Adults and Health,RIVERSIDE ECHG,1000014,SP Legacy Care/Counsel - Gross,Third Party Payments,4101091650,15/03/2024,11018
Buckinghamshire Council,Adults and Health,RIVERSIDE ECHG,1000014,SP Legacy Care/Counsel - Gross,Third Party Payments,4101094146,28/03/2024,16876.25
Buckinghamshire Council,Adults and Health,RIVERSIDE ECHG,1000014,SP Legacy Care/Counsel - Gross,Third Party Payments,4101094147,28/03/2024,11018
Buckinghamshire Council,Adults and Health,RIVERSIDE ECHG,1000014,SP Legacy Care/Counsel - Gross,Third Party Payments,4101094190,28/03/2024,16876.25
Buckinghamshire Council,Adults and Health,RIVERSIDE ECHG,1000014,SP Legacy Care/Counsel - Gross,Third Party Payments,4101094191,28/03/2024,11018
Buckinghamshire Council,Adults and Health,RIVERSIDE ECHG,1000014,SP Legacy Care/Counsel - Gross,Third Party Payments,4101094220,28/03/2024,16876.25
Buckinghamshire Council,Adults and Health,RIVERSIDE ECHG,1000014,SP Legacy Care/Counsel - Gross,Third Party Payments,4101094221,28/03/2024,11018
Buckinghamshire Council,Children's Services,Foster Care Associates Ltd,1000015,External Fostering Payments,Third Party Payments,7003180004,13/03/2024,3956.4
Buckinghamshire Council,Children's Services,Foster Care Associates Ltd,1000015,External Fostering Payments,Third Party Payments,7003180004,13/03/2024,3378.6
Buckinghamshire Council,Children's Services,Foster Care Associates Ltd,1000015,External Fostering Payments,Third Party Payments,7003180004,13/03/2024,3956
Buckinghamshire Council,Children's Services,Foster Care Associates Ltd,1000015,External Fostering Payments,Third Party Payments,7003180004,13/03/2024,3275.72
Buckinghamshire Council,Children's Services,Foster Care Associates Ltd,1000015,External Fostering Payments,Third Party Payments,7003180004,13/03/2024,3511.2
Buckinghamshire Council,Children's Services,Foster Care Associates Ltd,1000015,External Fostering Payments,Third Party Payments,7003180004,13/03/2024,3112.4
Buckinghamshire Council,Children's Services,Foster Care Associates Ltd,1000015,External Fostering Payments,Third Party Payments,7003180004,13/03/2024,3511.2
Buckinghamshire Council,Children's Services,Foster Care Associates Ltd,1000015,External Fostering Payments,Third Party Payments,7003180004,13/03/2024,3511.2
Buckinghamshire Council,Children's Services,FOLKSPUR FLOORING LTD,1000021,General Repairs & Maintenance,Premises,4101094162,28/03/2024,6146
Buckinghamshire Council,Children's Services,FOLKSPUR FLOORING LTD,1000021,General Repairs & Maintenance,Premises,4101094189,28/03/2024,4940
Buckinghamshire Council,"Planning, Growth & Sustainability",TENCER LIMITED,1000023,Urgent Repairs & Maintenance,Premises,7003175683,06/03/2024,733.38
Buckinghamshire Council,"Planning, Growth & Sustainability",TENCER LIMITED,1000023,Urgent Repairs & Maintenance,Premises,7003175686,06/03/2024,734.36
Buckinghamshire Council,"Planning, Growth & Sustainability",TENCER LIMITED,1000023,General Repairs & Maintenance,Premises,7003175689,06/03/2024,584.92
Buckinghamshire Council,"Planning, Growth & Sustainability",TENCER LIMITED,1000023,General Repairs & Maintenance,Premises,7003175715,06/03/2024,1594
Buckinghamshire Council,"Planning, Growth & Sustainability",TENCER LIMITED,1000023,Urgent Repairs & Maintenance,Premises,7003175763,06/03/2024,1457.5
Buckinghamshire Council,"Planning, Growth & Sustainability",TENCER LIMITED,1000023,Urgent Repairs & Maintenance,Premises,7003175767,06/03/2024,532.03
Buckinghamshire Council,"Planning, Growth & Sustainability",TENCER LIMITED,1000023,Urgent Repairs & Maintenance,Premises,7003175783,06/03/2024,577.22
Buckinghamshire Council,"Planning, Growth & Sustainability",TENCER LIMITED,1000023,Urgent Repairs & Maintenance,Premises,7003175796,06/03/2024,2640.7
Buckinghamshire Council,"Planning, Growth & Sustainability",TENCER LIMITED,1000023,Urgent Repairs & Maintenance,Premises,7003175803,06/03/2024,766.49
Buckinghamshire Council,"Planning, Growth & Sustainability",TENCER LIMITED,1000023,General Repairs & Maintenance,Premises,7003175804,06/03/2024,779.34
Buckinghamshire Council,"Planning, Growth & Sustainability",TENCER LIMITED,1000023,Urgent Repairs & Maintenance,Premises,7003175805,06/03/2024,683.09
Buckinghamshire Council,"Planning, Growth & Sustainability",TENCER LIMITED,1000023,Urgent Repairs & Maintenance,Premises,7003175808,06/03/2024,509.57
Buckinghamshire Council,"Planning, Growth & Sustainability",TENCER LIMITED,1000023,Urgent Repairs & Maintenance,Premises,7003175627,01/03/2024,646.5
Buckinghamshire Council,"Planning, Growth & Sustainability",TENCER LIMITED,1000023,Urgent Repairs & Maintenance,Premises,7003175629,01/03/2024,588.69
Buckinghamshire Council,"Planning, Growth & Sustainability",TENCER LIMITED,1000023,Urgent Repairs & Maintenance,Premises,7003175632,01/03/2024,808.27
Buckinghamshire Council,"Planning, Growth & Sustainability",TENCER LIMITED,1000023,Urgent Repairs & Maintenance,Premises,7003175636,01/03/2024,647.6
Buckinghamshire Council,"Planning, Growth & Sustainability",TENCER LIMITED,1000023,Urgent Repairs & Maintenance,Premises,7003175646,01/03/2024,744.09
Buckinghamshire Council,"Planning, Growth & Sustainability",TENCER LIMITED,1000023,Buy Back BCC,Premises,7003175649,01/03/2024,633.19
Buckinghamshire Council,"Planning, Growth & Sustainability",TENCER LIMITED,1000023,Urgent Repairs & Maintenance,Premises,7003175651,01/03/2024,749.99
Buckinghamshire Council,"Planning, Growth & Sustainability",TENCER LIMITED,1000023,Urgent Repairs & Maintenance,Premises,7003175699,01/03/2024,703.25
Buckinghamshire Council,"Planning, Growth & Sustainability",TENCER LIMITED,1000023,Urgent Repairs & Maintenance,Premises,7001537144,08/03/2024,990.1
Buckinghamshire Council,"Planning, Growth & Sustainability",TENCER LIMITED,1000023,General Repairs & Maintenance,Premises,7001537150,08/03/2024,4508.47
Buckinghamshire Council,Children's Services,TENCER LIMITED,1000023,Construction - Building Work,Capital - Expenditure -Controllable,7001537156,08/03/2024,31459.61
Buckinghamshire Council,"Planning, Growth & Sustainability",TENCER LIMITED,1000023,Urgent Repairs & Maintenance,Premises,7001537163,08/03/2024,674.39
Buckinghamshire Council,"Planning, Growth & Sustainability",TENCER LIMITED,1000023,Urgent Repairs & Maintenance,Premises,7001537164,08/03/2024,946.12
Buckinghamshire Council,"Planning, Growth & Sustainability",TENCER LIMITED,1000023,Urgent Repairs & Maintenance,Premises,7001537167,08/03/2024,1055.15
Buckinghamshire Council,"Planning, Growth & Sustainability",TENCER LIMITED,1000023,Urgent Repairs & Maintenance,Premises,7001537168,08/03/2024,1487.2
Buckinghamshire Council,"Planning, Growth & Sustainability",TENCER LIMITED,1000023,Urgent Repairs & Maintenance,Premises,7001537172,08/03/2024,868.23
Buckinghamshire Council,"Planning, Growth & Sustainability",TENCER LIMITED,1000023,Urgent Repairs & Maintenance,Premises,7001537173,08/03/2024,5785.5
Buckinghamshire Council,"Planning, Growth & Sustainability",TENCER LIMITED,1000023,General Repairs & Maintenance,Premises,7001537174,08/03/2024,1425.62
Buckinghamshire Council,"Planning, Growth & Sustainability",TENCER LIMITED,1000023,Urgent Repairs & Maintenance,Premises,7001537175,08/03/2024,587.01
Buckinghamshire Council,"Planning, Growth & Sustainability",TENCER LIMITED,1000023,General Repairs & Maintenance,Premises,7001537177,08/03/2024,940.49
Buckinghamshire Council,"Planning, Growth & Sustainability",TENCER LIMITED,1000023,Buy Back BCC,Premises,7001537178,08/03/2024,722.7
Buckinghamshire Council,"Planning, Growth & Sustainability",TENCER LIMITED,1000023,Urgent Repairs & Maintenance,Premises,7001537179,08/03/2024,582.73
Buckinghamshire Council,"Planning, Growth & Sustainability",TENCER LIMITED,1000023,Urgent Repairs & Maintenance,Premises,7001537181,08/03/2024,640.67
Buckinghamshire Council,"Planning, Growth & Sustainability",TENCER LIMITED,1000023,Urgent Repairs & Maintenance,Premises,7001537182,08/03/2024,5723
Buckinghamshire Council,"Planning, Growth & Sustainability",TENCER LIMITED,1000023,Urgent Repairs & Maintenance,Premises,7001537184,08/03/2024,760.59
Buckinghamshire Council,"Planning, Growth & Sustainability",TENCER LIMITED,1000023,Urgent Repairs & Maintenance,Premises,7001537187,08/03/2024,1526.47
Buckinghamshire Council,"Planning, Growth & Sustainability",TENCER LIMITED,1000023,Urgent Repairs & Maintenance,Premises,7001537188,08/03/2024,1033.66
Buckinghamshire Council,"Planning, Growth & Sustainability",TENCER LIMITED,1000023,Urgent Repairs & Maintenance,Premises,7001537189,08/03/2024,789.58
Buckinghamshire Council,"Planning, Growth & Sustainability",TENCER LIMITED,1000023,General Repairs & Maintenance,Premises,7001537190,08/03/2024,795.06
Buckinghamshire Council,Planning Growth & Sustainability,TENCER LIMITED,1000023,Construction - Building Work,Capital - Expenditure -Controllable,7001537191,08/03/2024,786.76
Buckinghamshire Council,"Planning, Growth & Sustainability",TENCER LIMITED,1000023,Urgent Repairs & Maintenance,Premises,7001537192,08/03/2024,636.93
Buckinghamshire Council,"Planning, Growth & Sustainability",TENCER LIMITED,1000023,Urgent Repairs & Maintenance,Premises,7001537200,08/03/2024,729.08
Buckinghamshire Council,"Planning, Growth & Sustainability",TENCER LIMITED,1000023,Urgent Repairs & Maintenance,Premises,7001537206,08/03/2024,1331.48
Buckinghamshire Council,"Planning, Growth & Sustainability",TENCER LIMITED,1000023,Urgent Repairs & Maintenance,Premises,7001537207,08/03/2024,2637.82
Buckinghamshire Council,"Planning, Growth & Sustainability",TENCER LIMITED,1000023,Urgent Repairs & Maintenance,Premises,7001537208,08/03/2024,2112.55
Buckinghamshire Council,"Planning, Growth & Sustainability",TENCER LIMITED,1000023,Buy Back BCC,Premises,7001537209,08/03/2024,695
Buckinghamshire Council,Planning Growth & Sustainability,TENCER LIMITED,1000023,Construction - Building Work,Capital - Expenditure -Controllable,7001537246,08/03/2024,11387.49
Buckinghamshire Council,"Planning, Growth & Sustainability",TENCER LIMITED,1000023,Urgent Repairs & Maintenance,Premises,7003177887,08/03/2024,779.5
Buckinghamshire Council,"Planning, Growth & Sustainability",TENCER LIMITED,1000023,Urgent Repairs & Maintenance,Premises,7003177919,08/03/2024,724.83
Buckinghamshire Council,"Planning, Growth & Sustainability",TENCER LIMITED,1000023,Urgent Repairs & Maintenance,Premises,7003177920,08/03/2024,1352.95
Buckinghamshire Council,"Planning, Growth & Sustainability",TENCER LIMITED,1000023,Urgent Repairs & Maintenance,Premises,7003177922,08/03/2024,618.99
Buckinghamshire Council,"Planning, Growth & Sustainability",TENCER LIMITED,1000023,Buy Back BCC,Premises,7003177923,08/03/2024,626.33
Buckinghamshire Council,"Planning, Growth & Sustainability",TENCER LIMITED,1000023,Buy Back BCC,Premises,7003177924,08/03/2024,1819.02
Buckinghamshire Council,"Planning, Growth & Sustainability",TENCER LIMITED,1000023,Urgent Repairs & Maintenance,Premises,7003177925,08/03/2024,530.75
Buckinghamshire Council,"Planning, Growth & Sustainability",TENCER LIMITED,1000023,Urgent Repairs & Maintenance,Premises,7003180823,20/03/2024,3072.95
Buckinghamshire Council,"Planning, Growth & Sustainability",TENCER LIMITED,1000023,Service Contracts,Premises,7003180876,20/03/2024,1068.6
Buckinghamshire Council,"Planning, Growth & Sustainability",TENCER LIMITED,1000023,Buy Back BCC,Premises,7003180883,20/03/2024,1036.4
Buckinghamshire Council,"Planning, Growth & Sustainability",TENCER LIMITED,1000023,Urgent Repairs & Maintenance,Premises,7003180899,20/03/2024,1437.07
Buckinghamshire Council,"Planning, Growth & Sustainability",TENCER LIMITED,1000023,Buy Back BCC,Premises,7003180901,20/03/2024,506.25
Buckinghamshire Council,"Planning, Growth & Sustainability",TENCER LIMITED,1000023,Urgent Repairs & Maintenance,Premises,7003180931,20/03/2024,554.5
Buckinghamshire Council,Communities,TENCER LIMITED,1000023,General Repairs & Maintenance,Premises,7003182518,20/03/2024,1794.75
Buckinghamshire Council,"Planning, Growth & Sustainability",TENCER LIMITED,1000023,Urgent Repairs & Maintenance,Premises,7003182521,20/03/2024,3985.31
Buckinghamshire Council,"Planning, Growth & Sustainability",TENCER LIMITED,1000023,Urgent Repairs & Maintenance,Premises,7003185520,20/03/2024,901.9
Buckinghamshire Council,"Planning, Growth & Sustainability",TENCER LIMITED,1000023,Service Contracts,Premises,7003185583,20/03/2024,641.99
Buckinghamshire Council,"Planning, Growth & Sustainability",TENCER LIMITED,1000023,General Repairs & Maintenance,Premises,7003178000,15/03/2024,1591.21
Buckinghamshire Council,"Planning, Growth & Sustainability",TENCER LIMITED,1000023,Urgent Repairs & Maintenance,Premises,7003178010,15/03/2024,2596.6
Buckinghamshire Council,"Planning, Growth & Sustainability",TENCER LIMITED,1000023,General Repairs & Maintenance,Premises,7003178015,15/03/2024,5044.72
Buckinghamshire Council,"Planning, Growth & Sustainability",TENCER LIMITED,1000023,Urgent Repairs & Maintenance,Premises,7003178023,15/03/2024,3143.85
Buckinghamshire Council,"Planning, Growth & Sustainability",TENCER LIMITED,1000023,Urgent Repairs & Maintenance,Premises,7003178035,15/03/2024,643.42
Buckinghamshire Council,"Planning, Growth & Sustainability",TENCER LIMITED,1000023,Urgent Repairs & Maintenance,Premises,7003178057,15/03/2024,712.44
Buckinghamshire Council,"Planning, Growth & Sustainability",TENCER LIMITED,1000023,Urgent Repairs & Maintenance,Premises,7003178058,15/03/2024,1295.23
Buckinghamshire Council,"Planning, Growth & Sustainability",TENCER LIMITED,1000023,Urgent Repairs & Maintenance,Premises,7003178063,15/03/2024,1775.74
Buckinghamshire Council,"Planning, Growth & Sustainability",TENCER LIMITED,1000023,Buy Back BCC,Premises,7003180183,15/03/2024,1462.21
Buckinghamshire Council,"Planning, Growth & Sustainability",TENCER LIMITED,1000023,General Repairs & Maintenance,Premises,7003180187,15/03/2024,1031.78
Buckinghamshire Council,"Planning, Growth & Sustainability",TENCER LIMITED,1000023,General Repairs & Maintenance,Premises,7003182578,22/03/2024,2461.78
Buckinghamshire Council,"Planning, Growth & Sustainability",TENCER LIMITED,1000023,Urgent Repairs & Maintenance,Premises,7003182596,22/03/2024,2432.09
Buckinghamshire Council,"Planning, Growth & Sustainability",TENCER LIMITED,1000023,General Repairs & Maintenance,Premises,7003182609,22/03/2024,915.36
Buckinghamshire Council,"Planning, Growth & Sustainability",TENCER LIMITED,1000023,Urgent Repairs & Maintenance,Premises,7003182623,22/03/2024,835.88
Buckinghamshire Council,"Planning, Growth & Sustainability",TENCER LIMITED,1000023,General Repairs & Maintenance,Premises,7003185475,22/03/2024,8679.44
Buckinghamshire Council,"Planning, Growth & Sustainability",TENCER LIMITED,1000023,Urgent Repairs & Maintenance,Premises,7001537248,13/03/2024,751.77
Buckinghamshire Council,"Planning, Growth & Sustainability",TENCER LIMITED,1000023,General Repairs & Maintenance,Premises,7003177898,13/03/2024,768.91
Buckinghamshire Council,"Planning, Growth & Sustainability",TENCER LIMITED,1000023,Urgent Repairs & Maintenance,Premises,7003177932,13/03/2024,697.59
Buckinghamshire Council,"Planning, Growth & Sustainability",TENCER LIMITED,1000023,Urgent Repairs & Maintenance,Premises,7003177944,13/03/2024,2526.34
Buckinghamshire Council,"Planning, Growth & Sustainability",TENCER LIMITED,1000023,Urgent Repairs & Maintenance,Premises,7003177959,13/03/2024,1210.88
Buckinghamshire Council,"Planning, Growth & Sustainability",TENCER LIMITED,1000023,Urgent Repairs & Maintenance,Premises,7003177962,13/03/2024,867.5
Buckinghamshire Council,"Planning, Growth & Sustainability",TENCER LIMITED,1000023,Urgent Repairs & Maintenance,Premises,7003177990,13/03/2024,995
Buckinghamshire Council,"Planning, Growth & Sustainability",TENCER LIMITED,1000023,General Repairs & Maintenance,Premises,7003177991,13/03/2024,1213.78
Buckinghamshire Council,"Planning, Growth & Sustainability",TENCER LIMITED,1000023,General Repairs & Maintenance,Premises,7003177992,13/03/2024,998.49
Buckinghamshire Council,"Planning, Growth & Sustainability",TENCER LIMITED,1000023,Service Contracts,Premises,7003180233,13/03/2024,721.93
Buckinghamshire Council,"Planning, Growth & Sustainability",TENCER LIMITED,1000023,Service Contracts,Premises,7003180243,13/03/2024,1223.73
Buckinghamshire Council,"Planning, Growth & Sustainability",TENCER LIMITED,1000023,Service Contracts,Premises,7003180301,13/03/2024,645
Buckinghamshire Council,"Planning, Growth & Sustainability",TENCER LIMITED,1000023,Buy Back Contracts,Premises,7003180350,13/03/2024,520
Buckinghamshire Council,"Planning, Growth & Sustainability",TENCER LIMITED,1000023,Buy Back Contracts,Premises,7003180389,13/03/2024,2189.46
Buckinghamshire Council,"Planning, Growth & Sustainability",TENCER LIMITED,1000023,Buy Back Contracts,Premises,7003180419,13/03/2024,680.51
Buckinghamshire Council,"Planning, Growth & Sustainability",TENCER LIMITED,1000023,Buy Back Contracts,Premises,7003180437,13/03/2024,680.51
Buckinghamshire Council,"Planning, Growth & Sustainability",TENCER LIMITED,1000023,Buy Back Contracts,Premises,7003180456,13/03/2024,680.51
Buckinghamshire Council,"Planning, Growth & Sustainability",TENCER LIMITED,1000023,Buy Back Contracts,Premises,7003180477,13/03/2024,680.51
Buckinghamshire Council,"Planning, Growth & Sustainability",TENCER LIMITED,1000023,Buy Back Contracts,Premises,7003180534,13/03/2024,1159.82
Buckinghamshire Council,"Planning, Growth & Sustainability",TENCER LIMITED,1000023,Buy Back Contracts,Premises,7003180605,13/03/2024,641.99
Buckinghamshire Council,"Planning, Growth & Sustainability",TENCER LIMITED,1000023,Urgent Repairs & Maintenance,Premises,7003185522,27/03/2024,1197.29
Buckinghamshire Council,"Planning, Growth & Sustainability",TENCER LIMITED,1000023,Urgent Repairs & Maintenance,Premises,7003185540,27/03/2024,4979.44
Buckinghamshire Council,"Planning, Growth & Sustainability",TENCER LIMITED,1000023,Urgent Repairs & Maintenance,Premises,7003185541,27/03/2024,594.5
Buckinghamshire Council,"Planning, Growth & Sustainability",TENCER LIMITED,1000023,Urgent Repairs & Maintenance,Premises,7003185543,27/03/2024,3186.36
Buckinghamshire Council,"Planning, Growth & Sustainability",TENCER LIMITED,1000023,Urgent Repairs & Maintenance,Premises,7003185640,27/03/2024,923.34
Buckinghamshire Council,"Planning, Growth & Sustainability",TENCER LIMITED,1000023,Urgent Repairs & Maintenance,Premises,7003185648,27/03/2024,509.57
Buckinghamshire Council,"Planning, Growth & Sustainability",TENCER LIMITED,1000023,Urgent Repairs & Maintenance,Premises,7003185674,27/03/2024,830
Buckinghamshire Council,"Planning, Growth & Sustainability",TENCER LIMITED,1000023,Urgent Repairs & Maintenance,Premises,7003185685,27/03/2024,841.5
Buckinghamshire Council,"Planning, Growth & Sustainability",TENCER LIMITED,1000023,Urgent Repairs & Maintenance,Premises,7003185687,27/03/2024,558.5
Buckinghamshire Council,Communities,TENCER LIMITED,1000023,General Repairs & Maintenance,Premises,7003185690,27/03/2024,1164.95
Buckinghamshire Council,"Planning, Growth & Sustainability",TENCER LIMITED,1000023,Urgent Repairs & Maintenance,Premises,7003187901,27/03/2024,645.33
Buckinghamshire Council,"Planning, Growth & Sustainability",TENCER LIMITED,1000023,General Repairs & Maintenance,Premises,7003187909,27/03/2024,1066.85
Buckinghamshire Council,"Planning, Growth & Sustainability",TENCER LIMITED,1000023,Urgent Repairs & Maintenance,Premises,7003187914,27/03/2024,606.3
Buckinghamshire Council,"Planning, Growth & Sustainability",TENCER LIMITED,1000023,Urgent Repairs & Maintenance,Premises,7003187915,27/03/2024,670.25
Buckinghamshire Council,"Planning, Growth & Sustainability",TENCER LIMITED,1000023,General Repairs & Maintenance,Premises,7003187924,27/03/2024,763.22
Buckinghamshire Council,"Planning, Growth & Sustainability",TENCER LIMITED,1000023,General Repairs & Maintenance,Premises,7003187938,27/03/2024,1367.28
Buckinghamshire Council,"Planning, Growth & Sustainability",TENCER LIMITED,1000023,Urgent Repairs & Maintenance,Premises,7003187940,27/03/2024,1726.98
Buckinghamshire Council,"Planning, Growth & Sustainability",TENCER LIMITED,1000023,Urgent Repairs & Maintenance,Premises,7003188580,27/03/2024,961.51
Buckinghamshire Council,"Planning, Growth & Sustainability",TENCER LIMITED,1000023,Urgent Repairs & Maintenance,Premises,7003188591,27/03/2024,1273.21
Buckinghamshire Council,"Planning, Growth & Sustainability",TENCER LIMITED,1000023,Urgent Repairs & Maintenance,Premises,7003188592,27/03/2024,557.82
Buckinghamshire Council,"Planning, Growth & Sustainability",TENCER LIMITED,1000023,Urgent Repairs & Maintenance,Premises,7003188593,27/03/2024,582.65
Buckinghamshire Council,Adults and Health,MANDEVILLE CARE SERVICES LTD,1000027,Nurs-Perm EMI Other - Exp,Third Party Payments,7003179121,13/03/2024,5600
Buckinghamshire Council,Adults and Health,MANDEVILLE CARE SERVICES LTD,1000027,Nursing care-permanent -other,Third Party Payments,7003179121,13/03/2024,4922
Buckinghamshire Council,Adults and Health,MANDEVILLE CARE SERVICES LTD,1000027,Nursing care-permanent -other,Third Party Payments,7003179121,13/03/2024,4922
Buckinghamshire Council,Adults and Health,MANDEVILLE CARE SERVICES LTD,1000027,Nursing care-permanent -other,Third Party Payments,7003179121,13/03/2024,4922
Buckinghamshire Council,Adults and Health,MANDEVILLE CARE SERVICES LTD,1000027,Nursing care-permanent -other,Controllable Customer & Client Receipts,7003179121,13/03/2024,-227.36
Buckinghamshire Council,Adults and Health,MANDEVILLE CARE SERVICES LTD,1000027,Nursing care-permanent -other,Controllable Customer & Client Receipts,7003179121,13/03/2024,-575.2
Buckinghamshire Council,Adults and Health,MANDEVILLE CARE SERVICES LTD,1000027,Nursing care-permanent -other,Controllable Customer & Client Receipts,7003179121,13/03/2024,-812.2
Buckinghamshire Council,Adults and Health,MANDEVILLE CARE SERVICES LTD,1000027,Nursing care-permanent -other,Controllable Customer & Client Receipts,7003179121,13/03/2024,-1463.36
Buckinghamshire Council,Children's Services,POTCLAYS LTD,1000082,Educational Equipment,Supplies & Services,4101090459,13/03/2024,694.65
Buckinghamshire Council,Deputy Chief Executive,REDACTED,1000114,Legal Fees,Supplies & Services,4101093162,22/03/2024,529.1
Buckinghamshire Council,Deputy Chief Executive,REDACTED,1000114,Legal Fees,Supplies & Services,4101091958,15/03/2024,21509.6
Buckinghamshire Council,Deputy Chief Executive,REDACTED,1000114,Legal Fees,Supplies & Services,4101091975,15/03/2024,3901
Buckinghamshire Council,Deputy Chief Executive,REDACTED,1000114,Legal Fees,Supplies & Services,4101090826,13/03/2024,4987.5
Buckinghamshire Council,Deputy Chief Executive,REDACTED,1000114,Legal Fees,Supplies & Services,4101093327,27/03/2024,1169.2
Buckinghamshire Council,Deputy Chief Executive,REDACTED,1000114,Legal Fees,Supplies & Services,4101093519,27/03/2024,1099
Buckinghamshire Council,Planning Growth & Sustainability,REDACTED,1000114,Highways Payments to Main Contractor,Capital - Expenditure -Controllable,4101093603,27/03/2024,4832.7
Buckinghamshire Council,Planning Growth & Sustainability,REDACTED,1000114,Highways Payments to Main Contractor,Capital - Expenditure -Controllable,4101093642,27/03/2024,1313.4
Buckinghamshire Council,Planning Growth & Sustainability,REDACTED,1000114,Highways Payments to Main Contractor,Capital - Expenditure -Controllable,4101093853,27/03/2024,627.5
Buckinghamshire Council,Planning Growth & Sustainability,REDACTED,1000114,Highways Payments to Main Contractor,Capital - Expenditure -Controllable,4101093888,27/03/2024,1313.4
Buckinghamshire Council,Deputy Chief Executive,REDACTED,1000114,Legal Fees,Supplies & Services,4101090336,08/03/2024,2991
Buckinghamshire Council,Deputy Chief Executive,REDACTED,1000114,Legal Fees,Supplies & Services,4101092129,20/03/2024,3000
Buckinghamshire Council,Deputy Chief Executive,REDACTED,1000114,Legal Fees,Supplies & Services,4101092208,20/03/2024,1580.8
Buckinghamshire Council,Deputy Chief Executive,REDACTED,1000114,Legal Fees,Supplies & Services,4101092208,20/03/2024,27
Buckinghamshire Council,Deputy Chief Executive,REDACTED,1000114,Legal Fees,Supplies & Services,4101092558,20/03/2024,1254
Buckinghamshire Council,Children's Services,ASSOCIATION OF ACCOUNTING TECHNICIA,1000117,Reg & Exam Fees for External Courses,Supplies & Services,4101088303,06/03/2024,677
Buckinghamshire Council,Children's Services,Fosterplus Limited,1000125,External Fostering Payments,Third Party Payments,7003180005,13/03/2024,6692.6
Buckinghamshire Council,Resources,ESRI UK LTD,1000129,Software Support,Supplies & Services,4100684230,27/03/2024,13290.5
Buckinghamshire Council,Communities,ESRI UK LTD,1000129,Miscellaneous (Other)  Expenses,Supplies & Services,4100684630,27/03/2024,7890
Buckinghamshire Council,Children's Services,A W R PICKERSGILL LIMITED,1000139,General Repairs & Maintenance,Premises,4101090815,13/03/2024,1687
Buckinghamshire Council,Children's Services,A W R PICKERSGILL LIMITED,1000139,General Repairs & Maintenance,Premises,4100684709,08/03/2024,3274
Buckinghamshire Council,Children's Services,A W R PICKERSGILL LIMITED,1000139,General Repairs & Maintenance,Premises,4100684710,08/03/2024,4047
Buckinghamshire Council,Adults and Health,ABBEYFIELD BEACONSFIELD SOCIETY,1000144,Res care-permanent - other,Third Party Payments,7003179122,13/03/2024,1209.52
Buckinghamshire Council,Adults and Health,ABBEYFIELD BEACONSFIELD SOCIETY,1000144,Res care-permanent - other,Third Party Payments,7003179122,13/03/2024,3262.2
Buckinghamshire Council,Adults and Health,ABBEYFIELD BEACONSFIELD SOCIETY,1000144,Res care-permanent - other,Controllable Customer & Client Receipts,7003179122,13/03/2024,-2374.64
Buckinghamshire Council,Adults and Health,ABBEYFIELD BEACONSFIELD SOCIETY,1000144,Res care-permanent - other,Controllable Customer & Client Receipts,7003179122,13/03/2024,-1209.52
Buckinghamshire Council,Adults and Health,BURNHAM LODGE CARE LTD,1000159,Res care-permanent - other,Third Party Payments,7003179123,13/03/2024,5600
Buckinghamshire Council,Adults and Health,BURNHAM LODGE CARE LTD,1000159,Nursing care-permanent -other,Third Party Payments,7003179123,13/03/2024,5921.16
Buckinghamshire Council,Adults and Health,BURNHAM LODGE CARE LTD,1000159,Nurs-Perm EMI Other - Exp,Third Party Payments,7003179123,13/03/2024,5290.08
Buckinghamshire Council,Adults and Health,BURNHAM LODGE CARE LTD,1000159,Nursing care-permanent -other,Third Party Payments,7003179123,13/03/2024,5395.88
Buckinghamshire Council,Adults and Health,BURNHAM LODGE CARE LTD,1000159,Nursing care-permanent -other,Third Party Payments,7003179123,13/03/2024,5395.88
Buckinghamshire Council,Adults and Health,BURNHAM LODGE CARE LTD,1000159,Nursing care-permanent -other,Third Party Payments,7003179123,13/03/2024,4496.56
Buckinghamshire Council,Adults and Health,BURNHAM LODGE CARE LTD,1000159,Nursing care-permanent -other,Third Party Payments,7003179123,13/03/2024,5564
Buckinghamshire Council,Adults and Health,BURNHAM LODGE CARE LTD,1000159,Res-Perm EMI-Other - Exp,Third Party Payments,7003179123,13/03/2024,4946.24
Buckinghamshire Council,Adults and Health,BURNHAM LODGE CARE LTD,1000159,Res-Perm EMI-Other - Exp,Third Party Payments,7003179123,13/03/2024,4800
Buckinghamshire Council,Adults and Health,BURNHAM LODGE CARE LTD,1000159,Res care-permanent - other,Third Party Payments,7003179123,13/03/2024,3312.68
Buckinghamshire Council,Adults and Health,BURNHAM LODGE CARE LTD,1000159,Res care-permanent - other,Third Party Payments,7003179123,13/03/2024,1087.32
Buckinghamshire Council,Adults and Health,BURNHAM LODGE CARE LTD,1000159,Nursing care-permanent -other,Third Party Payments,7003179123,13/03/2024,5900
Buckinghamshire Council,Adults and Health,BURNHAM LODGE CARE LTD,1000159,Nursing care-permanent -other,Third Party Payments,7003179123,13/03/2024,-3678.64
Buckinghamshire Council,Adults and Health,BURNHAM LODGE CARE LTD,1000159,Res care-permanent - other,Controllable Customer & Client Receipts,7003179123,13/03/2024,-961.08
Buckinghamshire Council,Adults and Health,BURNHAM LODGE CARE LTD,1000159,Nursing care-permanent -other,Controllable Customer & Client Receipts,7003179123,13/03/2024,-27
Buckinghamshire Council,Adults and Health,BURNHAM LODGE CARE LTD,1000159,Res care-permanent - other,Controllable Customer & Client Receipts,7003179123,13/03/2024,-1549.4
Buckinghamshire Council,Adults and Health,BURNHAM LODGE CARE LTD,1000159,Res care-permanent - other,Controllable Customer & Client Receipts,7003179123,13/03/2024,-617.4
Buckinghamshire Council,Adults and Health,BURNHAM LODGE CARE LTD,1000159,Res care-permanent - other,Controllable Customer & Client Receipts,7003179123,13/03/2024,-1882.8
Buckinghamshire Council,Adults and Health,BURNHAM LODGE CARE LTD,1000159,Nursing care-permanent -other,Controllable Customer & Client Receipts,7003179123,13/03/2024,-712.32
Buckinghamshire Council,Adults and Health,BURNHAM LODGE CARE LTD,1000159,Nursing care-permanent -other,Controllable Customer & Client Receipts,7003179123,13/03/2024,-1200
Buckinghamshire Council,Adults and Health,BURNHAM LODGE CARE LTD,1000159,Nursing care-permanent -other,Controllable Customer & Client Receipts,7003179123,13/03/2024,-617.4
Buckinghamshire Council,Adults and Health,BURNHAM LODGE CARE LTD,1000159,Nursing care-permanent -other,Controllable Customer & Client Receipts,7003179123,13/03/2024,388.16
Buckinghamshire Council,Adults and Health,BURNHAM LODGE CARE LTD,1000159,Nursing care-permanent -other,Controllable Customer & Client Receipts,7003179123,13/03/2024,37.64
Buckinghamshire Council,Adults and Health,BURNHAM LODGE CARE LTD,1000159,Res care-permanent - other,Controllable Customer & Client Receipts,7003179123,13/03/2024,-1087.32
Buckinghamshire Council,Adults and Health,Wesgate Healthcare Ltd,1000160,Nursing care-permanent -other,Third Party Payments,7003179124,13/03/2024,-297.82
Buckinghamshire Council,Adults and Health,Wesgate Healthcare Ltd,1000160,Nursing care-permanent -other,Third Party Payments,7003179124,13/03/2024,-1465.87
Buckinghamshire Council,Adults and Health,Wesgate Healthcare Ltd,1000160,Nursing care-permanent -other,Third Party Payments,7003179124,13/03/2024,-1784.54
Buckinghamshire Council,Adults and Health,Wesgate Healthcare Ltd,1000160,Nursing care-permanent -other,Third Party Payments,7003179124,13/03/2024,-1784.54
Buckinghamshire Council,Adults and Health,Wesgate Healthcare Ltd,1000160,Nursing care-permanent -other,Third Party Payments,7003179124,13/03/2024,-1784.54
Buckinghamshire Council,Adults and Health,Wesgate Healthcare Ltd,1000160,Nursing care-permanent -other,Third Party Payments,7003179124,13/03/2024,-1784.54
Buckinghamshire Council,Adults and Health,Wesgate Healthcare Ltd,1000160,Nursing care-permanent -other,Third Party Payments,7003179124,13/03/2024,-1784.54
Buckinghamshire Council,Adults and Health,Wesgate Healthcare Ltd,1000160,Nursing care-permanent -other,Third Party Payments,7003179124,13/03/2024,-1784.54
Buckinghamshire Council,Adults and Health,Wesgate Healthcare Ltd,1000160,Nursing care-permanent -other,Third Party Payments,7003179124,13/03/2024,-1784.54
Buckinghamshire Council,Adults and Health,Wesgate Healthcare Ltd,1000160,Nursing care-permanent -other,Third Party Payments,7003179124,13/03/2024,-1784.54
Buckinghamshire Council,Adults and Health,Wesgate Healthcare Ltd,1000160,Nursing care-permanent -other,Third Party Payments,7003179124,13/03/2024,-1784.54
Buckinghamshire Council,Adults and Health,Wesgate Healthcare Ltd,1000160,Nursing care-permanent -other,Third Party Payments,7003179124,13/03/2024,-1784.54
Buckinghamshire Council,Adults and Health,Wesgate Healthcare Ltd,1000160,Nursing care-permanent -other,Third Party Payments,7003179124,13/03/2024,-1429.53
Buckinghamshire Council,Adults and Health,Wesgate Healthcare Ltd,1000160,Nurs-Perm EMI Other - Exp,Third Party Payments,7003179124,13/03/2024,4563.6
Buckinghamshire Council,Adults and Health,Wesgate Healthcare Ltd,1000160,Nursing care-permanent -other,Third Party Payments,7003179124,13/03/2024,6420
Buckinghamshire Council,Adults and Health,Wesgate Healthcare Ltd,1000160,Nursing care-permanent -other,Third Party Payments,7003179124,13/03/2024,5140.52
Buckinghamshire Council,Adults and Health,Wesgate Healthcare Ltd,1000160,Nurs-Perm EMI Other - Exp,Third Party Payments,7003179124,13/03/2024,4778.4
Buckinghamshire Council,Adults and Health,Wesgate Healthcare Ltd,1000160,Nurs-Perm EMI Other - Exp,Third Party Payments,7003179124,13/03/2024,5563.24
Buckinghamshire Council,Adults and Health,Wesgate Healthcare Ltd,1000160,Nursing care-permanent -other,Third Party Payments,7003179124,13/03/2024,4792.72
Buckinghamshire Council,Adults and Health,Wesgate Healthcare Ltd,1000160,Res-Perm EMI-Other - Exp,Third Party Payments,7003179124,13/03/2024,5900
Buckinghamshire Council,Adults and Health,Wesgate Healthcare Ltd,1000160,Nurs-Perm EMI Other - Exp,Third Party Payments,7003179124,13/03/2024,5120.84
Buckinghamshire Council,Adults and Health,Wesgate Healthcare Ltd,1000160,Nurs-Perm EMI Other - Exp,Third Party Payments,7003179124,13/03/2024,3673.56
Buckinghamshire Council,Adults and Health,Wesgate Healthcare Ltd,1000160,Nurs-Perm EMI Other - Exp,Third Party Payments,7003179124,13/03/2024,5600
Buckinghamshire Council,Adults and Health,Wesgate Healthcare Ltd,1000160,Nurs-Perm EMI Other - Exp,Third Party Payments,7003179124,13/03/2024,5600
Buckinghamshire Council,Adults and Health,Wesgate Healthcare Ltd,1000160,Nursing care-permanent -other,Third Party Payments,7003179124,13/03/2024,521.16
Buckinghamshire Council,Adults and Health,Wesgate Healthcare Ltd,1000160,Nurs-Perm EMI Other - Exp,Third Party Payments,7003179124,13/03/2024,-2078.25
Buckinghamshire Council,Adults and Health,Wesgate Healthcare Ltd,1000160,Nursing care-permanent -other,Third Party Payments,7003179124,13/03/2024,-21.26
Buckinghamshire Council,Adults and Health,Wesgate Healthcare Ltd,1000160,Res-Perm EMI-Other - Exp,Third Party Payments,7003179124,13/03/2024,1323.74
Buckinghamshire Council,Adults and Health,Wesgate Healthcare Ltd,1000160,Res care-permanent - other,Third Party Payments,7003179124,13/03/2024,1390.54
Buckinghamshire Council,Adults and Health,Wesgate Healthcare Ltd,1000160,Res-Perm EMI-Other - Exp,Third Party Payments,7003179124,13/03/2024,3706.48
Buckinghamshire Council,Adults and Health,Wesgate Healthcare Ltd,1000160,Res care-permanent - other,Third Party Payments,7003179124,13/03/2024,3893.52
Buckinghamshire Council,Adults and Health,Wesgate Healthcare Ltd,1000160,Nursing care-permanent -other,Controllable Customer & Client Receipts,7003179124,13/03/2024,-405
Buckinghamshire Council,Adults and Health,Wesgate Healthcare Ltd,1000160,Nursing care-permanent -other,Controllable Customer & Client Receipts,7003179124,13/03/2024,-15.32
Buckinghamshire Council,Adults and Health,Wesgate Healthcare Ltd,1000160,Res care-permanent - other,Controllable Customer & Client Receipts,7003179124,13/03/2024,-2248.76
Buckinghamshire Council,Adults and Health,Wesgate Healthcare Ltd,1000160,Nursing care-permanent -other,Controllable Customer & Client Receipts,7003179124,13/03/2024,-1074.76
Buckinghamshire Council,Adults and Health,Wesgate Healthcare Ltd,1000160,Nursing care-permanent -other,Controllable Customer & Client Receipts,7003179124,13/03/2024,-673.52
Buckinghamshire Council,Adults and Health,Wesgate Healthcare Ltd,1000160,Nursing care-permanent -other,Controllable Customer & Client Receipts,7003179124,13/03/2024,-788.36
Buckinghamshire Council,Adults and Health,Wesgate Healthcare Ltd,1000160,Nursing care-permanent -other,Controllable Customer & Client Receipts,7003179124,13/03/2024,-970.4
Buckinghamshire Council,Adults and Health,Wesgate Healthcare Ltd,1000160,Nursing care-permanent -other,Controllable Customer & Client Receipts,7003179124,13/03/2024,-1693.52
Buckinghamshire Council,Adults and Health,Wesgate Healthcare Ltd,1000160,Nursing care-permanent -other,Controllable Customer & Client Receipts,7003179124,13/03/2024,485.68
Buckinghamshire Council,Adults and Health,Wesgate Healthcare Ltd,1000160,Res care-permanent - other,Controllable Customer & Client Receipts,7003179124,13/03/2024,-91.12
Buckinghamshire Council,Adults and Health,Wesgate Healthcare Ltd,1000160,Res care-permanent - other,Controllable Customer & Client Receipts,7003179124,13/03/2024,-300.73
Buckinghamshire Council,Adults and Health,Wesgate Healthcare Ltd,1000160,Nursing care-permanent -other,Controllable Customer & Client Receipts,7003179124,13/03/2024,-521.16
Buckinghamshire Council,Adults and Health,Wesgate Healthcare Ltd,1000160,Nursing care-permanent -other,Controllable Customer & Client Receipts,7003179124,13/03/2024,21.26
Buckinghamshire Council,Adults and Health,Wesgate Healthcare Ltd,1000160,Res care-permanent - other,Controllable Customer & Client Receipts,7003179124,13/03/2024,-1390.54
Buckinghamshire Council,Adults and Health,Wesgate Healthcare Ltd,1000160,Res care-permanent - other,Controllable Customer & Client Receipts,7003179124,13/03/2024,-3893.52
Buckinghamshire Council,Adults and Health,CHALFONT LODGE NURSING HOME,1000164,Nurs-Perm EMI Other - Exp,Third Party Payments,7003179125,13/03/2024,5778
Buckinghamshire Council,Adults and Health,CHALFONT LODGE NURSING HOME,1000164,Nursing care-permanent -other,Third Party Payments,7003179125,13/03/2024,5951.36
Buckinghamshire Council,Adults and Health,CHALFONT LODGE NURSING HOME,1000164,Nurs-Perm EMI Other - Exp,Third Party Payments,7003179125,13/03/2024,5720.76
Buckinghamshire Council,Adults and Health,CHALFONT LODGE NURSING HOME,1000164,Res-Perm EMI-Other - Exp,Third Party Payments,7003179125,13/03/2024,6206
Buckinghamshire Council,Adults and Health,CHALFONT LODGE NURSING HOME,1000164,Nurs-Perm EMI Other - Exp,Third Party Payments,7003179125,13/03/2024,6879.76
Buckinghamshire Council,Adults and Health,CHALFONT LODGE NURSING HOME,1000164,Nursing care-permanent -other,Third Party Payments,7003179125,13/03/2024,6047.68
Buckinghamshire Council,Adults and Health,CHALFONT LODGE NURSING HOME,1000164,Nursing care-permanent -other,Third Party Payments,7003179125,13/03/2024,7333.84
Buckinghamshire Council,Adults and Health,CHALFONT LODGE NURSING HOME,1000164,Nursing care-permanent -other,Third Party Payments,7003179125,13/03/2024,5721.16
Buckinghamshire Council,Adults and Health,CHALFONT LODGE NURSING HOME,1000164,Nurs-Perm EMI Other - Exp,Third Party Payments,7003179125,13/03/2024,5527.2
Buckinghamshire Council,Adults and Health,CHALFONT LODGE NURSING HOME,1000164,Nurs-Perm EMI Other - Exp,Third Party Payments,7003179125,13/03/2024,5908
Buckinghamshire Council,Adults and Health,CHALFONT LODGE NURSING HOME,1000164,Nurs-Perm EMI Other - Exp,Third Party Payments,7003179125,13/03/2024,4800
Buckinghamshire Council,Adults and Health,CHALFONT LODGE NURSING HOME,1000164,Nurs-Perm EMI Other - Exp,Third Party Payments,7003179125,13/03/2024,5760
Buckinghamshire Council,Adults and Health,CHALFONT LODGE NURSING HOME,1000164,Nursing care-permanent -other,Third Party Payments,7003179125,13/03/2024,5749.16
Buckinghamshire Council,Adults and Health,CHALFONT LODGE NURSING HOME,1000164,Nursing care-permanent -other,Third Party Payments,7003179125,13/03/2024,1196
Buckinghamshire Council,Adults and Health,CHALFONT LODGE NURSING HOME,1000164,Nursing care-permanent -other,Third Party Payments,7003179125,13/03/2024,3284.12
Buckinghamshire Council,Adults and Health,CHALFONT LODGE NURSING HOME,1000164,Nursing care-permanent -other,Third Party Payments,7003179125,13/03/2024,2467.88
Buckinghamshire Council,Adults and Health,CHALFONT LODGE NURSING HOME,1000164,Nursing care-permanent -other,Third Party Payments,7003179125,13/03/2024,5000
Buckinghamshire Council,Adults and Health,CHALFONT LODGE NURSING HOME,1000164,Res-Perm EMI-Other - Exp,Third Party Payments,7003179125,13/03/2024,4496.56
Buckinghamshire Council,Adults and Health,CHALFONT LODGE NURSING HOME,1000164,Res-Perm EMI-Other - Exp,Third Party Payments,7003179125,13/03/2024,5800
Buckinghamshire Council,Adults and Health,CHALFONT LODGE NURSING HOME,1000164,Res-Perm EMI-Other - Exp,Third Party Payments,7003179125,13/03/2024,6000
Buckinghamshire Council,Adults and Health,CHALFONT LODGE NURSING HOME,1000164,Res-Perm EMI-Other - Exp,Third Party Payments,7003179125,13/03/2024,5600
Buckinghamshire Council,Adults and Health,CHALFONT LODGE NURSING HOME,1000164,Res care-permanent - other,Third Party Payments,7003179125,13/03/2024,6800
Buckinghamshire Council,Adults and Health,CHALFONT LODGE NURSING HOME,1000164,Nursing care-permanent -other,Third Party Payments,7003179125,13/03/2024,5364
Buckinghamshire Council,Adults and Health,CHALFONT LODGE NURSING HOME,1000164,Res care-permanent - other,Third Party Payments,7003179125,13/03/2024,5778
Buckinghamshire Council,Adults and Health,CHALFONT LODGE NURSING HOME,1000164,Nurs-Perm EMI Other - Exp,Third Party Payments,7003179125,13/03/2024,5521.16
Buckinghamshire Council,Adults and Health,CHALFONT LODGE NURSING HOME,1000164,Nursing care-permanent -other,Third Party Payments,7003179125,13/03/2024,6191.8
Buckinghamshire Council,Adults and Health,CHALFONT LODGE NURSING HOME,1000164,Nursing care-permanent -other,Third Party Payments,7003179125,13/03/2024,-2109.07
Buckinghamshire Council,Adults and Health,CHALFONT LODGE NURSING HOME,1000164,Nursing care-permanent -other,Third Party Payments,7003179125,13/03/2024,1054.53
Buckinghamshire Council,Adults and Health,CHALFONT LODGE NURSING HOME,1000164,Nursing care-permanent -other,Third Party Payments,7003179125,13/03/2024,-4921.16
Buckinghamshire Council,Adults and Health,CHALFONT LODGE NURSING HOME,1000164,Nursing care-permanent -other,Third Party Payments,7003179125,13/03/2024,4921.16
Buckinghamshire Council,Adults and Health,CHALFONT LODGE NURSING HOME,1000164,Nursing care-permanent -other,Third Party Payments,7003179125,13/03/2024,-4921.16
Buckinghamshire Council,Adults and Health,CHALFONT LODGE NURSING HOME,1000164,Nursing care-permanent -other,Third Party Payments,7003179125,13/03/2024,4921.16
Buckinghamshire Council,Adults and Health,CHALFONT LODGE NURSING HOME,1000164,Nursing care-permanent -other,Third Party Payments,7003179125,13/03/2024,-4921.16
Buckinghamshire Council,Adults and Health,CHALFONT LODGE NURSING HOME,1000164,Nursing care-permanent -other,Third Party Payments,7003179125,13/03/2024,4921.16
Buckinghamshire Council,Adults and Health,CHALFONT LODGE NURSING HOME,1000164,Nursing care-permanent -other,Third Party Payments,7003179125,13/03/2024,4921.16
Buckinghamshire Council,Adults and Health,CHALFONT LODGE NURSING HOME,1000164,Nursing care-permanent -other,Controllable Customer & Client Receipts,7003179125,13/03/2024,-1301.4
Buckinghamshire Council,Adults and Health,CHALFONT LODGE NURSING HOME,1000164,Nursing care-permanent -other,Controllable Customer & Client Receipts,7003179125,13/03/2024,-1257.24
Buckinghamshire Council,Adults and Health,CHALFONT LODGE NURSING HOME,1000164,Res care-permanent - other,Controllable Customer & Client Receipts,7003179125,13/03/2024,-980.24
Buckinghamshire Council,Adults and Health,CHALFONT LODGE NURSING HOME,1000164,Nursing care-permanent -other,Controllable Customer & Client Receipts,7003179125,13/03/2024,-702.4
Buckinghamshire Council,Adults and Health,CHALFONT LODGE NURSING HOME,1000164,Nursing care-permanent -other,Controllable Customer & Client Receipts,7003179125,13/03/2024,-549
Buckinghamshire Council,Adults and Health,CHALFONT LODGE NURSING HOME,1000164,Nursing care-permanent -other,Controllable Customer & Client Receipts,7003179125,13/03/2024,-405
Buckinghamshire Council,Adults and Health,CHALFONT LODGE NURSING HOME,1000164,Res care-permanent - other,Controllable Customer & Client Receipts,7003179125,13/03/2024,-417.72
Buckinghamshire Council,Adults and Health,CHALFONT LODGE NURSING HOME,1000164,Res care-permanent - other,Controllable Customer & Client Receipts,7003179125,13/03/2024,-766.72
Buckinghamshire Council,Adults and Health,CHALFONT LODGE NURSING HOME,1000164,Res care-permanent - other,Controllable Customer & Client Receipts,7003179125,13/03/2024,-1195.2
Buckinghamshire Council,Adults and Health,CHALFONT LODGE NURSING HOME,1000164,Res care-permanent - other,Controllable Customer & Client Receipts,7003179125,13/03/2024,-691.2
Buckinghamshire Council,Adults and Health,CHALFONT LODGE NURSING HOME,1000164,Nursing care-permanent -other,Controllable Customer & Client Receipts,7003179125,13/03/2024,-1127.64
Buckinghamshire Council,Adults and Health,CHALFONT LODGE NURSING HOME,1000164,Nursing care-permanent -other,Controllable Customer & Client Receipts,7003179125,13/03/2024,-905.6
Buckinghamshire Council,Adults and Health,CHALFONT LODGE NURSING HOME,1000164,Nursing care-permanent -other,Controllable Customer & Client Receipts,7003179125,13/03/2024,-2424.36
Buckinghamshire Council,Adults and Health,CHALFONT LODGE NURSING HOME,1000164,Nursing care-permanent -other,Controllable Customer & Client Receipts,7003179125,13/03/2024,-926
Buckinghamshire Council,Adults and Health,CHALFONT LODGE NURSING HOME,1000164,Nursing care-permanent -other,Controllable Customer & Client Receipts,7003179125,13/03/2024,-1390
Buckinghamshire Council,Adults and Health,CHALFONT LODGE NURSING HOME,1000164,Nursing care-permanent -other,Controllable Customer & Client Receipts,7003179125,13/03/2024,-838.52
Buckinghamshire Council,Adults and Health,CHALFONT LODGE NURSING HOME,1000164,Nursing care-permanent -other,Controllable Customer & Client Receipts,7003179125,13/03/2024,-492.2
Buckinghamshire Council,Adults and Health,CHALFONT LODGE NURSING HOME,1000164,Nursing care-permanent -other,Controllable Customer & Client Receipts,7003179125,13/03/2024,244.9
Buckinghamshire Council,Adults and Health,CHALFONT LODGE NURSING HOME,1000164,Nursing care-permanent -other,Controllable Customer & Client Receipts,7003179125,13/03/2024,-122.45
Buckinghamshire Council,Adults and Health,CHALFONT LODGE NURSING HOME,1000164,Nursing care-permanent -other,Controllable Customer & Client Receipts,7003179125,13/03/2024,669.73
Buckinghamshire Council,Adults and Health,CHALFONT LODGE NURSING HOME,1000164,Nursing care-permanent -other,Controllable Customer & Client Receipts,7003179125,13/03/2024,-669.73
Buckinghamshire Council,Adults and Health,CHALFONT LODGE NURSING HOME,1000164,Nursing care-permanent -other,Controllable Customer & Client Receipts,7003179125,13/03/2024,800.8
Buckinghamshire Council,Adults and Health,CHALFONT LODGE NURSING HOME,1000164,Nursing care-permanent -other,Controllable Customer & Client Receipts,7003179125,13/03/2024,-800.8
Buckinghamshire Council,Adults and Health,CHALFONT LODGE NURSING HOME,1000164,Nursing care-permanent -other,Controllable Customer & Client Receipts,7003179125,13/03/2024,800.8
Buckinghamshire Council,Adults and Health,CHALFONT LODGE NURSING HOME,1000164,Nursing care-permanent -other,Controllable Customer & Client Receipts,7003179125,13/03/2024,-800.8
Buckinghamshire Council,Adults and Health,CHALFONT LODGE NURSING HOME,1000164,Nursing care-permanent -other,Controllable Customer & Client Receipts,7003179125,13/03/2024,-800.8
Buckinghamshire Council,Adults and Health,CHALFONT LODGE NURSING HOME,1000164,Nursing care-permanent -other,Controllable Customer & Client Receipts,7003179125,13/03/2024,-2467.88
Buckinghamshire Council,Adults and Health,CHALFONT LODGE NURSING HOME,1000164,Nursing care-permanent -other,Controllable Customer & Client Receipts,7003179125,13/03/2024,-1196
Buckinghamshire Council,Adults and Health,REDACTED,1000165,Nurs-Perm EMI Other - Exp,Third Party Payments,7003179126,13/03/2024,4600
Buckinghamshire Council,Adults and Health,REDACTED,1000165,Nurs-Perm EMI Other - Exp,Third Party Payments,7003179126,13/03/2024,4280
Buckinghamshire Council,Adults and Health,REDACTED,1000165,Nursing care-permanent -other,Third Party Payments,7003179126,13/03/2024,6295.2
Buckinghamshire Council,Adults and Health,REDACTED,1000165,Nurs-Perm EMI Other - Exp,Third Party Payments,7003179126,13/03/2024,4708
Buckinghamshire Council,Adults and Health,REDACTED,1000165,Nurs-Perm EMI Other - Exp,Third Party Payments,7003179126,13/03/2024,4280
Buckinghamshire Council,Adults and Health,REDACTED,1000165,Nursing care-permanent -other,Third Party Payments,7003179126,13/03/2024,3669.2
Buckinghamshire Council,Adults and Health,REDACTED,1000165,Nursing care-permanent -other,Third Party Payments,7003179126,13/03/2024,3669.2
Buckinghamshire Council,Adults and Health,REDACTED,1000165,Res care-permanent - other,Third Party Payments,7003179126,13/03/2024,3967.56
Buckinghamshire Council,Adults and Health,REDACTED,1000165,Nurs-Perm EMI Other - Exp,Third Party Payments,7003179126,13/03/2024,5000
Buckinghamshire Council,Adults and Health,REDACTED,1000165,Nursing care-permanent -other,Third Party Payments,7003179126,13/03/2024,3669.2
Buckinghamshire Council,Adults and Health,REDACTED,1000165,Nurs-Perm EMI Other - Exp,Third Party Payments,7003179126,13/03/2024,3898.52
Buckinghamshire Council,Adults and Health,REDACTED,1000165,Nurs-Perm EMI Other - Exp,Third Party Payments,7003179126,13/03/2024,2228.57
Buckinghamshire Council,Adults and Health,REDACTED,1000165,Nurs-Perm EMI Other - Exp,Third Party Payments,7003179126,13/03/2024,4800
Buckinghamshire Council,Adults and Health,REDACTED,1000165,Nursing care-permanent -other,Third Party Payments,7003179126,13/03/2024,850
Buckinghamshire Council,Adults and Health,REDACTED,1000165,Nursing care-permanent -other,Third Party Payments,7003179126,13/03/2024,3400
Buckinghamshire Council,Adults and Health,REDACTED,1000165,Nursing care-permanent -other,Third Party Payments,7003179126,13/03/2024,3400
Buckinghamshire Council,Adults and Health,REDACTED,1000165,Nursing care-permanent -other,Third Party Payments,7003179126,13/03/2024,3400
Buckinghamshire Council,Adults and Health,REDACTED,1000165,Nursing care-permanent -other,Third Party Payments,7003179126,13/03/2024,3400
Buckinghamshire Council,Adults and Health,REDACTED,1000165,Nursing care-permanent -other,Third Party Payments,7003179126,13/03/2024,3400
Buckinghamshire Council,Adults and Health,REDACTED,1000165,Nursing care-permanent -other,Third Party Payments,7003179126,13/03/2024,821.03
Buckinghamshire Council,Adults and Health,REDACTED,1000165,Nursing care-permanent -other,Third Party Payments,7003179126,13/03/2024,128.97
Buckinghamshire Council,Adults and Health,REDACTED,1000165,Nursing care-permanent -other,Third Party Payments,7003179126,13/03/2024,2428.57
Buckinghamshire Council,Adults and Health,REDACTED,1000165,Nursing care-permanent -other,Third Party Payments,7003179126,13/03/2024,3284.12
Buckinghamshire Council,Adults and Health,REDACTED,1000165,Nursing care-permanent -other,Third Party Payments,7003179126,13/03/2024,515.88
Buckinghamshire Council,Adults and Health,REDACTED,1000165,Nursing care-permanent -other,Controllable Customer & Client Receipts,7003179126,13/03/2024,-627.8
Buckinghamshire Council,Adults and Health,REDACTED,1000165,Nursing care-permanent -other,Controllable Customer & Client Receipts,7003179126,13/03/2024,-617.4
Buckinghamshire Council,Adults and Health,REDACTED,1000165,Nursing care-permanent -other,Controllable Customer & Client Receipts,7003179126,13/03/2024,-405
Buckinghamshire Council,Adults and Health,REDACTED,1000165,Res care-permanent - other,Controllable Customer & Client Receipts,7003179126,13/03/2024,-617.4
Buckinghamshire Council,Adults and Health,REDACTED,1000165,Nursing care-permanent -other,Controllable Customer & Client Receipts,7003179126,13/03/2024,-973.36
Buckinghamshire Council,Adults and Health,REDACTED,1000165,Nursing care-permanent -other,Controllable Customer & Client Receipts,7003179126,13/03/2024,-950.36
Buckinghamshire Council,Adults and Health,REDACTED,1000165,Nursing care-permanent -other,Controllable Customer & Client Receipts,7003179126,13/03/2024,-1226.24
Buckinghamshire Council,Adults and Health,REDACTED,1000165,Nursing care-permanent -other,Controllable Customer & Client Receipts,7003179126,13/03/2024,-1338.4
Buckinghamshire Council,Adults and Health,REDACTED,1000165,Nursing care-permanent -other,Controllable Customer & Client Receipts,7003179126,13/03/2024,-617.4
Buckinghamshire Council,Adults and Health,REDACTED,1000165,Nursing care-permanent -other,Controllable Customer & Client Receipts,7003179126,13/03/2024,-320.91
Buckinghamshire Council,Adults and Health,REDACTED,1000165,Nursing care-permanent -other,Controllable Customer & Client Receipts,7003179126,13/03/2024,-691.2
Buckinghamshire Council,Adults and Health,REDACTED,1000165,Nursing care-permanent -other,Controllable Customer & Client Receipts,7003179126,13/03/2024,3198.05
Buckinghamshire Council,Adults and Health,REDACTED,1000165,Nursing care-permanent -other,Controllable Customer & Client Receipts,7003179126,13/03/2024,6268.21
Buckinghamshire Council,Adults and Health,REDACTED,1000165,Nursing care-permanent -other,Controllable Customer & Client Receipts,7003179126,13/03/2024,4663.93
Buckinghamshire Council,Adults and Health,REDACTED,1000165,Nursing care-permanent -other,Controllable Customer & Client Receipts,7003179126,13/03/2024,9141.31
Buckinghamshire Council,Adults and Health,REDACTED,1000165,Nursing care-permanent -other,Controllable Customer & Client Receipts,7003179126,13/03/2024,4640.72
Buckinghamshire Council,Adults and Health,REDACTED,1000165,Nursing care-permanent -other,Controllable Customer & Client Receipts,7003179126,13/03/2024,9095.8
Buckinghamshire Council,Adults and Health,REDACTED,1000165,Nursing care-permanent -other,Controllable Customer & Client Receipts,7003179126,13/03/2024,4640.72
Buckinghamshire Council,Adults and Health,REDACTED,1000165,Nursing care-permanent -other,Controllable Customer & Client Receipts,7003179126,13/03/2024,9095.8
Buckinghamshire Council,Adults and Health,REDACTED,1000165,Nursing care-permanent -other,Controllable Customer & Client Receipts,7003179126,13/03/2024,4640.72
Buckinghamshire Council,Adults and Health,REDACTED,1000165,Nursing care-permanent -other,Controllable Customer & Client Receipts,7003179126,13/03/2024,9095.8
Buckinghamshire Council,Adults and Health,REDACTED,1000165,Nursing care-permanent -other,Controllable Customer & Client Receipts,7003179126,13/03/2024,1160.18
Buckinghamshire Council,Adults and Health,REDACTED,1000165,Nursing care-permanent -other,Controllable Customer & Client Receipts,7003179126,13/03/2024,2593.12
Buckinghamshire Council,Adults and Health,REDACTED,1000165,Nursing care-permanent -other,Controllable Customer & Client Receipts,7003179126,13/03/2024,-333.47
Buckinghamshire Council,Adults and Health,REDACTED,1000165,Nursing care-permanent -other,Controllable Customer & Client Receipts,7003179126,13/03/2024,-1357.31
Buckinghamshire Council,Adults and Health,REDACTED,1000165,Nursing care-permanent -other,Controllable Customer & Client Receipts,7003179126,13/03/2024,-1427.6
Buckinghamshire Council,Adults and Health,REDACTED,1000165,Nursing care-permanent -other,Controllable Customer & Client Receipts,7003179126,13/03/2024,-1427.6
Buckinghamshire Council,Adults and Health,REDACTED,1000165,Nursing care-permanent -other,Controllable Customer & Client Receipts,7003179126,13/03/2024,-1427.6
Buckinghamshire Council,Adults and Health,REDACTED,1000165,Nursing care-permanent -other,Controllable Customer & Client Receipts,7003179126,13/03/2024,-1427.6
Buckinghamshire Council,Adults and Health,REDACTED,1000165,Nursing care-permanent -other,Controllable Customer & Client Receipts,7003179126,13/03/2024,-356.9
Buckinghamshire Council,Adults and Health,REDACTED,1000165,Nursing care-permanent -other,Controllable Customer & Client Receipts,7003179126,13/03/2024,-1019.71
Buckinghamshire Council,Adults and Health,REDACTED,1000165,Nursing care-permanent -other,Controllable Customer & Client Receipts,7003179126,13/03/2024,-1427.6
Buckinghamshire Council,Adults and Health,REDACTED,1000165,Nursing care-permanent -other,Controllable Customer & Client Receipts,7003179126,13/03/2024,-128.97
Buckinghamshire Council,Adults and Health,REDACTED,1000165,Nursing care-permanent -other,Controllable Customer & Client Receipts,7003179126,13/03/2024,-515.88
Buckinghamshire Council,Adults and Health,REDACTED,1000165,Other Com Care exp (eg pet sitting),Third Party Payments,4101093435,27/03/2024,68142.09
Buckinghamshire Council,Adults and Health,CHERRY TREE NURSING HOME,1000166,Nursing care-permanent -other,Third Party Payments,7003179127,13/03/2024,5400
Buckinghamshire Council,Adults and Health,CHERRY TREE NURSING HOME,1000166,Nurs-Perm EMI Other - Exp,Third Party Payments,7003179127,13/03/2024,5800
Buckinghamshire Council,Adults and Health,CHERRY TREE NURSING HOME,1000166,Nurs-Perm EMI Other - Exp,Third Party Payments,7003179127,13/03/2024,5200
Buckinghamshire Council,Adults and Health,CHERRY TREE NURSING HOME,1000166,Nursing care-permanent -other,Third Party Payments,7003179127,13/03/2024,5290.08
Buckinghamshire Council,Adults and Health,CHERRY TREE NURSING HOME,1000166,Nursing care-permanent -other,Third Party Payments,7003179127,13/03/2024,4922
Buckinghamshire Council,Adults and Health,CHERRY TREE NURSING HOME,1000166,Nursing care-permanent -other,Third Party Payments,7003179127,13/03/2024,4922
Buckinghamshire Council,Adults and Health,CHERRY TREE NURSING HOME,1000166,Nursing care-permanent -other,Third Party Payments,7003179127,13/03/2024,4922
Buckinghamshire Council,Adults and Health,CHERRY TREE NURSING HOME,1000166,Nursing care-permanent -other,Third Party Payments,7003179127,13/03/2024,4922
Buckinghamshire Council,Adults and Health,CHERRY TREE NURSING HOME,1000166,Nursing care-permanent -other,Third Party Payments,7003179127,13/03/2024,5400
Buckinghamshire Council,Adults and Health,CHERRY TREE NURSING HOME,1000166,Nursing care-permanent -other,Third Party Payments,7003179127,13/03/2024,5290.08
Buckinghamshire Council,Adults and Health,CHERRY TREE NURSING HOME,1000166,Nursing care-permanent -other,Third Party Payments,7003179127,13/03/2024,5290.08
Buckinghamshire Council,Adults and Health,CHERRY TREE NURSING HOME,1000166,Nursing care-permanent -other,Controllable Customer & Client Receipts,7003179127,13/03/2024,-405
Buckinghamshire Council,Adults and Health,CHERRY TREE NURSING HOME,1000166,Nursing care-permanent -other,Controllable Customer & Client Receipts,7003179127,13/03/2024,-698.88
Buckinghamshire Council,Adults and Health,CHERRY TREE NURSING HOME,1000166,Nursing care-permanent -other,Controllable Customer & Client Receipts,7003179127,13/03/2024,-707.04
Buckinghamshire Council,Adults and Health,CHERRY TREE NURSING HOME,1000166,Nursing care-permanent -other,Controllable Customer & Client Receipts,7003179127,13/03/2024,-4922
Buckinghamshire Council,Adults and Health,CHERRY TREE NURSING HOME,1000166,Nursing care-permanent -other,Controllable Customer & Client Receipts,7003179127,13/03/2024,-1513.48
Buckinghamshire Council,Adults and Health,CHERRY TREE NURSING HOME,1000166,Nursing care-permanent -other,Controllable Customer & Client Receipts,7003179127,13/03/2024,-617.4
Buckinghamshire Council,Adults and Health,CHERRY TREE NURSING HOME,1000166,Nursing care-permanent -other,Controllable Customer & Client Receipts,7003179127,13/03/2024,-1736.96
Buckinghamshire Council,Adults and Health,CHERRY TREE NURSING HOME,1000166,Nursing care-permanent -other,Controllable Customer & Client Receipts,7003179127,13/03/2024,-687.04
Buckinghamshire Council,Adults and Health,CHERRY TREE NURSING HOME,1000166,Nursing care-permanent -other,Controllable Customer & Client Receipts,7003179127,13/03/2024,-719.92
Buckinghamshire Council,Adults and Health,Ambient Support Limited,1000171,Extra Care,Third Party Payments,7003178893,13/03/2024,1138.52
Buckinghamshire Council,Adults and Health,Ambient Support Limited,1000171,Extra Care,Third Party Payments,7003178893,13/03/2024,1138.52
Buckinghamshire Council,Adults and Health,Ambient Support Limited,1000171,Extra Care,Third Party Payments,7003178893,13/03/2024,1138.52
Buckinghamshire Council,Adults and Health,Ambient Support Limited,1000171,Extra Care - Block,Third Party Payments,7003178893,13/03/2024,9108.16
Buckinghamshire Council,Adults and Health,Ambient Support Limited,1000171,Extra Care,Third Party Payments,7003178893,13/03/2024,430.92
Buckinghamshire Council,Adults and Health,Ambient Support Limited,1000171,Extra Care,Third Party Payments,7003178893,13/03/2024,219.28
Buckinghamshire Council,Adults and Health,Ambient Support Limited,1000171,Extra Care,Third Party Payments,7003178893,13/03/2024,162.65
Buckinghamshire Council,Adults and Health,Ambient Support Limited,1000171,Extra Care,Third Party Payments,7003178893,13/03/2024,1138.52
Buckinghamshire Council,Adults and Health,Ambient Support Limited,1000171,Extra Care - Block,Third Party Payments,7003178893,13/03/2024,-162.65
Buckinghamshire Council,Adults and Health,Ambient Support Limited,1000171,Extra Care,Third Party Payments,7003178894,13/03/2024,1138.52
Buckinghamshire Council,Adults and Health,Ambient Support Limited,1000171,Extra Care,Third Party Payments,7003178894,13/03/2024,1138.52
Buckinghamshire Council,Adults and Health,Ambient Support Limited,1000171,Extra Care,Third Party Payments,7003178894,13/03/2024,1138.52
Buckinghamshire Council,Adults and Health,Ambient Support Limited,1000171,Extra Care,Third Party Payments,7003178894,13/03/2024,1138.52
Buckinghamshire Council,Adults and Health,Ambient Support Limited,1000171,Extra Care,Third Party Payments,7003178894,13/03/2024,1138.52
Buckinghamshire Council,Adults and Health,Ambient Support Limited,1000171,Extra Care,Third Party Payments,7003178894,13/03/2024,1138.52
Buckinghamshire Council,Adults and Health,Ambient Support Limited,1000171,Extra Care,Third Party Payments,7003178894,13/03/2024,1138.52
Buckinghamshire Council,Adults and Health,Ambient Support Limited,1000171,Extra Care,Third Party Payments,7003178894,13/03/2024,1138.52
Buckinghamshire Council,Adults and Health,Ambient Support Limited,1000171,Extra Care,Third Party Payments,7003178894,13/03/2024,1138.52
Buckinghamshire Council,Adults and Health,Ambient Support Limited,1000171,Extra Care - Block,Third Party Payments,7003178894,13/03/2024,3415.56
Buckinghamshire Council,Adults and Health,Ambient Support Limited,1000171,Extra Care,Third Party Payments,7003178894,13/03/2024,399
Buckinghamshire Council,Adults and Health,Ambient Support Limited,1000171,Extra Care,Third Party Payments,7003178894,13/03/2024,571
Buckinghamshire Council,Adults and Health,Ambient Support Limited,1000171,Extra Care,Third Party Payments,7003178894,13/03/2024,744.8
Buckinghamshire Council,Adults and Health,Ambient Support Limited,1000171,Extra Care,Third Party Payments,7003178894,13/03/2024,207.48
Buckinghamshire Council,Adults and Health,Ambient Support Limited,1000171,Extra Care,Third Party Payments,7003178894,13/03/2024,-107.73
Buckinghamshire Council,Adults and Health,Ambient Support Limited,1000171,Extra Care,Third Party Payments,7003178894,13/03/2024,-143.64
Buckinghamshire Council,Adults and Health,Ambient Support Limited,1000171,Extra Care,Third Party Payments,7003178894,13/03/2024,-143.64
Buckinghamshire Council,Adults and Health,Ambient Support Limited,1000171,Extra Care,Third Party Payments,7003178894,13/03/2024,-143.64
Buckinghamshire Council,Adults and Health,Ambient Support Limited,1000171,Extra Care,Third Party Payments,7003178894,13/03/2024,-143.64
Buckinghamshire Council,Adults and Health,Ambient Support Limited,1000171,Extra Care,Third Party Payments,7003178895,13/03/2024,924
Buckinghamshire Council,Adults and Health,Ambient Support Limited,1000171,Extra Care,Third Party Payments,7003178895,13/03/2024,924
Buckinghamshire Council,Adults and Health,Ambient Support Limited,1000171,Extra Care,Third Party Payments,7003178895,13/03/2024,924
Buckinghamshire Council,Adults and Health,Ambient Support Limited,1000171,Extra Care,Third Party Payments,7003178895,13/03/2024,924
Buckinghamshire Council,Adults and Health,Ambient Support Limited,1000171,Extra Care,Third Party Payments,7003178895,13/03/2024,924
Buckinghamshire Council,Adults and Health,Ambient Support Limited,1000171,Extra Care,Third Party Payments,7003178895,13/03/2024,924
Buckinghamshire Council,Adults and Health,Ambient Support Limited,1000171,Extra Care,Third Party Payments,7003178895,13/03/2024,924
Buckinghamshire Council,Adults and Health,Ambient Support Limited,1000171,Extra Care,Third Party Payments,7003178895,13/03/2024,924
Buckinghamshire Council,Adults and Health,Ambient Support Limited,1000171,Extra Care,Third Party Payments,7003178895,13/03/2024,924
Buckinghamshire Council,Adults and Health,Ambient Support Limited,1000171,Extra Care,Third Party Payments,7003178895,13/03/2024,924
Buckinghamshire Council,Adults and Health,Ambient Support Limited,1000171,Extra Care,Third Party Payments,7003178895,13/03/2024,924
Buckinghamshire Council,Adults and Health,Ambient Support Limited,1000171,Extra Care - Block,Third Party Payments,7003178895,13/03/2024,924
Buckinghamshire Council,Adults and Health,Ambient Support Limited,1000171,Extra Care,Third Party Payments,7003178895,13/03/2024,478.8
Buckinghamshire Council,Adults and Health,Ambient Support Limited,1000171,Extra Care,Third Party Payments,7003178895,13/03/2024,351.12
Buckinghamshire Council,Adults and Health,Ambient Support Limited,1000171,Extra Care,Third Party Payments,7003178895,13/03/2024,223.72
Buckinghamshire Council,Adults and Health,Ambient Support Limited,1000171,Extra Care,Third Party Payments,7003178895,13/03/2024,694.4
Buckinghamshire Council,Adults and Health,Ambient Support Limited,1000171,Extra Care,Third Party Payments,7003178895,13/03/2024,-95.76
Buckinghamshire Council,Adults and Health,Ambient Support Limited,1000171,Extra Care,Third Party Payments,7003178895,13/03/2024,383.04
Buckinghamshire Council,Adults and Health,Ambient Support Limited,1000171,Extra Care,Third Party Payments,7003178895,13/03/2024,265.71
Buckinghamshire Council,Adults and Health,Ambient Support Limited,1000171,Res-Perm EMI-Other - Exp,Third Party Payments,7003179128,13/03/2024,3726.24
Buckinghamshire Council,Adults and Health,Ambient Support Limited,1000171,Res-Perm EMI-Other - Exp,Third Party Payments,7003179128,13/03/2024,3726.24
Buckinghamshire Council,Adults and Health,Ambient Support Limited,1000171,Res-Perm EMI-Other - Exp,Third Party Payments,7003179128,13/03/2024,3726.24
Buckinghamshire Council,Adults and Health,Ambient Support Limited,1000171,Res-Perm EMI-Other - Exp,Third Party Payments,7003179128,13/03/2024,3726.24
Buckinghamshire Council,Adults and Health,Ambient Support Limited,1000171,Res-Perm EMI-Other - Exp,Third Party Payments,7003179128,13/03/2024,3726.24
Buckinghamshire Council,Adults and Health,Ambient Support Limited,1000171,Res-Perm EMI-Other - Exp,Third Party Payments,7003179128,13/03/2024,3726.24
Buckinghamshire Council,Adults and Health,Ambient Support Limited,1000171,Res-Perm EMI-Other - Exp,Third Party Payments,7003179128,13/03/2024,3726.24
Buckinghamshire Council,Adults and Health,Ambient Support Limited,1000171,Res-Perm EMI-Other - Exp,Third Party Payments,7003179128,13/03/2024,3726.24
Buckinghamshire Council,Adults and Health,Ambient Support Limited,1000171,Res-Perm EMI-Other - Exp,Third Party Payments,7003179128,13/03/2024,3726.24
Buckinghamshire Council,Adults and Health,Ambient Support Limited,1000171,Res-Perm EMI-Other - Exp,Third Party Payments,7003179128,13/03/2024,3726.24
Buckinghamshire Council,Adults and Health,Ambient Support Limited,1000171,Res-Perm EMI-Other - Exp,Third Party Payments,7003179128,13/03/2024,3726.24
Buckinghamshire Council,Adults and Health,Ambient Support Limited,1000171,Res-Perm EMI-Other - Exp,Third Party Payments,7003179128,13/03/2024,3726.24
Buckinghamshire Council,Adults and Health,Ambient Support Limited,1000171,Res-Perm EMI-Other - Exp,Third Party Payments,7003179128,13/03/2024,3726.24
Buckinghamshire Council,Adults and Health,Ambient Support Limited,1000171,Res-Perm EMI-Other - Exp,Third Party Payments,7003179128,13/03/2024,3726.24
Buckinghamshire Council,Adults and Health,Ambient Support Limited,1000171,Res-Perm EMI-Other - Exp,Third Party Payments,7003179128,13/03/2024,3726.24
Buckinghamshire Council,Adults and Health,Ambient Support Limited,1000171,Res-Perm EMI-Other - Exp,Third Party Payments,7003179128,13/03/2024,3726.24
Buckinghamshire Council,Adults and Health,Ambient Support Limited,1000171,Res-Perm EMI-Other - Exp,Third Party Payments,7003179128,13/03/2024,3726.24
Buckinghamshire Council,Adults and Health,Ambient Support Limited,1000171,Res-Perm EMI-Other - Exp,Third Party Payments,7003179128,13/03/2024,3726.24
Buckinghamshire Council,Adults and Health,Ambient Support Limited,1000171,Res-Perm EMI-Other - Exp,Third Party Payments,7003179128,13/03/2024,3726.24
Buckinghamshire Council,Adults and Health,Ambient Support Limited,1000171,Res-Perm EMI-Other - Exp,Third Party Payments,7003179128,13/03/2024,3726.24
Buckinghamshire Council,Adults and Health,Ambient Support Limited,1000171,Res-Perm EMI-Other - Exp,Third Party Payments,7003179128,13/03/2024,3726.24
Buckinghamshire Council,Adults and Health,Ambient Support Limited,1000171,Res care-permanent - other,Third Party Payments,7003179128,13/03/2024,3312.68
Buckinghamshire Council,Adults and Health,Ambient Support Limited,1000171,Res care-permanent - other,Third Party Payments,7003179128,13/03/2024,3312.68
Buckinghamshire Council,Adults and Health,Ambient Support Limited,1000171,Res care-permanent - other,Third Party Payments,7003179128,13/03/2024,3312.68
Buckinghamshire Council,Adults and Health,Ambient Support Limited,1000171,Res care-permanent - other,Third Party Payments,7003179128,13/03/2024,3312.68
Buckinghamshire Council,Adults and Health,Ambient Support Limited,1000171,Res care-permanent - other,Third Party Payments,7003179128,13/03/2024,3312.68
Buckinghamshire Council,Adults and Health,Ambient Support Limited,1000171,Res care-permanent - other,Third Party Payments,7003179128,13/03/2024,3312.68
Buckinghamshire Council,Adults and Health,Ambient Support Limited,1000171,Res care-permanent - other,Third Party Payments,7003179128,13/03/2024,3312.68
Buckinghamshire Council,Adults and Health,Ambient Support Limited,1000171,Res care-permanent - other,Third Party Payments,7003179128,13/03/2024,3312.68
Buckinghamshire Council,Adults and Health,Ambient Support Limited,1000171,Res care-permanent - other,Third Party Payments,7003179128,13/03/2024,3312.68
Buckinghamshire Council,Adults and Health,Ambient Support Limited,1000171,Res care-permanent - other,Third Party Payments,7003179128,13/03/2024,3312.68
Buckinghamshire Council,Adults and Health,Ambient Support Limited,1000171,Res care-permanent - other,Third Party Payments,7003179128,13/03/2024,3312.68
Buckinghamshire Council,Adults and Health,Ambient Support Limited,1000171,Res care-permanent - other,Third Party Payments,7003179128,13/03/2024,3312.68
Buckinghamshire Council,Adults and Health,Ambient Support Limited,1000171,Res care-permanent - other,Third Party Payments,7003179128,13/03/2024,3312.68
Buckinghamshire Council,Adults and Health,Ambient Support Limited,1000171,Res care-permanent - other,Third Party Payments,7003179128,13/03/2024,3312.68
Buckinghamshire Council,Adults and Health,Ambient Support Limited,1000171,Res-Perm EMI-Other - Exp,Third Party Payments,7003179128,13/03/2024,3726.24
Buckinghamshire Council,Adults and Health,Ambient Support Limited,1000171,Res-Perm EMI-Other - Exp,Third Party Payments,7003179128,13/03/2024,3726.24
Buckinghamshire Council,Adults and Health,Ambient Support Limited,1000171,Res-Perm EMI-Other - Exp,Third Party Payments,7003179128,13/03/2024,3726.24
Buckinghamshire Council,Adults and Health,Ambient Support Limited,1000171,Res-Perm EMI-Other - Exp,Third Party Payments,7003179128,13/03/2024,3726.24
Buckinghamshire Council,Adults and Health,Ambient Support Limited,1000171,Res care-permanent - other,Third Party Payments,7003179128,13/03/2024,3312.68
Buckinghamshire Council,Adults and Health,Ambient Support Limited,1000171,Res care-permanent - other,Third Party Payments,7003179128,13/03/2024,3312.68
Buckinghamshire Council,Adults and Health,Ambient Support Limited,1000171,Res-Perm EMI-Other - Exp,Third Party Payments,7003179128,13/03/2024,3726.24
Buckinghamshire Council,Adults and Health,Ambient Support Limited,1000171,Res-Perm EMI-Other - Exp,Third Party Payments,7003179128,13/03/2024,931.56
Buckinghamshire Council,Adults and Health,Ambient Support Limited,1000171,Res-Perm EMI-Other - Exp,Third Party Payments,7003179128,13/03/2024,3726.24
Buckinghamshire Council,Adults and Health,Ambient Support Limited,1000171,Residential  Care-Permanent Block - Othe,Third Party Payments,7003179128,13/03/2024,-931.56
Buckinghamshire Council,Adults and Health,Ambient Support Limited,1000171,Res care-permanent - other,Controllable Customer & Client Receipts,7003179128,13/03/2024,-1060.56
Buckinghamshire Council,Adults and Health,Ambient Support Limited,1000171,Res care-permanent - other,Controllable Customer & Client Receipts,7003179128,13/03/2024,-1148.96
Buckinghamshire Council,Adults and Health,Ambient Support Limited,1000171,Res care-permanent - other,Controllable Customer & Client Receipts,7003179128,13/03/2024,-895.64
Buckinghamshire Council,Adults and Health,Ambient Support Limited,1000171,Res care-permanent - other,Controllable Customer & Client Receipts,7003179128,13/03/2024,-603.64
Buckinghamshire Council,Adults and Health,Ambient Support Limited,1000171,Res care-permanent - other,Controllable Customer & Client Receipts,7003179128,13/03/2024,-1064
Buckinghamshire Council,Adults and Health,Ambient Support Limited,1000171,Res care-permanent - other,Controllable Customer & Client Receipts,7003179128,13/03/2024,-1629
Buckinghamshire Council,Adults and Health,Ambient Support Limited,1000171,Res care-permanent - other,Controllable Customer & Client Receipts,7003179128,13/03/2024,-663.6
Buckinghamshire Council,Adults and Health,Ambient Support Limited,1000171,Res care-permanent - other,Controllable Customer & Client Receipts,7003179128,13/03/2024,-1055.88
Buckinghamshire Council,Adults and Health,Ambient Support Limited,1000171,Res care-permanent - other,Controllable Customer & Client Receipts,7003179128,13/03/2024,-720.56
Buckinghamshire Council,Adults and Health,Ambient Support Limited,1000171,Res care-permanent - other,Controllable Customer & Client Receipts,7003179128,13/03/2024,-958.36
Buckinghamshire Council,Adults and Health,Ambient Support Limited,1000171,Res care-permanent - other,Controllable Customer & Client Receipts,7003179128,13/03/2024,-248.84
Buckinghamshire Council,Adults and Health,Ambient Support Limited,1000171,Res care-permanent - other,Controllable Customer & Client Receipts,7003179128,13/03/2024,-1535.32
Buckinghamshire Council,Adults and Health,Ambient Support Limited,1000171,Res care-permanent - other,Controllable Customer & Client Receipts,7003179128,13/03/2024,-3726.24
Buckinghamshire Council,Adults and Health,Ambient Support Limited,1000171,Res care-permanent - other,Controllable Customer & Client Receipts,7003179128,13/03/2024,-857.88
Buckinghamshire Council,Adults and Health,Ambient Support Limited,1000171,Res care-permanent - other,Controllable Customer & Client Receipts,7003179128,13/03/2024,-688.24
Buckinghamshire Council,Adults and Health,Ambient Support Limited,1000171,Res care-permanent - other,Controllable Customer & Client Receipts,7003179128,13/03/2024,-841.52
Buckinghamshire Council,Adults and Health,Ambient Support Limited,1000171,Res care-permanent - other,Controllable Customer & Client Receipts,7003179128,13/03/2024,-649.4
Buckinghamshire Council,Adults and Health,Ambient Support Limited,1000171,Res care-permanent - other,Controllable Customer & Client Receipts,7003179128,13/03/2024,-950.92
Buckinghamshire Council,Adults and Health,Ambient Support Limited,1000171,Res care-permanent - other,Controllable Customer & Client Receipts,7003179128,13/03/2024,-349.36
Buckinghamshire Council,Adults and Health,Ambient Support Limited,1000171,Res care-permanent - other,Controllable Customer & Client Receipts,7003179128,13/03/2024,-265.36
Buckinghamshire Council,Adults and Health,Ambient Support Limited,1000171,Res care-permanent - other,Controllable Customer & Client Receipts,7003179128,13/03/2024,-940.24
Buckinghamshire Council,Adults and Health,Ambient Support Limited,1000171,Res care-permanent - other,Controllable Customer & Client Receipts,7003179128,13/03/2024,-682.16
Buckinghamshire Council,Adults and Health,Ambient Support Limited,1000171,Res care-permanent - other,Controllable Customer & Client Receipts,7003179128,13/03/2024,-715.28
Buckinghamshire Council,Adults and Health,Ambient Support Limited,1000171,Res care-permanent - other,Controllable Customer & Client Receipts,7003179128,13/03/2024,-609.4
Buckinghamshire Council,Adults and Health,Ambient Support Limited,1000171,Res care-permanent - other,Controllable Customer & Client Receipts,7003179128,13/03/2024,-1030.72
Buckinghamshire Council,Adults and Health,Ambient Support Limited,1000171,Res care-permanent - other,Controllable Customer & Client Receipts,7003179128,13/03/2024,-808.04
Buckinghamshire Council,Adults and Health,Ambient Support Limited,1000171,Res care-permanent - other,Controllable Customer & Client Receipts,7003179128,13/03/2024,-841.68
Buckinghamshire Council,Adults and Health,Ambient Support Limited,1000171,Res care-permanent - other,Controllable Customer & Client Receipts,7003179128,13/03/2024,-665.2
Buckinghamshire Council,Adults and Health,Ambient Support Limited,1000171,Res care-permanent - other,Controllable Customer & Client Receipts,7003179128,13/03/2024,-830.16
Buckinghamshire Council,Adults and Health,Ambient Support Limited,1000171,Res care-permanent - other,Controllable Customer & Client Receipts,7003179128,13/03/2024,-769.92
Buckinghamshire Council,Adults and Health,Ambient Support Limited,1000171,Res care-permanent - other,Controllable Customer & Client Receipts,7003179128,13/03/2024,-713.36
Buckinghamshire Council,Adults and Health,Ambient Support Limited,1000171,Res care-permanent - other,Controllable Customer & Client Receipts,7003179128,13/03/2024,-1085.28
Buckinghamshire Council,Adults and Health,Ambient Support Limited,1000171,Res care-permanent - other,Controllable Customer & Client Receipts,7003179128,13/03/2024,-980.56
Buckinghamshire Council,Adults and Health,Ambient Support Limited,1000171,Res care-permanent - other,Controllable Customer & Client Receipts,7003179128,13/03/2024,-974.12
Buckinghamshire Council,Adults and Health,Ambient Support Limited,1000171,Res care-permanent - other,Controllable Customer & Client Receipts,7003179128,13/03/2024,-653.6
Buckinghamshire Council,Adults and Health,Ambient Support Limited,1000171,Res care-permanent - other,Controllable Customer & Client Receipts,7003179128,13/03/2024,-617.4
Buckinghamshire Council,Adults and Health,Ambient Support Limited,1000171,Res care-permanent - other,Controllable Customer & Client Receipts,7003179128,13/03/2024,-1669
Buckinghamshire Council,Adults and Health,Ambient Support Limited,1000171,Res care-permanent - other,Controllable Customer & Client Receipts,7003179128,13/03/2024,-850.08
Buckinghamshire Council,Adults and Health,Ambient Support Limited,1000171,Res care-permanent - other,Controllable Customer & Client Receipts,7003179128,13/03/2024,-296.22
Buckinghamshire Council,Adults and Health,Ambient Support Limited,1000171,Res care-permanent - other,Controllable Customer & Client Receipts,7003179128,13/03/2024,-691.2
Buckinghamshire Council,Adults and Health,Ambient Support Limited,1000171,Res care-permanent - other,Controllable Customer & Client Receipts,7003179128,13/03/2024,-691.2
Buckinghamshire Council,Adults and Health,Ambient Support Limited,1000171,Res care-permanent - other,Controllable Customer & Client Receipts,7003179128,13/03/2024,-691.2
Buckinghamshire Council,Adults and Health,Ambient Support Limited,1000171,Res care-permanent - other,Controllable Customer & Client Receipts,7003179128,13/03/2024,-691.2
Buckinghamshire Council,Adults and Health,Ambient Support Limited,1000171,Res care-permanent - other,Controllable Customer & Client Receipts,7003179128,13/03/2024,-56.84
Buckinghamshire Council,Adults and Health,Ambient Support Limited,1000171,Res care-permanent - other,Controllable Customer & Client Receipts,7003179128,13/03/2024,-227.36
Buckinghamshire Council,Adults and Health,Ambient Support Limited,1000171,Res care-permanent - other,Controllable Customer & Client Receipts,7003179128,13/03/2024,0.01
Buckinghamshire Council,Adults and Health,Ambient Support Limited,1000171,Res-Perm EMI-Other - Exp,Third Party Payments,7003179129,13/03/2024,-3726.24
Buckinghamshire Council,Adults and Health,Ambient Support Limited,1000171,Res-Perm EMI-Other - Exp,Third Party Payments,7003179129,13/03/2024,-1330.8
Buckinghamshire Council,Adults and Health,Ambient Support Limited,1000171,Res-Perm EMI-Other - Exp,Third Party Payments,7003179129,13/03/2024,-2661.6
Buckinghamshire Council,Adults and Health,Ambient Support Limited,1000171,Res-Perm EMI-Other - Exp,Third Party Payments,7003179129,13/03/2024,1463.88
Buckinghamshire Council,Adults and Health,Ambient Support Limited,1000171,Res-Perm EMI-Other - Exp,Third Party Payments,7003179129,13/03/2024,2262.36
Buckinghamshire Council,Adults and Health,Ambient Support Limited,1000171,Res-Perm EMI-Other - Exp,Third Party Payments,7003179129,13/03/2024,2661.6
Buckinghamshire Council,Adults and Health,Ambient Support Limited,1000171,Res-Perm EMI-Other - Exp,Third Party Payments,7003179129,13/03/2024,3726.24
Buckinghamshire Council,Adults and Health,Ambient Support Limited,1000171,Res-Perm EMI-Other - Exp,Third Party Payments,7003179129,13/03/2024,3726.24
Buckinghamshire Council,Adults and Health,Ambient Support Limited,1000171,Res care-permanent - other,Third Party Payments,7003179129,13/03/2024,946.48
Buckinghamshire Council,Adults and Health,Ambient Support Limited,1000171,Res care-permanent - other,Third Party Payments,7003179129,13/03/2024,2366.2
Buckinghamshire Council,Adults and Health,Ambient Support Limited,1000171,Res care-permanent - other,Third Party Payments,7003179129,13/03/2024,946.48
Buckinghamshire Council,Adults and Health,Ambient Support Limited,1000171,Res care-permanent - other,Third Party Payments,7003179129,13/03/2024,2366.2
Buckinghamshire Council,Adults and Health,Ambient Support Limited,1000171,Res care-permanent - other,Third Party Payments,7003179129,13/03/2024,946.48
Buckinghamshire Council,Adults and Health,Ambient Support Limited,1000171,Res care-permanent - other,Third Party Payments,7003179129,13/03/2024,2366.2
Buckinghamshire Council,Adults and Health,Ambient Support Limited,1000171,Res care-permanent - other,Third Party Payments,7003179129,13/03/2024,946.48
Buckinghamshire Council,Adults and Health,Ambient Support Limited,1000171,Res care-permanent - other,Third Party Payments,7003179129,13/03/2024,2366.2
Buckinghamshire Council,Adults and Health,Ambient Support Limited,1000171,Res care-permanent - other,Third Party Payments,7003179129,13/03/2024,946.48
Buckinghamshire Council,Adults and Health,Ambient Support Limited,1000171,Res care-permanent - other,Third Party Payments,7003179129,13/03/2024,2366.2
Buckinghamshire Council,Adults and Health,Ambient Support Limited,1000171,Res care-permanent - other,Third Party Payments,7003179129,13/03/2024,946.48
Buckinghamshire Council,Adults and Health,Ambient Support Limited,1000171,Res care-permanent - other,Third Party Payments,7003179129,13/03/2024,2366.2
Buckinghamshire Council,Adults and Health,Ambient Support Limited,1000171,Res care-permanent - other,Third Party Payments,7003179129,13/03/2024,946.48
Buckinghamshire Council,Adults and Health,Ambient Support Limited,1000171,Res care-permanent - other,Third Party Payments,7003179129,13/03/2024,2366.2
Buckinghamshire Council,Adults and Health,Ambient Support Limited,1000171,Res care-permanent - other,Third Party Payments,7003179129,13/03/2024,946.48
Buckinghamshire Council,Adults and Health,Ambient Support Limited,1000171,Res care-permanent - other,Third Party Payments,7003179129,13/03/2024,2366.2
Buckinghamshire Council,Adults and Health,Ambient Support Limited,1000171,Res care-permanent - other,Third Party Payments,7003179129,13/03/2024,946.48
Buckinghamshire Council,Adults and Health,Ambient Support Limited,1000171,Res care-permanent - other,Third Party Payments,7003179129,13/03/2024,2366.2
Buckinghamshire Council,Adults and Health,Ambient Support Limited,1000171,Res care-permanent - other,Third Party Payments,7003179129,13/03/2024,946.48
Buckinghamshire Council,Adults and Health,Ambient Support Limited,1000171,Res care-permanent - other,Third Party Payments,7003179129,13/03/2024,2366.2
Buckinghamshire Council,Adults and Health,Ambient Support Limited,1000171,Res care-permanent - other,Third Party Payments,7003179129,13/03/2024,946.48
Buckinghamshire Council,Adults and Health,Ambient Support Limited,1000171,Res care-permanent - other,Third Party Payments,7003179129,13/03/2024,2366.2
Buckinghamshire Council,Adults and Health,Ambient Support Limited,1000171,Res care-permanent - other,Third Party Payments,7003179129,13/03/2024,946.48
Buckinghamshire Council,Adults and Health,Ambient Support Limited,1000171,Res care-permanent - other,Third Party Payments,7003179129,13/03/2024,2366.2
Buckinghamshire Council,Adults and Health,Ambient Support Limited,1000171,Res care-permanent - other,Third Party Payments,7003179129,13/03/2024,946.48
Buckinghamshire Council,Adults and Health,Ambient Support Limited,1000171,Res care-permanent - other,Third Party Payments,7003179129,13/03/2024,2366.2
Buckinghamshire Council,Adults and Health,Ambient Support Limited,1000171,Res care-permanent - other,Third Party Payments,7003179129,13/03/2024,946.48
Buckinghamshire Council,Adults and Health,Ambient Support Limited,1000171,Res care-permanent - other,Third Party Payments,7003179129,13/03/2024,2366.2
Buckinghamshire Council,Adults and Health,Ambient Support Limited,1000171,Res care-permanent - other,Third Party Payments,7003179129,13/03/2024,946.48
Buckinghamshire Council,Adults and Health,Ambient Support Limited,1000171,Res care-permanent - other,Third Party Payments,7003179129,13/03/2024,2366.2
Buckinghamshire Council,Adults and Health,Ambient Support Limited,1000171,Res care-permanent - other,Third Party Payments,7003179129,13/03/2024,946.48
Buckinghamshire Council,Adults and Health,Ambient Support Limited,1000171,Res care-permanent - other,Third Party Payments,7003179129,13/03/2024,2366.2
Buckinghamshire Council,Adults and Health,Ambient Support Limited,1000171,Res care-permanent - other,Third Party Payments,7003179129,13/03/2024,946.48
Buckinghamshire Council,Adults and Health,Ambient Support Limited,1000171,Res care-permanent - other,Third Party Payments,7003179129,13/03/2024,2366.2
Buckinghamshire Council,Adults and Health,Ambient Support Limited,1000171,Res care-permanent - other,Third Party Payments,7003179129,13/03/2024,946.48
Buckinghamshire Council,Adults and Health,Ambient Support Limited,1000171,Residential  Care-Permanent Block - Othe,Third Party Payments,7003179129,13/03/2024,9464.8
Buckinghamshire Council,Adults and Health,Ambient Support Limited,1000171,Residential  Care-Permanent Block - Othe,Third Party Payments,7003179129,13/03/2024,2839.44
Buckinghamshire Council,Adults and Health,Ambient Support Limited,1000171,Res care-permanent - other,Third Party Payments,7003179129,13/03/2024,3959
Buckinghamshire Council,Adults and Health,Ambient Support Limited,1000171,Res-Perm EMI-Other - Exp,Third Party Payments,7003179129,13/03/2024,-2395.44
Buckinghamshire Council,Adults and Health,Ambient Support Limited,1000171,Residential  Care-Permanent Block - Othe,Third Party Payments,7003179129,13/03/2024,2395.44
Buckinghamshire Council,Adults and Health,Ambient Support Limited,1000171,Residential  Care-Permanent Block - Othe,Third Party Payments,7003179129,13/03/2024,-665.4
Buckinghamshire Council,Adults and Health,Ambient Support Limited,1000171,Res-Perm EMI-Other - Exp,Third Party Payments,7003179129,13/03/2024,1463.88
Buckinghamshire Council,Adults and Health,Ambient Support Limited,1000171,Res-Perm EMI-Other - Exp,Third Party Payments,7003179129,13/03/2024,-1463.88
Buckinghamshire Council,Adults and Health,Ambient Support Limited,1000171,Res-Perm EMI-Other - Exp,Third Party Payments,7003179129,13/03/2024,1463.88
Buckinghamshire Council,Adults and Health,Ambient Support Limited,1000171,Res-Perm EMI-Other - Exp,Third Party Payments,7003179129,13/03/2024,-1463.88
Buckinghamshire Council,Adults and Health,Ambient Support Limited,1000171,Res-Perm EMI-Other - Exp,Third Party Payments,7003179129,13/03/2024,1463.88
Buckinghamshire Council,Adults and Health,Ambient Support Limited,1000171,Res-Perm EMI-Other - Exp,Third Party Payments,7003179129,13/03/2024,-1463.88
Buckinghamshire Council,Adults and Health,Ambient Support Limited,1000171,Res-Perm EMI-Other - Exp,Third Party Payments,7003179129,13/03/2024,1463.88
Buckinghamshire Council,Adults and Health,Ambient Support Limited,1000171,Res-Perm EMI-Other - Exp,Third Party Payments,7003179129,13/03/2024,-1463.88
Buckinghamshire Council,Adults and Health,Ambient Support Limited,1000171,Res-Perm EMI-Other - Exp,Third Party Payments,7003179129,13/03/2024,1463.88
Buckinghamshire Council,Adults and Health,Ambient Support Limited,1000171,Res-Perm EMI-Other - Exp,Third Party Payments,7003179129,13/03/2024,-1463.88
Buckinghamshire Council,Adults and Health,Ambient Support Limited,1000171,Res-Perm EMI-Other - Exp,Third Party Payments,7003179129,13/03/2024,1463.88
Buckinghamshire Council,Adults and Health,Ambient Support Limited,1000171,Res-Perm EMI-Other - Exp,Third Party Payments,7003179129,13/03/2024,-1463.88
Buckinghamshire Council,Adults and Health,Ambient Support Limited,1000171,Res-Perm EMI-Other - Exp,Third Party Payments,7003179129,13/03/2024,1463.88
Buckinghamshire Council,Adults and Health,Ambient Support Limited,1000171,Res-Perm EMI-Other - Exp,Third Party Payments,7003179129,13/03/2024,-1463.88
Buckinghamshire Council,Adults and Health,Ambient Support Limited,1000171,Res-Perm EMI-Other - Exp,Third Party Payments,7003179129,13/03/2024,1463.88
Buckinghamshire Council,Adults and Health,Ambient Support Limited,1000171,Res-Perm EMI-Other - Exp,Third Party Payments,7003179129,13/03/2024,-1463.88
Buckinghamshire Council,Adults and Health,Ambient Support Limited,1000171,Res-Perm EMI-Other - Exp,Third Party Payments,7003179129,13/03/2024,1463.88
Buckinghamshire Council,Adults and Health,Ambient Support Limited,1000171,Res-Perm EMI-Other - Exp,Third Party Payments,7003179129,13/03/2024,-1463.88
Buckinghamshire Council,Adults and Health,Ambient Support Limited,1000171,Res-Perm EMI-Other - Exp,Third Party Payments,7003179129,13/03/2024,1463.88
Buckinghamshire Council,Adults and Health,Ambient Support Limited,1000171,Res-Perm EMI-Other - Exp,Third Party Payments,7003179129,13/03/2024,-1463.88
Buckinghamshire Council,Adults and Health,Ambient Support Limited,1000171,Res-Perm EMI-Other - Exp,Third Party Payments,7003179129,13/03/2024,1463.88
Buckinghamshire Council,Adults and Health,Ambient Support Limited,1000171,Res-Perm EMI-Other - Exp,Third Party Payments,7003179129,13/03/2024,-1463.88
Buckinghamshire Council,Adults and Health,Ambient Support Limited,1000171,Res-Perm EMI-Other - Exp,Third Party Payments,7003179129,13/03/2024,1463.88
Buckinghamshire Council,Adults and Health,Ambient Support Limited,1000171,Res-Perm EMI-Other - Exp,Third Party Payments,7003179129,13/03/2024,-1463.88
Buckinghamshire Council,Adults and Health,Ambient Support Limited,1000171,Res-Perm EMI-Other - Exp,Third Party Payments,7003179129,13/03/2024,1463.88
Buckinghamshire Council,Adults and Health,Ambient Support Limited,1000171,Res-Perm EMI-Other - Exp,Third Party Payments,7003179129,13/03/2024,-1463.88
Buckinghamshire Council,Adults and Health,Ambient Support Limited,1000171,Res-Perm EMI-Other - Exp,Third Party Payments,7003179129,13/03/2024,1463.88
Buckinghamshire Council,Adults and Health,Ambient Support Limited,1000171,Res-Perm EMI-Other - Exp,Third Party Payments,7003179129,13/03/2024,-1463.88
Buckinghamshire Council,Adults and Health,Ambient Support Limited,1000171,Res-Perm EMI-Other - Exp,Third Party Payments,7003179129,13/03/2024,1463.88
Buckinghamshire Council,Adults and Health,Ambient Support Limited,1000171,Res-Perm EMI-Other - Exp,Third Party Payments,7003179129,13/03/2024,-1463.88
Buckinghamshire Council,Adults and Health,Ambient Support Limited,1000171,Res-Perm EMI-Other - Exp,Third Party Payments,7003179129,13/03/2024,1463.88
Buckinghamshire Council,Adults and Health,Ambient Support Limited,1000171,Res-Perm EMI-Other - Exp,Third Party Payments,7003179129,13/03/2024,-1463.88
Buckinghamshire Council,Adults and Health,Ambient Support Limited,1000171,Res-Perm EMI-Other - Exp,Third Party Payments,7003179129,13/03/2024,532.32
Buckinghamshire Council,Adults and Health,Ambient Support Limited,1000171,Res-Perm EMI-Other - Exp,Third Party Payments,7003179129,13/03/2024,-1463.88
Buckinghamshire Council,Adults and Health,Ambient Support Limited,1000171,Res-Perm EMI-Other - Exp,Third Party Payments,7003179129,13/03/2024,1463.88
Buckinghamshire Council,Adults and Health,Ambient Support Limited,1000171,Res-Perm EMI-Other - Exp,Third Party Payments,7003179129,13/03/2024,-1463.88
Buckinghamshire Council,Adults and Health,Ambient Support Limited,1000171,Res-Perm EMI-Other - Exp,Third Party Payments,7003179129,13/03/2024,1463.88
Buckinghamshire Council,Adults and Health,Ambient Support Limited,1000171,Res-Perm EMI-Other - Exp,Third Party Payments,7003179129,13/03/2024,-1463.88
Buckinghamshire Council,Adults and Health,Ambient Support Limited,1000171,Res-Perm EMI-Other - Exp,Third Party Payments,7003179129,13/03/2024,-1463.88
Buckinghamshire Council,Adults and Health,Ambient Support Limited,1000171,Res-Perm EMI-Other - Exp,Third Party Payments,7003179129,13/03/2024,1463.88
Buckinghamshire Council,Adults and Health,Ambient Support Limited,1000171,Res-Perm EMI-Other - Exp,Third Party Payments,7003179129,13/03/2024,1463.88
Buckinghamshire Council,Adults and Health,Ambient Support Limited,1000171,Res-Perm EMI-Other - Exp,Third Party Payments,7003179129,13/03/2024,-1463.88
Buckinghamshire Council,Adults and Health,Ambient Support Limited,1000171,Res-Perm EMI-Other - Exp,Third Party Payments,7003179129,13/03/2024,1463.88
Buckinghamshire Council,Adults and Health,Ambient Support Limited,1000171,Res-Perm EMI-Other - Exp,Third Party Payments,7003179129,13/03/2024,-1463.88
Buckinghamshire Council,Adults and Health,Ambient Support Limited,1000171,Res-Perm EMI-Other - Exp,Third Party Payments,7003179129,13/03/2024,1463.88
Buckinghamshire Council,Adults and Health,Ambient Support Limited,1000171,Res-Perm EMI-Other - Exp,Third Party Payments,7003179129,13/03/2024,-1463.88
Buckinghamshire Council,Adults and Health,Ambient Support Limited,1000171,Res-Perm EMI-Other - Exp,Third Party Payments,7003179129,13/03/2024,1463.88
Buckinghamshire Council,Adults and Health,Ambient Support Limited,1000171,Res-Perm EMI-Other - Exp,Third Party Payments,7003179129,13/03/2024,1463.88
Buckinghamshire Council,Adults and Health,Ambient Support Limited,1000171,Res-Perm EMI-Other - Exp,Third Party Payments,7003179129,13/03/2024,1463.88
Buckinghamshire Council,Adults and Health,Ambient Support Limited,1000171,Res-Perm EMI-Other - Exp,Third Party Payments,7003179129,13/03/2024,1463.88
Buckinghamshire Council,Adults and Health,Ambient Support Limited,1000171,Res-Perm EMI-Other - Exp,Third Party Payments,7003179129,13/03/2024,1463.88
Buckinghamshire Council,Adults and Health,Ambient Support Limited,1000171,Res-Perm EMI-Other - Exp,Third Party Payments,7003179129,13/03/2024,1463.88
Buckinghamshire Council,Adults and Health,Ambient Support Limited,1000171,Res-Perm EMI-Other - Exp,Third Party Payments,7003179129,13/03/2024,1463.88
Buckinghamshire Council,Adults and Health,Ambient Support Limited,1000171,Res-Perm EMI-Other - Exp,Third Party Payments,7003179129,13/03/2024,1463.88
Buckinghamshire Council,Adults and Health,Ambient Support Limited,1000171,Res-Perm EMI-Other - Exp,Third Party Payments,7003179129,13/03/2024,1463.88
Buckinghamshire Council,Adults and Health,Ambient Support Limited,1000171,Res-Perm EMI-Other - Exp,Third Party Payments,7003179129,13/03/2024,1463.88
Buckinghamshire Council,Adults and Health,Ambient Support Limited,1000171,Res-Perm EMI-Other - Exp,Third Party Payments,7003179129,13/03/2024,1463.88
Buckinghamshire Council,Adults and Health,Ambient Support Limited,1000171,Res-Perm EMI-Other - Exp,Third Party Payments,7003179129,13/03/2024,1463.88
Buckinghamshire Council,Adults and Health,Ambient Support Limited,1000171,Res-Perm EMI-Other - Exp,Third Party Payments,7003179129,13/03/2024,1463.88
Buckinghamshire Council,Adults and Health,Ambient Support Limited,1000171,Res-Perm EMI-Other - Exp,Third Party Payments,7003179129,13/03/2024,1463.88
Buckinghamshire Council,Adults and Health,Ambient Support Limited,1000171,Res-Perm EMI-Other - Exp,Third Party Payments,7003179129,13/03/2024,1463.88
Buckinghamshire Council,Adults and Health,Ambient Support Limited,1000171,Res-Perm EMI-Other - Exp,Third Party Payments,7003179129,13/03/2024,1463.88
Buckinghamshire Council,Adults and Health,Ambient Support Limited,1000171,Res-Perm EMI-Other - Exp,Third Party Payments,7003179129,13/03/2024,1463.88
Buckinghamshire Council,Adults and Health,Ambient Support Limited,1000171,Res-Perm EMI-Other - Exp,Third Party Payments,7003179129,13/03/2024,1463.88
Buckinghamshire Council,Adults and Health,Ambient Support Limited,1000171,Res-Perm EMI-Other - Exp,Third Party Payments,7003179129,13/03/2024,1463.88
Buckinghamshire Council,Adults and Health,Ambient Support Limited,1000171,Res-Perm EMI-Other - Exp,Third Party Payments,7003179129,13/03/2024,1463.88
Buckinghamshire Council,Adults and Health,Ambient Support Limited,1000171,Res-Perm EMI-Other - Exp,Third Party Payments,7003179129,13/03/2024,1463.88
Buckinghamshire Council,Adults and Health,Ambient Support Limited,1000171,Res-Perm EMI-Other - Exp,Third Party Payments,7003179129,13/03/2024,1463.88
Buckinghamshire Council,Adults and Health,Ambient Support Limited,1000171,Residential  Care-Permanent Block - Othe,Third Party Payments,7003179129,13/03/2024,3859.32
Buckinghamshire Council,Adults and Health,Ambient Support Limited,1000171,Residential  Care-Permanent Block - Othe,Third Party Payments,7003179129,13/03/2024,4391.64
Buckinghamshire Council,Adults and Health,Ambient Support Limited,1000171,Res-Perm EMI-Other - Exp,Third Party Payments,7003179129,13/03/2024,-3726.24
Buckinghamshire Council,Adults and Health,Ambient Support Limited,1000171,Res-Perm EMI-Other - Exp,Third Party Payments,7003179129,13/03/2024,2262.36
Buckinghamshire Council,Adults and Health,Ambient Support Limited,1000171,Res-Perm EMI-Other - Exp,Third Party Payments,7003179129,13/03/2024,2262.36
Buckinghamshire Council,Adults and Health,Ambient Support Limited,1000171,Res-Perm EMI-Other - Exp,Third Party Payments,7003179129,13/03/2024,2262.36
Buckinghamshire Council,Adults and Health,Ambient Support Limited,1000171,Res-Perm EMI-Other - Exp,Third Party Payments,7003179129,13/03/2024,2262.36
Buckinghamshire Council,Adults and Health,Ambient Support Limited,1000171,Res-Perm EMI-Other - Exp,Third Party Payments,7003179129,13/03/2024,2262.36
Buckinghamshire Council,Adults and Health,Ambient Support Limited,1000171,Res-Perm EMI-Other - Exp,Third Party Payments,7003179129,13/03/2024,2262.36
Buckinghamshire Council,Adults and Health,Ambient Support Limited,1000171,Res-Perm EMI-Other - Exp,Third Party Payments,7003179129,13/03/2024,2262.36
Buckinghamshire Council,Adults and Health,Ambient Support Limited,1000171,Res-Perm EMI-Other - Exp,Third Party Payments,7003179129,13/03/2024,2262.36
Buckinghamshire Council,Adults and Health,Ambient Support Limited,1000171,Res-Perm EMI-Other - Exp,Third Party Payments,7003179129,13/03/2024,2262.36
Buckinghamshire Council,Adults and Health,Ambient Support Limited,1000171,Res-Perm EMI-Other - Exp,Third Party Payments,7003179129,13/03/2024,2262.36
Buckinghamshire Council,Adults and Health,Ambient Support Limited,1000171,Res-Perm EMI-Other - Exp,Third Party Payments,7003179129,13/03/2024,2262.36
Buckinghamshire Council,Adults and Health,Ambient Support Limited,1000171,Res-Perm EMI-Other - Exp,Third Party Payments,7003179129,13/03/2024,2262.36
Buckinghamshire Council,Adults and Health,Ambient Support Limited,1000171,Res-Perm EMI-Other - Exp,Third Party Payments,7003179129,13/03/2024,2262.36
Buckinghamshire Council,Adults and Health,Ambient Support Limited,1000171,Res-Perm EMI-Other - Exp,Third Party Payments,7003179129,13/03/2024,2262.36
Buckinghamshire Council,Adults and Health,Ambient Support Limited,1000171,Res-Perm EMI-Other - Exp,Third Party Payments,7003179129,13/03/2024,2262.36
Buckinghamshire Council,Adults and Health,Ambient Support Limited,1000171,Res-Perm EMI-Other - Exp,Third Party Payments,7003179129,13/03/2024,2262.36
Buckinghamshire Council,Adults and Health,Ambient Support Limited,1000171,Res-Perm EMI-Other - Exp,Third Party Payments,7003179129,13/03/2024,2262.36
Buckinghamshire Council,Adults and Health,Ambient Support Limited,1000171,Res-Perm EMI-Other - Exp,Third Party Payments,7003179129,13/03/2024,2262.36
Buckinghamshire Council,Adults and Health,Ambient Support Limited,1000171,Res-Perm EMI-Other - Exp,Third Party Payments,7003179129,13/03/2024,2262.36
Buckinghamshire Council,Adults and Health,Ambient Support Limited,1000171,Res-Perm EMI-Other - Exp,Third Party Payments,7003179129,13/03/2024,2262.36
Buckinghamshire Council,Adults and Health,Ambient Support Limited,1000171,Res-Perm EMI-Other - Exp,Third Party Payments,7003179129,13/03/2024,2262.36
Buckinghamshire Council,Adults and Health,Ambient Support Limited,1000171,Res-Perm EMI-Other - Exp,Third Party Payments,7003179129,13/03/2024,2262.36
Buckinghamshire Council,Adults and Health,Ambient Support Limited,1000171,Residential  Care-Permanent Block - Othe,Third Party Payments,7003179129,13/03/2024,9049.44
Buckinghamshire Council,Adults and Health,Ambient Support Limited,1000171,Res care-permanent - other,Controllable Customer & Client Receipts,7003179129,13/03/2024,-1350.36
Buckinghamshire Council,Adults and Health,Ambient Support Limited,1000171,Res care-permanent - other,Controllable Customer & Client Receipts,7003179129,13/03/2024,-3726.24
Buckinghamshire Council,Adults and Health,Ambient Support Limited,1000171,Res care-permanent - other,Controllable Customer & Client Receipts,7003179129,13/03/2024,-617.4
Buckinghamshire Council,Adults and Health,Ambient Support Limited,1000171,Res care-permanent - other,Controllable Customer & Client Receipts,7003179129,13/03/2024,-630.08
Buckinghamshire Council,Adults and Health,Ambient Support Limited,1000171,Res care-permanent - other,Controllable Customer & Client Receipts,7003179129,13/03/2024,-1195.72
Buckinghamshire Council,Adults and Health,Ambient Support Limited,1000171,Res care-permanent - other,Controllable Customer & Client Receipts,7003179129,13/03/2024,-627.72
Buckinghamshire Council,Adults and Health,Ambient Support Limited,1000171,Res care-permanent - other,Controllable Customer & Client Receipts,7003179129,13/03/2024,-1291
Buckinghamshire Council,Adults and Health,Ambient Support Limited,1000171,Res care-permanent - other,Controllable Customer & Client Receipts,7003179129,13/03/2024,-1705.16
Buckinghamshire Council,Adults and Health,Ambient Support Limited,1000171,Res care-permanent - other,Controllable Customer & Client Receipts,7003179129,13/03/2024,-272.88
Buckinghamshire Council,Adults and Health,Ambient Support Limited,1000171,Res care-permanent - other,Controllable Customer & Client Receipts,7003179129,13/03/2024,-927.28
Buckinghamshire Council,Adults and Health,Ambient Support Limited,1000171,Res care-permanent - other,Controllable Customer & Client Receipts,7003179129,13/03/2024,-1380.44
Buckinghamshire Council,Adults and Health,Ambient Support Limited,1000171,Res care-permanent - other,Controllable Customer & Client Receipts,7003179129,13/03/2024,-855.2
Buckinghamshire Council,Adults and Health,Ambient Support Limited,1000171,Res care-permanent - other,Controllable Customer & Client Receipts,7003179129,13/03/2024,-823.16
Buckinghamshire Council,Adults and Health,Ambient Support Limited,1000171,Res care-permanent - other,Controllable Customer & Client Receipts,7003179129,13/03/2024,-643.08
Buckinghamshire Council,Adults and Health,Ambient Support Limited,1000171,Res care-permanent - other,Controllable Customer & Client Receipts,7003179129,13/03/2024,-1345.52
Buckinghamshire Council,Adults and Health,Ambient Support Limited,1000171,Res care-permanent - other,Controllable Customer & Client Receipts,7003179129,13/03/2024,-596.4
Buckinghamshire Council,Adults and Health,Ambient Support Limited,1000171,Res care-permanent - other,Controllable Customer & Client Receipts,7003179129,13/03/2024,-617.4
Buckinghamshire Council,Adults and Health,Ambient Support Limited,1000171,Res care-permanent - other,Controllable Customer & Client Receipts,7003179129,13/03/2024,-684.24
Buckinghamshire Council,Adults and Health,Ambient Support Limited,1000171,Res care-permanent - other,Controllable Customer & Client Receipts,7003179129,13/03/2024,-719.24
Buckinghamshire Council,Adults and Health,Ambient Support Limited,1000171,Res care-permanent - other,Controllable Customer & Client Receipts,7003179129,13/03/2024,-866.64
Buckinghamshire Council,Adults and Health,Ambient Support Limited,1000171,Res care-permanent - other,Controllable Customer & Client Receipts,7003179129,13/03/2024,-710.56
Buckinghamshire Council,Adults and Health,Ambient Support Limited,1000171,Res care-permanent - other,Controllable Customer & Client Receipts,7003179129,13/03/2024,-915.52
Buckinghamshire Council,Adults and Health,Ambient Support Limited,1000171,Res care-permanent - other,Controllable Customer & Client Receipts,7003179129,13/03/2024,-617.4
Buckinghamshire Council,Adults and Health,Ambient Support Limited,1000171,Res care-permanent - other,Controllable Customer & Client Receipts,7003179129,13/03/2024,-1265.52
Buckinghamshire Council,Adults and Health,Ambient Support Limited,1000171,Res care-permanent - other,Controllable Customer & Client Receipts,7003179129,13/03/2024,-1075.36
Buckinghamshire Council,Adults and Health,Ambient Support Limited,1000171,Res care-permanent - other,Controllable Customer & Client Receipts,7003179129,13/03/2024,-1051.28
Buckinghamshire Council,Adults and Health,Ambient Support Limited,1000171,Res care-permanent - other,Controllable Customer & Client Receipts,7003179129,13/03/2024,-1075.96
Buckinghamshire Council,Adults and Health,Ambient Support Limited,1000171,Res care-permanent - other,Controllable Customer & Client Receipts,7003179129,13/03/2024,-1675.48
Buckinghamshire Council,Adults and Health,Ambient Support Limited,1000171,Res care-permanent - other,Controllable Customer & Client Receipts,7003179129,13/03/2024,-722.72
Buckinghamshire Council,Adults and Health,Ambient Support Limited,1000171,Res care-permanent - other,Controllable Customer & Client Receipts,7003179129,13/03/2024,-465.52
Buckinghamshire Council,Adults and Health,Ambient Support Limited,1000171,Res care-permanent - other,Controllable Customer & Client Receipts,7003179129,13/03/2024,-1088.48
Buckinghamshire Council,Adults and Health,Ambient Support Limited,1000171,Res care-permanent - other,Controllable Customer & Client Receipts,7003179129,13/03/2024,-1249.24
Buckinghamshire Council,Adults and Health,Ambient Support Limited,1000171,Res care-permanent - other,Controllable Customer & Client Receipts,7003179129,13/03/2024,-1088.88
Buckinghamshire Council,Adults and Health,Ambient Support Limited,1000171,Res care-permanent - other,Controllable Customer & Client Receipts,7003179129,13/03/2024,-1068.44
Buckinghamshire Council,Adults and Health,Ambient Support Limited,1000171,Res care-permanent - other,Controllable Customer & Client Receipts,7003179129,13/03/2024,-1509.64
Buckinghamshire Council,Adults and Health,Ambient Support Limited,1000171,Res care-permanent - other,Controllable Customer & Client Receipts,7003179129,13/03/2024,-197.48
Buckinghamshire Council,Adults and Health,Ambient Support Limited,1000171,Res care-permanent - other,Controllable Customer & Client Receipts,7003179129,13/03/2024,-1920.56
Buckinghamshire Council,Adults and Health,Ambient Support Limited,1000171,Res care-permanent - other,Controllable Customer & Client Receipts,7003179129,13/03/2024,-1458.36
Buckinghamshire Council,Adults and Health,Ambient Support Limited,1000171,Res care-permanent - other,Controllable Customer & Client Receipts,7003179129,13/03/2024,-785.48
Buckinghamshire Council,Adults and Health,Ambient Support Limited,1000171,Res care-permanent - other,Controllable Customer & Client Receipts,7003179129,13/03/2024,-124.52
Buckinghamshire Council,Adults and Health,Ambient Support Limited,1000171,Res care-permanent - other,Controllable Customer & Client Receipts,7003179129,13/03/2024,-84.5
Buckinghamshire Council,Adults and Health,Ambient Support Limited,1000171,Res care-permanent - other,Controllable Customer & Client Receipts,7003179129,13/03/2024,84.5
Buckinghamshire Council,Adults and Health,Ambient Support Limited,1000171,Res care-permanent - other,Controllable Customer & Client Receipts,7003179129,13/03/2024,124.52
Buckinghamshire Council,Adults and Health,Ambient Support Limited,1000171,Res care-permanent - other,Controllable Customer & Client Receipts,7003179129,13/03/2024,474.03
Buckinghamshire Council,Adults and Health,Ambient Support Limited,1000171,Nursing care-permanent -other,Third Party Payments,7003179130,13/03/2024,3323.6
Buckinghamshire Council,Adults and Health,Ambient Support Limited,1000171,Nursing care-permanent -other,Third Party Payments,7003179130,13/03/2024,3323.6
Buckinghamshire Council,Adults and Health,Ambient Support Limited,1000171,Nursing care-permanent -other,Third Party Payments,7003179130,13/03/2024,3323.6
Buckinghamshire Council,Adults and Health,Ambient Support Limited,1000171,Nursing care-permanent -other,Third Party Payments,7003179130,13/03/2024,3323.6
Buckinghamshire Council,Adults and Health,Ambient Support Limited,1000171,Nursing care-permanent -other,Third Party Payments,7003179130,13/03/2024,3323.6
Buckinghamshire Council,Adults and Health,Ambient Support Limited,1000171,Nursing care-permanent -other,Third Party Payments,7003179130,13/03/2024,3323.6
Buckinghamshire Council,Adults and Health,Ambient Support Limited,1000171,Nursing care-permanent -other,Third Party Payments,7003179130,13/03/2024,3323.6
Buckinghamshire Council,Adults and Health,Ambient Support Limited,1000171,Nursing care-permanent -other,Third Party Payments,7003179130,13/03/2024,3323.6
Buckinghamshire Council,Adults and Health,Ambient Support Limited,1000171,Nursing care-permanent -other,Third Party Payments,7003179130,13/03/2024,3323.6
Buckinghamshire Council,Adults and Health,Ambient Support Limited,1000171,Nursing care-permanent -other,Third Party Payments,7003179130,13/03/2024,3323.6
Buckinghamshire Council,Adults and Health,Ambient Support Limited,1000171,Nursing care-permanent -other,Third Party Payments,7003179130,13/03/2024,3323.6
Buckinghamshire Council,Adults and Health,Ambient Support Limited,1000171,Nursing care-permanent -other,Third Party Payments,7003179130,13/03/2024,3323.6
Buckinghamshire Council,Adults and Health,Ambient Support Limited,1000171,Nursing care-permanent -other,Third Party Payments,7003179130,13/03/2024,3323.6
Buckinghamshire Council,Adults and Health,Ambient Support Limited,1000171,Nursing care-permanent -other,Third Party Payments,7003179130,13/03/2024,3323.6
Buckinghamshire Council,Adults and Health,Ambient Support Limited,1000171,Nursing care-permanent -other,Third Party Payments,7003179130,13/03/2024,3323.6
Buckinghamshire Council,Adults and Health,Ambient Support Limited,1000171,Nursing care-permanent -other,Third Party Payments,7003179130,13/03/2024,3323.6
Buckinghamshire Council,Adults and Health,Ambient Support Limited,1000171,Nursing care-permanent -other,Third Party Payments,7003179130,13/03/2024,3323.6
Buckinghamshire Council,Adults and Health,Ambient Support Limited,1000171,Nursing care-permanent -other,Third Party Payments,7003179130,13/03/2024,3323.6
Buckinghamshire Council,Adults and Health,Ambient Support Limited,1000171,Nursing care-permanent -other,Third Party Payments,7003179130,13/03/2024,118.7
Buckinghamshire Council,Adults and Health,Ambient Support Limited,1000171,Nursing care-permanent -other,Third Party Payments,7003179130,13/03/2024,3323.6
Buckinghamshire Council,Adults and Health,Ambient Support Limited,1000171,Nursing care-permanent -other,Third Party Payments,7003179130,13/03/2024,3323.6
Buckinghamshire Council,Adults and Health,Ambient Support Limited,1000171,Nursing care-permanent -other,Third Party Payments,7003179130,13/03/2024,3323.6
Buckinghamshire Council,Adults and Health,Ambient Support Limited,1000171,Nursing care-permanent -other,Third Party Payments,7003179130,13/03/2024,3323.6
Buckinghamshire Council,Adults and Health,Ambient Support Limited,1000171,Nursing care-permanent -other,Third Party Payments,7003179130,13/03/2024,3323.6
Buckinghamshire Council,Adults and Health,Ambient Support Limited,1000171,Nursing care-permanent -other,Third Party Payments,7003179130,13/03/2024,3323.6
Buckinghamshire Council,Adults and Health,Ambient Support Limited,1000171,Nursing care-permanent -other,Third Party Payments,7003179130,13/03/2024,3323.6
Buckinghamshire Council,Adults and Health,Ambient Support Limited,1000171,Nursing care-permanent -other,Third Party Payments,7003179130,13/03/2024,3323.6
Buckinghamshire Council,Adults and Health,Ambient Support Limited,1000171,Nursing care-permanent -other,Third Party Payments,7003179130,13/03/2024,3323.6
Buckinghamshire Council,Adults and Health,Ambient Support Limited,1000171,Nursing care-permanent block- other,Third Party Payments,7003179130,13/03/2024,7003.3
Buckinghamshire Council,Adults and Health,Ambient Support Limited,1000171,Res-Perm EMI-Other - Exp,Third Party Payments,7003179130,13/03/2024,4066
Buckinghamshire Council,Adults and Health,Ambient Support Limited,1000171,Res-Perm EMI-Other - Exp,Third Party Payments,7003179130,13/03/2024,3853.12
Buckinghamshire Council,Adults and Health,Ambient Support Limited,1000171,Res-Perm EMI-Other - Exp,Third Party Payments,7003179130,13/03/2024,3726.24
Buckinghamshire Council,Adults and Health,Ambient Support Limited,1000171,Res-Perm EMI-Other - Exp,Third Party Payments,7003179130,13/03/2024,5500
Buckinghamshire Council,Adults and Health,Ambient Support Limited,1000171,Nursing care-permanent -other,Third Party Payments,7003179130,13/03/2024,356.1
Buckinghamshire Council,Adults and Health,Ambient Support Limited,1000171,Nursing care-permanent -other,Third Party Payments,7003179130,13/03/2024,3323.6
Buckinghamshire Council,Adults and Health,Ambient Support Limited,1000171,Nursing care-permanent block- other,Third Party Payments,7003179130,13/03/2024,-356.1
Buckinghamshire Council,Adults and Health,Ambient Support Limited,1000171,Res care-permanent - other,Third Party Payments,7003179130,13/03/2024,3312.68
Buckinghamshire Council,Adults and Health,Ambient Support Limited,1000171,Res care-permanent - other,Third Party Payments,7003179130,13/03/2024,3312.68
Buckinghamshire Council,Adults and Health,Ambient Support Limited,1000171,Res care-permanent - other,Third Party Payments,7003179130,13/03/2024,3312.68
Buckinghamshire Council,Adults and Health,Ambient Support Limited,1000171,Res care-permanent - other,Third Party Payments,7003179130,13/03/2024,3312.68
Buckinghamshire Council,Adults and Health,Ambient Support Limited,1000171,Res care-permanent - other,Third Party Payments,7003179130,13/03/2024,3312.68
Buckinghamshire Council,Adults and Health,Ambient Support Limited,1000171,Res care-permanent - other,Third Party Payments,7003179130,13/03/2024,3312.68
Buckinghamshire Council,Adults and Health,Ambient Support Limited,1000171,Res care-permanent - other,Third Party Payments,7003179130,13/03/2024,3312.68
Buckinghamshire Council,Adults and Health,Ambient Support Limited,1000171,Res care-permanent - other,Third Party Payments,7003179130,13/03/2024,3312.68
Buckinghamshire Council,Adults and Health,Ambient Support Limited,1000171,Res care-permanent - other,Third Party Payments,7003179130,13/03/2024,3312.68
Buckinghamshire Council,Adults and Health,Ambient Support Limited,1000171,Res care-permanent - other,Third Party Payments,7003179130,13/03/2024,3312.68
Buckinghamshire Council,Adults and Health,Ambient Support Limited,1000171,Res care-permanent - other,Third Party Payments,7003179130,13/03/2024,3312.68
Buckinghamshire Council,Adults and Health,Ambient Support Limited,1000171,Res care-permanent - other,Third Party Payments,7003179130,13/03/2024,3312.68
Buckinghamshire Council,Adults and Health,Ambient Support Limited,1000171,Res care-permanent - other,Third Party Payments,7003179130,13/03/2024,3312.68
Buckinghamshire Council,Adults and Health,Ambient Support Limited,1000171,Residential  Care-Permanent Block - Othe,Third Party Payments,7003179130,13/03/2024,6625.36
Buckinghamshire Council,Adults and Health,Ambient Support Limited,1000171,Res care-permanent - other,Third Party Payments,7003179130,13/03/2024,3312.68
Buckinghamshire Council,Adults and Health,Ambient Support Limited,1000171,Nursing care-permanent -other,Third Party Payments,7003179130,13/03/2024,2848.8
Buckinghamshire Council,Adults and Health,Ambient Support Limited,1000171,Nursing care-permanent -other,Controllable Customer & Client Receipts,7003179130,13/03/2024,-822.88
Buckinghamshire Council,Adults and Health,Ambient Support Limited,1000171,Nursing care-permanent -other,Controllable Customer & Client Receipts,7003179130,13/03/2024,-1010.8
Buckinghamshire Council,Adults and Health,Ambient Support Limited,1000171,Nursing care-permanent -other,Controllable Customer & Client Receipts,7003179130,13/03/2024,-670.6
Buckinghamshire Council,Adults and Health,Ambient Support Limited,1000171,Nursing care-permanent -other,Controllable Customer & Client Receipts,7003179130,13/03/2024,-405
Buckinghamshire Council,Adults and Health,Ambient Support Limited,1000171,Nursing care-permanent -other,Controllable Customer & Client Receipts,7003179130,13/03/2024,-852.92
Buckinghamshire Council,Adults and Health,Ambient Support Limited,1000171,Nursing care-permanent -other,Controllable Customer & Client Receipts,7003179130,13/03/2024,-1199.04
Buckinghamshire Council,Adults and Health,Ambient Support Limited,1000171,Nursing care-permanent -other,Controllable Customer & Client Receipts,7003179130,13/03/2024,-727.52
Buckinghamshire Council,Adults and Health,Ambient Support Limited,1000171,Nursing care-permanent -other,Controllable Customer & Client Receipts,7003179130,13/03/2024,-712.8
Buckinghamshire Council,Adults and Health,Ambient Support Limited,1000171,Nursing care-permanent -other,Controllable Customer & Client Receipts,7003179130,13/03/2024,-1337.12
Buckinghamshire Council,Adults and Health,Ambient Support Limited,1000171,Nursing care-permanent -other,Controllable Customer & Client Receipts,7003179130,13/03/2024,-702.4
Buckinghamshire Council,Adults and Health,Ambient Support Limited,1000171,Nursing care-permanent -other,Controllable Customer & Client Receipts,7003179130,13/03/2024,-263.04
Buckinghamshire Council,Adults and Health,Ambient Support Limited,1000171,Nursing care-permanent -other,Controllable Customer & Client Receipts,7003179130,13/03/2024,-691.2
Buckinghamshire Council,Adults and Health,Ambient Support Limited,1000171,Res care-permanent - other,Controllable Customer & Client Receipts,7003179130,13/03/2024,-1105.92
Buckinghamshire Council,Adults and Health,Ambient Support Limited,1000171,Res care-permanent - other,Controllable Customer & Client Receipts,7003179130,13/03/2024,-1524.28
Buckinghamshire Council,Adults and Health,Ambient Support Limited,1000171,Res care-permanent - other,Controllable Customer & Client Receipts,7003179130,13/03/2024,-720.44
Buckinghamshire Council,Adults and Health,Ambient Support Limited,1000171,Res care-permanent - other,Controllable Customer & Client Receipts,7003179130,13/03/2024,-2621.56
Buckinghamshire Council,Adults and Health,Ambient Support Limited,1000171,Res care-permanent - other,Controllable Customer & Client Receipts,7003179130,13/03/2024,-902.28
Buckinghamshire Council,Adults and Health,Ambient Support Limited,1000171,Res care-permanent - other,Controllable Customer & Client Receipts,7003179130,13/03/2024,-939.6
Buckinghamshire Council,Adults and Health,Ambient Support Limited,1000171,Res care-permanent - other,Controllable Customer & Client Receipts,7003179130,13/03/2024,-840.16
Buckinghamshire Council,Adults and Health,Ambient Support Limited,1000171,Res care-permanent - other,Controllable Customer & Client Receipts,7003179130,13/03/2024,-1200.4
Buckinghamshire Council,Adults and Health,Ambient Support Limited,1000171,Res care-permanent - other,Controllable Customer & Client Receipts,7003179130,13/03/2024,-823.32
Buckinghamshire Council,Adults and Health,Ambient Support Limited,1000171,Res care-permanent - other,Controllable Customer & Client Receipts,7003179130,13/03/2024,-766.4
Buckinghamshire Council,Adults and Health,Ambient Support Limited,1000171,Res care-permanent - other,Controllable Customer & Client Receipts,7003179130,13/03/2024,-1151.88
Buckinghamshire Council,Adults and Health,Ambient Support Limited,1000171,Res care-permanent - other,Controllable Customer & Client Receipts,7003179130,13/03/2024,-898.36
Buckinghamshire Council,Adults and Health,Ambient Support Limited,1000171,Res care-permanent - other,Controllable Customer & Client Receipts,7003179130,13/03/2024,-1300.56
Buckinghamshire Council,Adults and Health,Ambient Support Limited,1000171,Res care-permanent - other,Controllable Customer & Client Receipts,7003179130,13/03/2024,-782.6
Buckinghamshire Council,Adults and Health,Ambient Support Limited,1000171,Nursing care-permanent -other,Controllable Customer & Client Receipts,7003179130,13/03/2024,-960.8
Buckinghamshire Council,Adults and Health,Ambient Support Limited,1000171,Nursing care-permanent -other,Controllable Customer & Client Receipts,7003179130,13/03/2024,-546.52
Buckinghamshire Council,Adults and Health,Ambient Support Limited,1000171,Nursing care-permanent -other,Controllable Customer & Client Receipts,7003179130,13/03/2024,-930.44
Buckinghamshire Council,Adults and Health,Ambient Support Limited,1000171,Nursing care-permanent -other,Controllable Customer & Client Receipts,7003179130,13/03/2024,-1145.48
Buckinghamshire Council,Adults and Health,Ambient Support Limited,1000171,Nursing care-permanent -other,Controllable Customer & Client Receipts,7003179130,13/03/2024,-691.2
Buckinghamshire Council,Adults and Health,Ambient Support Limited,1000171,Nursing care-permanent -other,Controllable Customer & Client Receipts,7003179130,13/03/2024,-1896.48
Buckinghamshire Council,Adults and Health,Ambient Support Limited,1000171,Nursing care-permanent -other,Controllable Customer & Client Receipts,7003179130,13/03/2024,-977.32
Buckinghamshire Council,Adults and Health,Ambient Support Limited,1000171,Nursing care-permanent -other,Controllable Customer & Client Receipts,7003179130,13/03/2024,-639.8
Buckinghamshire Council,Adults and Health,Ambient Support Limited,1000171,Nursing care-permanent -other,Controllable Customer & Client Receipts,7003179130,13/03/2024,-1002.88
Buckinghamshire Council,Adults and Health,Ambient Support Limited,1000171,Nursing care-permanent -other,Controllable Customer & Client Receipts,7003179130,13/03/2024,-593.56
Buckinghamshire Council,Adults and Health,Ambient Support Limited,1000171,Nursing care-permanent -other,Controllable Customer & Client Receipts,7003179130,13/03/2024,-691.2
Buckinghamshire Council,Adults and Health,Ambient Support Limited,1000171,Nursing care-permanent -other,Controllable Customer & Client Receipts,7003179130,13/03/2024,-965.52
Buckinghamshire Council,Adults and Health,Ambient Support Limited,1000171,Res care-permanent - other,Controllable Customer & Client Receipts,7003179130,13/03/2024,-519.28
Buckinghamshire Council,Adults and Health,Ambient Support Limited,1000171,Res care-permanent - other,Controllable Customer & Client Receipts,7003179130,13/03/2024,-1459.96
Buckinghamshire Council,Adults and Health,Ambient Support Limited,1000171,Nursing care-permanent -other,Controllable Customer & Client Receipts,7003179130,13/03/2024,-853.8
Buckinghamshire Council,Adults and Health,Ambient Support Limited,1000171,Nursing care-permanent -other,Controllable Customer & Client Receipts,7003179130,13/03/2024,14.75
Buckinghamshire Council,Adults and Health,Ambient Support Limited,1000171,Nursing care-permanent -other,Controllable Customer & Client Receipts,7003179130,13/03/2024,3.82
Buckinghamshire Council,Adults and Health,Ambient Support Limited,1000171,Res care-permanent - other,Controllable Customer & Client Receipts,7003179130,13/03/2024,1573.86
Buckinghamshire Council,Adults and Health,Ambient Support Limited,1000171,Res care-permanent - other,Controllable Customer & Client Receipts,7003179130,13/03/2024,-374.64
Buckinghamshire Council,Adults and Health,Ambient Support Limited,1000171,Nursing care-permanent -other,Controllable Customer & Client Receipts,7003179130,13/03/2024,-131
Buckinghamshire Council,Adults and Health,Ambient Support Limited,1000171,Nursing care-permanent -other,Controllable Customer & Client Receipts,7003179130,13/03/2024,-1222.68
Buckinghamshire Council,Adults and Health,Ambient Support Limited,1000171,Nursing care-permanent -other,Controllable Customer & Client Receipts,7003179130,13/03/2024,-803.01
Buckinghamshire Council,Adults and Health,Ambient Support Limited,1000171,Res care-permanent - other,Third Party Payments,7003179131,13/03/2024,3312.68
Buckinghamshire Council,Adults and Health,Ambient Support Limited,1000171,Res care-permanent - other,Third Party Payments,7003179131,13/03/2024,3312.68
Buckinghamshire Council,Adults and Health,Ambient Support Limited,1000171,Res care-permanent - other,Third Party Payments,7003179131,13/03/2024,3312.68
Buckinghamshire Council,Adults and Health,Ambient Support Limited,1000171,Res care-permanent - other,Third Party Payments,7003179131,13/03/2024,3312.68
Buckinghamshire Council,Adults and Health,Ambient Support Limited,1000171,Res care-permanent - other,Third Party Payments,7003179131,13/03/2024,946.48
Buckinghamshire Council,Adults and Health,Ambient Support Limited,1000171,Res care-permanent - other,Third Party Payments,7003179131,13/03/2024,3312.68
Buckinghamshire Council,Adults and Health,Ambient Support Limited,1000171,Res-Perm EMI-Other - Exp,Third Party Payments,7003179131,13/03/2024,5171.04
Buckinghamshire Council,Adults and Health,Ambient Support Limited,1000171,Res-Perm EMI-Other - Exp,Third Party Payments,7003179131,13/03/2024,-1863.12
Buckinghamshire Council,Adults and Health,Ambient Support Limited,1000171,Res care-permanent - other,Third Party Payments,7003179131,13/03/2024,1656.34
Buckinghamshire Council,Adults and Health,Ambient Support Limited,1000171,Res care-permanent - other,Third Party Payments,7003179131,13/03/2024,354.93
Buckinghamshire Council,Adults and Health,Ambient Support Limited,1000171,Res-Perm EMI-Other - Exp,Third Party Payments,7003179131,13/03/2024,3726.24
Buckinghamshire Council,Adults and Health,Ambient Support Limited,1000171,Res-Perm EMI-Other - Exp,Third Party Payments,7003179131,13/03/2024,3726.24
Buckinghamshire Council,Adults and Health,Ambient Support Limited,1000171,Res-Perm EMI-Other - Exp,Third Party Payments,7003179131,13/03/2024,3726.24
Buckinghamshire Council,Adults and Health,Ambient Support Limited,1000171,Res-Perm EMI-Other - Exp,Third Party Payments,7003179131,13/03/2024,3726.24
Buckinghamshire Council,Adults and Health,Ambient Support Limited,1000171,Res care-permanent - other,Third Party Payments,7003179131,13/03/2024,3312.68
Buckinghamshire Council,Adults and Health,Ambient Support Limited,1000171,Res-Perm EMI-Other - Exp,Third Party Payments,7003179131,13/03/2024,3726.24
Buckinghamshire Council,Adults and Health,Ambient Support Limited,1000171,Res-Perm EMI-Other - Exp,Third Party Payments,7003179131,13/03/2024,3726.24
Buckinghamshire Council,Adults and Health,Ambient Support Limited,1000171,Res care-permanent - other,Third Party Payments,7003179131,13/03/2024,3312.68
Buckinghamshire Council,Adults and Health,Ambient Support Limited,1000171,Res-Perm EMI-Other - Exp,Third Party Payments,7003179131,13/03/2024,3726.24
Buckinghamshire Council,Adults and Health,Ambient Support Limited,1000171,Res-Perm EMI-Other - Exp,Third Party Payments,7003179131,13/03/2024,3726.24
Buckinghamshire Council,Adults and Health,Ambient Support Limited,1000171,Res-Perm EMI-Other - Exp,Third Party Payments,7003179131,13/03/2024,3726.24
Buckinghamshire Council,Adults and Health,Ambient Support Limited,1000171,Residential  Care-Permanent Block - Othe,Third Party Payments,7003179131,13/03/2024,-354.93
Buckinghamshire Council,Adults and Health,Ambient Support Limited,1000171,Residential  Care-Permanent Block - Othe,Third Party Payments,7003179131,13/03/2024,3726.24
Buckinghamshire Council,Adults and Health,Ambient Support Limited,1000171,Residential  Care-Permanent Block - Othe,Third Party Payments,7003179131,13/03/2024,2366.2
Buckinghamshire Council,Adults and Health,Ambient Support Limited,1000171,Res care-permanent - other,Controllable Customer & Client Receipts,7003179131,13/03/2024,-871.68
Buckinghamshire Council,Adults and Health,Ambient Support Limited,1000171,Res care-permanent - other,Controllable Customer & Client Receipts,7003179131,13/03/2024,-1267.36
Buckinghamshire Council,Adults and Health,Ambient Support Limited,1000171,Res care-permanent - other,Controllable Customer & Client Receipts,7003179131,13/03/2024,-842.4
Buckinghamshire Council,Adults and Health,Ambient Support Limited,1000171,Res care-permanent - other,Controllable Customer & Client Receipts,7003179131,13/03/2024,-691.2
Buckinghamshire Council,Adults and Health,Ambient Support Limited,1000171,Res care-permanent - other,Controllable Customer & Client Receipts,7003179131,13/03/2024,-1018.12
Buckinghamshire Council,Adults and Health,Ambient Support Limited,1000171,Res care-permanent - other,Controllable Customer & Client Receipts,7003179131,13/03/2024,-1119.36
Buckinghamshire Council,Adults and Health,Ambient Support Limited,1000171,Res care-permanent - other,Controllable Customer & Client Receipts,7003179131,13/03/2024,-1225.4
Buckinghamshire Council,Adults and Health,Ambient Support Limited,1000171,Res care-permanent - other,Controllable Customer & Client Receipts,7003179131,13/03/2024,-1971.32
Buckinghamshire Council,Adults and Health,Ambient Support Limited,1000171,Res care-permanent - other,Controllable Customer & Client Receipts,7003179131,13/03/2024,-1038.29
Buckinghamshire Council,Adults and Health,Ambient Support Limited,1000171,Res care-permanent - other,Controllable Customer & Client Receipts,7003179131,13/03/2024,-805.04
Buckinghamshire Council,Adults and Health,Ambient Support Limited,1000171,Res care-permanent - other,Controllable Customer & Client Receipts,7003179131,13/03/2024,-691.2
Buckinghamshire Council,Adults and Health,Ambient Support Limited,1000171,Res care-permanent - other,Controllable Customer & Client Receipts,7003179131,13/03/2024,-345.6
Buckinghamshire Council,Adults and Health,Ambient Support Limited,1000171,Res care-permanent - other,Controllable Customer & Client Receipts,7003179131,13/03/2024,-691.2
Buckinghamshire Council,Adults and Health,Ambient Support Limited,1000171,Res care-permanent - other,Controllable Customer & Client Receipts,7003179131,13/03/2024,-74.05
Buckinghamshire Council,Adults and Health,Ambient Support Limited,1000171,Res care-permanent - other,Controllable Customer & Client Receipts,7003179131,13/03/2024,-691.2
Buckinghamshire Council,Adults and Health,Maria Residential Home,1000177,Res-Perm EMI-Other - Exp,Third Party Payments,7003179132,13/03/2024,4000
Buckinghamshire Council,Adults and Health,Maria Residential Home,1000177,Res-Perm EMI-Other - Exp,Third Party Payments,7003179132,13/03/2024,4800
Buckinghamshire Council,Adults and Health,Maria Residential Home,1000177,Res care-permanent - other,Third Party Payments,7003179132,13/03/2024,4800
Buckinghamshire Council,Adults and Health,Maria Residential Home,1000177,Res-Perm EMI-Other - Exp,Third Party Payments,7003179132,13/03/2024,4200
Buckinghamshire Council,Adults and Health,Maria Residential Home,1000177,Res-Perm EMI-Other - Exp,Third Party Payments,7003179132,13/03/2024,3669.2
Buckinghamshire Council,Adults and Health,Maria Residential Home,1000177,Res-Perm EMI-Other - Exp,Third Party Payments,7003179132,13/03/2024,328.57
Buckinghamshire Council,Adults and Health,Maria Residential Home,1000177,Res-Perm EMI-Other - Exp,Third Party Payments,7003179132,13/03/2024,4600
Buckinghamshire Council,Adults and Health,Maria Residential Home,1000177,Res care-permanent - other,Controllable Customer & Client Receipts,7003179132,13/03/2024,-919.64
Buckinghamshire Council,Adults and Health,Maria Residential Home,1000177,Res care-permanent - other,Controllable Customer & Client Receipts,7003179132,13/03/2024,-438.8
Buckinghamshire Council,Adults and Health,Maria Residential Home,1000177,Res care-permanent - other,Controllable Customer & Client Receipts,7003179132,13/03/2024,-636.92
Buckinghamshire Council,Adults and Health,Maria Residential Home,1000177,Res care-permanent - other,Controllable Customer & Client Receipts,7003179132,13/03/2024,-668.52
Buckinghamshire Council,Adults and Health,Maria Residential Home,1000177,Res care-permanent - other,Controllable Customer & Client Receipts,7003179132,13/03/2024,-1317.52
Buckinghamshire Council,Adults and Health,Maria Residential Home,1000177,Res care-permanent - other,Controllable Customer & Client Receipts,7003179132,13/03/2024,-31.82
Buckinghamshire Council,Adults and Health,Maria Residential Home,1000177,Res care-permanent - other,Controllable Customer & Client Receipts,7003179132,13/03/2024,-445.6
Buckinghamshire Council,Adults and Health,STONE HOUSE NURSING HOME,1000181,Nurs-Perm EMI Other - Exp,Third Party Payments,7003179133,13/03/2024,3482.64
Buckinghamshire Council,Adults and Health,STONE HOUSE NURSING HOME,1000181,Nurs-Perm EMI Other - Exp,Third Party Payments,7003179133,13/03/2024,5600
Buckinghamshire Council,Adults and Health,STONE HOUSE NURSING HOME,1000181,Nursing care-permanent -other,Third Party Payments,7003179133,13/03/2024,1412.92
Buckinghamshire Council,Adults and Health,STONE HOUSE NURSING HOME,1000181,Nursing care-permanent -other,Third Party Payments,7003179133,13/03/2024,2560
Buckinghamshire Council,Adults and Health,STONE HOUSE NURSING HOME,1000181,Nursing care-permanent -other,Controllable Customer & Client Receipts,7003179133,13/03/2024,-2330.54
Buckinghamshire Council,Adults and Health,STONE HOUSE NURSING HOME,1000181,Nursing care-permanent -other,Controllable Customer & Client Receipts,7003179133,13/03/2024,-700
Buckinghamshire Council,Adults and Health,STONE HOUSE NURSING HOME,1000181,Nursing care-permanent -other,Controllable Customer & Client Receipts,7003179133,13/03/2024,-2560
Buckinghamshire Council,Adults and Health,STONE HOUSE NURSING HOME,1000181,Nursing care-permanent -other,Controllable Customer & Client Receipts,7003179133,13/03/2024,-1412.92
Buckinghamshire Council,Adults and Health,The Abbeyfield Society,1000182,Res care-permanent - other,Third Party Payments,7003179134,13/03/2024,3898.52
Buckinghamshire Council,Adults and Health,The Abbeyfield Society,1000182,Res-Perm EMI-Other - Exp,Third Party Payments,7003179134,13/03/2024,5068
Buckinghamshire Council,Adults and Health,The Abbeyfield Society,1000182,Res-Perm EMI-Other - Exp,Third Party Payments,7003179134,13/03/2024,5068
Buckinghamshire Council,Adults and Health,The Abbeyfield Society,1000182,Res care-permanent - other,Controllable Customer & Client Receipts,7003179134,13/03/2024,-655.84
Buckinghamshire Council,Adults and Health,The Abbeyfield Society,1000182,Res care-permanent - other,Controllable Customer & Client Receipts,7003179134,13/03/2024,-1162.84
Buckinghamshire Council,Adults and Health,The Abbeyfield Society,1000182,Res care-permanent - other,Controllable Customer & Client Receipts,7003179134,13/03/2024,-965.08
Buckinghamshire Council,Adults and Health,THE KNOLLS RESIDENTIAL HOME,1000185,Nurs-Perm EMI Other - Exp,Third Party Payments,7003179135,13/03/2024,4836.4
Buckinghamshire Council,Adults and Health,THE KNOLLS RESIDENTIAL HOME,1000185,Res-Perm EMI-Other - Exp,Third Party Payments,7003179135,13/03/2024,4783.12
Buckinghamshire Council,Adults and Health,THE KNOLLS RESIDENTIAL HOME,1000185,Nursing care-permanent -other,Controllable Customer & Client Receipts,7003179135,13/03/2024,-1482.48
Buckinghamshire Council,Adults and Health,THE KNOLLS RESIDENTIAL HOME,1000185,Res care-permanent - other,Controllable Customer & Client Receipts,7003179135,13/03/2024,-669.72
Buckinghamshire Council,Adults and Health,THE OLD SCHOOL HOUSE RESIDENTIAL HO,1000187,Res-Perm EMI-Other - Exp,Third Party Payments,7003179136,13/03/2024,4344.92
Buckinghamshire Council,Adults and Health,THE OLD SCHOOL HOUSE RESIDENTIAL HO,1000187,Res-Perm EMI-Other - Exp,Third Party Payments,7003179136,13/03/2024,3800
Buckinghamshire Council,Adults and Health,THE OLD SCHOOL HOUSE RESIDENTIAL HO,1000187,Res-Perm EMI-Other - Exp,Third Party Payments,7003179136,13/03/2024,4800
Buckinghamshire Council,Adults and Health,THE OLD SCHOOL HOUSE RESIDENTIAL HO,1000187,Res care-permanent - other,Third Party Payments,7003179136,13/03/2024,3900
Buckinghamshire Council,Adults and Health,THE OLD SCHOOL HOUSE RESIDENTIAL HO,1000187,Nurs-Perm EMI Other - Exp,Third Party Payments,7003179136,13/03/2024,-2248.28
Buckinghamshire Council,Adults and Health,THE OLD SCHOOL HOUSE RESIDENTIAL HO,1000187,Nurs-Perm EMI Other - Exp,Third Party Payments,7003179136,13/03/2024,-4496.56
Buckinghamshire Council,Adults and Health,THE OLD SCHOOL HOUSE RESIDENTIAL HO,1000187,Res-Perm EMI-Other - Exp,Third Party Payments,7003179136,13/03/2024,3219.04
Buckinghamshire Council,Adults and Health,THE OLD SCHOOL HOUSE RESIDENTIAL HO,1000187,Res-Perm EMI-Other - Exp,Third Party Payments,7003179136,13/03/2024,3822.61
Buckinghamshire Council,Adults and Health,THE OLD SCHOOL HOUSE RESIDENTIAL HO,1000187,Res care-permanent - other,Controllable Customer & Client Receipts,7003179136,13/03/2024,-839.24
Buckinghamshire Council,Adults and Health,THE OLD SCHOOL HOUSE RESIDENTIAL HO,1000187,Res care-permanent - other,Controllable Customer & Client Receipts,7003179136,13/03/2024,-762.56
Buckinghamshire Council,Adults and Health,THE OLD SCHOOL HOUSE RESIDENTIAL HO,1000187,Res care-permanent - other,Controllable Customer & Client Receipts,7003179136,13/03/2024,-913.96
Buckinghamshire Council,Adults and Health,THE OLD SCHOOL HOUSE RESIDENTIAL HO,1000187,Nursing care-permanent -other,Controllable Customer & Client Receipts,7003179136,13/03/2024,605.17
Buckinghamshire Council,Adults and Health,THE OLD SCHOOL HOUSE RESIDENTIAL HO,1000187,Nursing care-permanent -other,Controllable Customer & Client Receipts,7003179136,13/03/2024,1129.64
Buckinghamshire Council,Adults and Health,THE OLD SCHOOL HOUSE RESIDENTIAL HO,1000187,Res care-permanent - other,Controllable Customer & Client Receipts,7003179136,13/03/2024,-487.2
Buckinghamshire Council,Adults and Health,THE OLD SCHOOL HOUSE RESIDENTIAL HO,1000187,Res care-permanent - other,Controllable Customer & Client Receipts,7003179136,13/03/2024,-476.79
Buckinghamshire Council,Adults and Health,TITHE FARM REST HOME,1000190,Nurs-Perm EMI Other - Exp,Third Party Payments,7003179137,13/03/2024,5136
Buckinghamshire Council,Adults and Health,TITHE FARM REST HOME,1000190,Nurs-Perm EMI Other - Exp,Third Party Payments,7003179137,13/03/2024,5800
Buckinghamshire Council,Adults and Health,TITHE FARM REST HOME,1000190,Nurs-Perm EMI Other - Exp,Third Party Payments,7003179137,13/03/2024,4800
Buckinghamshire Council,Adults and Health,TITHE FARM REST HOME,1000190,Nursing care-permanent -other,Third Party Payments,7003179137,13/03/2024,4046.92
Buckinghamshire Council,Adults and Health,TITHE FARM REST HOME,1000190,Nursing care-permanent -other,Third Party Payments,7003179137,13/03/2024,5251.2
Buckinghamshire Council,Adults and Health,TITHE FARM REST HOME,1000190,Nurs-Perm EMI Other - Exp,Third Party Payments,7003179137,13/03/2024,840.25
Buckinghamshire Council,Adults and Health,TITHE FARM REST HOME,1000190,Nurs-Perm EMI Other - Exp,Third Party Payments,7003179137,13/03/2024,3921.16
Buckinghamshire Council,Adults and Health,TITHE FARM REST HOME,1000190,Nursing care-permanent -other,Controllable Customer & Client Receipts,7003179137,13/03/2024,-772.04
Buckinghamshire Council,Adults and Health,TITHE FARM REST HOME,1000190,Nursing care-permanent -other,Controllable Customer & Client Receipts,7003179137,13/03/2024,-947.32
Buckinghamshire Council,Adults and Health,TITHE FARM REST HOME,1000190,Nursing care-permanent -other,Controllable Customer & Client Receipts,7003179137,13/03/2024,-262.4
Buckinghamshire Council,Adults and Health,TITHE FARM REST HOME,1000190,Nursing care-permanent -other,Controllable Customer & Client Receipts,7003179137,13/03/2024,-1202.92
Buckinghamshire Council,Adults and Health,TITHE FARM REST HOME,1000190,Nursing care-permanent -other,Controllable Customer & Client Receipts,7003179137,13/03/2024,-1085.32
Buckinghamshire Council,Adults and Health,TITHE FARM REST HOME,1000190,Nursing care-permanent -other,Controllable Customer & Client Receipts,7003179137,13/03/2024,-263.21
Buckinghamshire Council,Adults and Health,TITHE FARM REST HOME,1000190,Nursing care-permanent -other,Controllable Customer & Client Receipts,7003179137,13/03/2024,-1320.99
Buckinghamshire Council,Adults and Health,The Kingwood Trust,1000202,Supported Living - Other,Third Party Payments,7003178900,13/03/2024,9778.08
Buckinghamshire Council,Adults and Health,The Kingwood Trust,1000202,Supported Living - Additional Care,Third Party Payments,7003178900,13/03/2024,9577.16
Buckinghamshire Council,Adults and Health,The Kingwood Trust,1000202,Supported Living - Other,Third Party Payments,7003178900,13/03/2024,16887.48
Buckinghamshire Council,"Planning, Growth & Sustainability",PERSONNEL HYGIENE SERVICES LTD,1000221,Cleaning - Contract Services,Premises,4101091614,15/03/2024,1014.2
Buckinghamshire Council,"Planning, Growth & Sustainability",PERSONNEL HYGIENE SERVICES LTD,1000221,Cleaning - Contract Services,Premises,4101091899,15/03/2024,1014.2
Buckinghamshire Council,Communities,CAROUSEL BUSES LTD,1000240,National Concessionary Fares Scheme,Third Party Payments,4101091389,15/03/2024,294371.53
Buckinghamshire Council,Communities,CAROUSEL BUSES LTD,1000240,Contracts (Mainstream),Transport,4101093372,27/03/2024,43973.44
Buckinghamshire Council,Communities,CAROUSEL BUSES LTD,1000240,Subsidised Bus Services - Accessibility,Transfer Payments,4101090031,06/03/2024,75342.14
Buckinghamshire Council,Communities,CAROUSEL BUSES LTD,1000240,Travel Choice Scheme,Transfer Payments,4101091193,20/03/2024,608.44
Buckinghamshire Council,Communities,CAROUSEL BUSES LTD,1000240,Recoverable Expenditure,Supplies & Services,4101091197,20/03/2024,58225.15
Buckinghamshire Council,Communities,CAROUSEL BUSES LTD,1000240,Subsidised Bus Services - Accessibility,Transfer Payments,4101092597,20/03/2024,18208.35
Buckinghamshire Council,Communities,Z & S TRANSPORT LTD,1000253,Contracts (Mainstream),Transport,4101092492,20/03/2024,4000
Buckinghamshire Council,Communities,Z & S TRANSPORT LTD,1000253,Contracts (Mainstream),Transport,4101092493,20/03/2024,10240
Buckinghamshire Council,Communities,Z & S TRANSPORT LTD,1000253,Contracts (Mainstream),Transport,4101092494,20/03/2024,5120
Buckinghamshire Council,Communities,Z & S TRANSPORT LTD,1000253,Contracts (Mainstream),Transport,4101092495,20/03/2024,2640
Buckinghamshire Council,Communities,Z & S TRANSPORT LTD,1000253,Contracts (Mainstream),Transport,4101092496,20/03/2024,8000
Buckinghamshire Council,Communities,Z & S TRANSPORT LTD,1000253,Subsidised Bus Services - Accessibility,Transfer Payments,4101090042,06/03/2024,30089.06
Buckinghamshire Council,Communities,Z & S TRANSPORT LTD,1000253,Contracts (Mainstream),Transport,4101092497,27/03/2024,4000
Buckinghamshire Council,Communities,Z & S TRANSPORT LTD,1000253,Contracts (Mainstream),Transport,4101092498,27/03/2024,3504
Buckinghamshire Council,Communities,Z & S TRANSPORT LTD,1000253,National Concessionary Fares Scheme,Third Party Payments,4101091405,15/03/2024,6089.95
Buckinghamshire Council,Communities,Z & S TRANSPORT LTD,1000253,Contracts (Mainstream),Transport,4101093127,22/03/2024,1500.8
Buckinghamshire Council,Communities,Z & S TRANSPORT LTD,1000253,Subsidised Bus Services - Accessibility,Transfer Payments,4101090583,13/03/2024,6356.39
Buckinghamshire Council,Children's Services,HOLIDAY INN AYLESBURY,1000261,Computer Software Licences & Purchase,Supplies & Services,4101093892,27/03/2024,1800
Buckinghamshire Council,Children's Services,HOLIDAY INN AYLESBURY,1000261,Computer Software Licences & Purchase,Supplies & Services,4101093892,27/03/2024,-300
Buckinghamshire Council,Communities,MOTTS COACHES (AYLESBURY) LTD,1000265,Contracts (Mainstream),Transport,4101091597,15/03/2024,3225
Buckinghamshire Council,Communities,MOTTS COACHES (AYLESBURY) LTD,1000265,Contracts (Mainstream),Transport,4101091598,15/03/2024,6473.6
Buckinghamshire Council,Communities,MOTTS COACHES (AYLESBURY) LTD,1000265,Contracts (Mainstream),Transport,4101091638,15/03/2024,3515
Buckinghamshire Council,Communities,MOTTS COACHES (AYLESBURY) LTD,1000265,Contracts (Mainstream),Transport,4101091639,15/03/2024,3200
Buckinghamshire Council,Communities,MOTTS COACHES (AYLESBURY) LTD,1000265,Contracts (Mainstream),Transport,4101091640,15/03/2024,6936.14
Buckinghamshire Council,Communities,MOTTS COACHES (AYLESBURY) LTD,1000265,Contracts (Mainstream),Transport,4101091641,15/03/2024,7282.8
Buckinghamshire Council,Communities,MOTTS COACHES (AYLESBURY) LTD,1000265,Contracts (Mainstream),Transport,4101091642,15/03/2024,6800
Buckinghamshire Council,Communities,MOTTS COACHES (AYLESBURY) LTD,1000265,Contracts (Mainstream),Transport,4101091643,15/03/2024,4300
Buckinghamshire Council,Communities,MOTTS COACHES (AYLESBURY) LTD,1000265,Contracts (Mainstream),Transport,4101091644,15/03/2024,4300
Buckinghamshire Council,Communities,MOTTS COACHES (AYLESBURY) LTD,1000265,Contracts (Mainstream),Transport,4101091689,15/03/2024,5100
Buckinghamshire Council,Communities,MOTTS COACHES (AYLESBURY) LTD,1000265,Contracts (Mainstream),Transport,4101091690,15/03/2024,3225
Buckinghamshire Council,Communities,MOTTS COACHES (AYLESBURY) LTD,1000265,Contracts (Mainstream),Transport,4101091691,15/03/2024,2960
Buckinghamshire Council,Communities,MOTTS COACHES (AYLESBURY) LTD,1000265,Contracts (Mainstream),Transport,4101091692,15/03/2024,5840.96
Buckinghamshire Council,Communities,MOTTS COACHES (AYLESBURY) LTD,1000265,Contracts (Mainstream),Transport,4101091693,15/03/2024,2400
Buckinghamshire Council,Communities,REDACTED,1000298,Contracts (Mainstream),Transport,4100684159,06/03/2024,2785.12
Buckinghamshire Council,Communities,REDACTED,1000298,Contracts (Mainstream),Transport,4100684160,06/03/2024,5184
Buckinghamshire Council,Communities,REDACTED,1000298,Contracts (Mainstream),Transport,4100684161,06/03/2024,6300
Buckinghamshire Council,Communities,REDACTED,1000298,Contracts (Mainstream),Transport,4100684191,06/03/2024,7338.75
Buckinghamshire Council,Communities,REDACTED,1000298,Contracts (Mainstream),Transport,4100684192,06/03/2024,6044.04
Buckinghamshire Council,Communities,REDACTED,1000298,Contracts (Mainstream),Transport,4100684193,06/03/2024,3847.05
Buckinghamshire Council,Communities,REDACTED,1000298,Contracts (Mainstream),Transport,4100684194,06/03/2024,6435
Buckinghamshire Council,Communities,REDACTED,1000298,Contracts (Mainstream),Transport,4100684195,06/03/2024,7438.71
Buckinghamshire Council,Communities,REDACTED,1000298,Subsidised Bus Services - Accessibility,Transfer Payments,4101089949,06/03/2024,925.67
Buckinghamshire Council,Communities,REDACTED,1000298,Subsidised Bus Services - Accessibility,Transfer Payments,4101090032,06/03/2024,11660.04
Buckinghamshire Council,Communities,FIRST BEELINE BUSES LTD,1000316,National Concessionary Fares Scheme,Third Party Payments,4101091391,15/03/2024,50175.06
Buckinghamshire Council,Communities,CHUBB ELECTRONIC SECURITY LTD,1000380,Security Contracts,Supplies & Services,4101089380,20/03/2024,850.35
Buckinghamshire Council,Adults and Health,HOMES TOGETHER LTD,1000436,Res care-permanent - other,Third Party Payments,7003179138,13/03/2024,7448.48
Buckinghamshire Council,Adults and Health,HOMES TOGETHER LTD,1000436,Res care-permanent - other,Controllable Customer & Client Receipts,7003179138,13/03/2024,-483.2
Buckinghamshire Council,Communities,A 1 TAXI SERVICE,1000441,Contracts (Mainstream),Transport,4101091664,15/03/2024,996.6
Buckinghamshire Council,Communities,A 1 TAXI SERVICE,1000441,Contracts (Mainstream),Transport,4101091665,15/03/2024,1838.72
Buckinghamshire Council,Communities,A 1 TAXI SERVICE,1000441,Contracts (Mainstream),Transport,4101091666,15/03/2024,2340
Buckinghamshire Council,Communities,A 1 TAXI SERVICE,1000441,Contracts (Mainstream),Transport,4101091667,15/03/2024,1368.9
Buckinghamshire Council,Planning Growth & Sustainability,Colin Clarke Constuction Ltd,1000443,Construction - Building Work,Capital - Expenditure -Controllable,7003180914,20/03/2024,6595
Buckinghamshire Council,"Planning, Growth & Sustainability",Colin Clarke Constuction Ltd,1000443,General Repairs & Maintenance,Premises,7003182492,20/03/2024,4462
Buckinghamshire Council,Children's Services,C J ASSOCIATES TRAINING LTD,1000459,Payments - Other Bodies,Transfer Payments,4101092433,20/03/2024,955
Buckinghamshire Council,Children's Services,C J ASSOCIATES TRAINING LTD,1000459,Payments - Other Bodies,Transfer Payments,4101093458,27/03/2024,625
Buckinghamshire Council,Communities,Neales Taxis Ltd,1000473,Contracts (Mainstream),Transport,4101093111,27/03/2024,3500
Buckinghamshire Council,Communities,Neales Taxis Ltd,1000473,Contracts (Mainstream),Transport,4101091721,15/03/2024,2272.65
Buckinghamshire Council,Communities,Neales Taxis Ltd,1000473,Contracts (Mainstream),Transport,4101091721,15/03/2024,0.03
Buckinghamshire Council,Communities,Neales Taxis Ltd,1000473,Contracts (Mainstream),Transport,4101091722,15/03/2024,8755
Buckinghamshire Council,Adults and Health,Neales Taxis Ltd,1000473,Transport - Day Care - external,Transport,4101091723,15/03/2024,1273.22
Buckinghamshire Council,Communities,Neales Taxis Ltd,1000473,Contracts (Mainstream),Transport,4101091725,15/03/2024,2352.45
Buckinghamshire Council,Communities,Neales Taxis Ltd,1000473,Contracts (Mainstream),Transport,4101091725,15/03/2024,0.03
Buckinghamshire Council,Communities,Neales Taxis Ltd,1000473,Contracts (Mainstream),Transport,4101091726,15/03/2024,1931.15
Buckinghamshire Council,Adults and Health,Neales Taxis Ltd,1000473,Transport - Day Care - external,Transport,4101091727,15/03/2024,543.65
Buckinghamshire Council,Adults and Health,Neales Taxis Ltd,1000473,Transport - Day Care - external,Transport,4101091727,15/03/2024,0.03
Buckinghamshire Council,Communities,Neales Taxis Ltd,1000473,Contracts (Mainstream),Transport,4101091728,15/03/2024,2472
Buckinghamshire Council,Communities,Neales Taxis Ltd,1000473,Contracts (Mainstream),Transport,4101091729,15/03/2024,727.62
Buckinghamshire Council,Communities,Neales Taxis Ltd,1000473,Contracts (Mainstream),Transport,4101092913,22/03/2024,1534.6
Buckinghamshire Council,Communities,Neales Taxis Ltd,1000473,Contracts (Mainstream),Transport,4101092914,22/03/2024,2735.6
Buckinghamshire Council,Communities,Neales Taxis Ltd,1000473,Contracts (Mainstream),Transport,4101092915,22/03/2024,1275
Buckinghamshire Council,Adults and Health,Neales Taxis Ltd,1000473,Transport - Day Care - external,Transport,4101092916,22/03/2024,3945.45
Buckinghamshire Council,Adults and Health,Neales Taxis Ltd,1000473,Transport - Day Care - external,Transport,4101092916,22/03/2024,0.03
Buckinghamshire Council,Adults and Health,Neales Taxis Ltd,1000473,Transport - Day Care - external,Transport,4101092917,22/03/2024,3127.32
Buckinghamshire Council,Adults and Health,Neales Taxis Ltd,1000473,Transport - Day Care - external,Transport,4101092918,22/03/2024,2503.82
Buckinghamshire Council,Communities,Neales Taxis Ltd,1000473,Contracts (Mainstream),Transport,4101092919,22/03/2024,1213.5
Buckinghamshire Council,Communities,Neales Taxis Ltd,1000473,Contracts (Mainstream),Transport,4101092919,22/03/2024,0.03
Buckinghamshire Council,Communities,Neales Taxis Ltd,1000473,Contracts (Mainstream),Transport,4101092920,22/03/2024,2326.45
Buckinghamshire Council,Communities,Neales Taxis Ltd,1000473,Contracts (Mainstream),Transport,4101092920,22/03/2024,0.03
Buckinghamshire Council,Communities,Neales Taxis Ltd,1000473,Contracts (Mainstream),Transport,4101092921,22/03/2024,2257.6
Buckinghamshire Council,Communities,Neales Taxis Ltd,1000473,Contracts (Mainstream),Transport,4101092922,22/03/2024,2470
Buckinghamshire Council,Communities,Neales Taxis Ltd,1000473,Contracts (Mainstream),Transport,4101092923,22/03/2024,2281.32
Buckinghamshire Council,Communities,Neales Taxis Ltd,1000473,Contracts (Mainstream),Transport,4101092924,22/03/2024,4366.65
Buckinghamshire Council,Communities,Neales Taxis Ltd,1000473,Contracts (Mainstream),Transport,4101092925,22/03/2024,3534
Buckinghamshire Council,Communities,Neales Taxis Ltd,1000473,Contracts (Mainstream),Transport,4101092926,22/03/2024,3131.2
Buckinghamshire Council,Communities,Neales Taxis Ltd,1000473,Contracts (Mainstream),Transport,4101093110,22/03/2024,2850
Buckinghamshire Council,Adults and Health,Neales Taxis Ltd,1000473,Transport - Day Care - external,Transport,4101093112,22/03/2024,1377.7
Buckinghamshire Council,Adults and Health,Neales Taxis Ltd,1000473,Transport - Day Care - external,Transport,4101093112,22/03/2024,0.04
Buckinghamshire Council,Communities,Neales Taxis Ltd,1000473,Contracts (Mainstream),Transport,4101090899,13/03/2024,1269
Buckinghamshire Council,Adults and Health,Neales Taxis Ltd,1000473,Transport - Day Care - external,Transport,4101091029,13/03/2024,878.22
Buckinghamshire Council,Communities,Neales Taxis Ltd,1000473,Contracts (Mainstream),Transport,4101091030,13/03/2024,803.4
Buckinghamshire Council,Communities,Neales Taxis Ltd,1000473,Contracts (Mainstream),Transport,4101091031,13/03/2024,6455.6
Buckinghamshire Council,Communities,Neales Taxis Ltd,1000473,Contracts (Mainstream),Transport,4101091032,13/03/2024,3131.2
Buckinghamshire Council,Communities,Neales Taxis Ltd,1000473,Contracts (Mainstream),Transport,4101091033,13/03/2024,2718.1
Buckinghamshire Council,Communities,Neales Taxis Ltd,1000473,Contracts (Mainstream),Transport,4101091033,13/03/2024,0.04
Buckinghamshire Council,Communities,Neales Taxis Ltd,1000473,Contracts (Mainstream),Transport,4101091034,13/03/2024,1937
Buckinghamshire Council,Communities,Neales Taxis Ltd,1000473,Contracts (Mainstream),Transport,4101091034,13/03/2024,0.03
Buckinghamshire Council,Communities,Neales Taxis Ltd,1000473,Contracts (Mainstream),Transport,4101091102,13/03/2024,3914
Buckinghamshire Council,Adults and Health,Neales Taxis Ltd,1000473,Transport - Day Care - external,Transport,4101091104,13/03/2024,1022.55
Buckinghamshire Council,Adults and Health,Neales Taxis Ltd,1000473,Transport - Day Care - external,Transport,4101091104,13/03/2024,0.03
Buckinghamshire Council,Adults and Health,Neales Taxis Ltd,1000473,Transport - Day Care - external,Transport,4101091105,13/03/2024,1606
Buckinghamshire Council,Adults and Health,Neales Taxis Ltd,1000473,Transport - Day Care - external,Transport,4101091106,13/03/2024,1040.22
Buckinghamshire Council,Communities,Neales Taxis Ltd,1000473,Contracts (Mainstream),Transport,4101091162,13/03/2024,2122.2
Buckinghamshire Council,Communities,Neales Taxis Ltd,1000473,Contracts (Mainstream),Transport,4101091163,13/03/2024,3522.6
Buckinghamshire Council,Adults and Health,Neales Taxis Ltd,1000473,Transport - Day Care - external,Transport,4101091164,13/03/2024,3600
Buckinghamshire Council,Communities,Neales Taxis Ltd,1000473,Contracts (Mainstream),Transport,4101091165,13/03/2024,1920
Buckinghamshire Council,Communities,Neales Taxis Ltd,1000473,Contracts (Mainstream),Transport,4101091166,13/03/2024,1403.5
Buckinghamshire Council,Communities,Neales Taxis Ltd,1000473,Contracts (Mainstream),Transport,4101091166,13/03/2024,0.03
Buckinghamshire Council,Communities,Neales Taxis Ltd,1000473,Contracts (Mainstream),Transport,4101091167,13/03/2024,3643.9
Buckinghamshire Council,Communities,Neales Taxis Ltd,1000473,Contracts (Mainstream),Transport,4101091167,13/03/2024,0.03
Buckinghamshire Council,Communities,Neales Taxis Ltd,1000473,Contracts (Mainstream),Transport,4101091168,13/03/2024,520
Buckinghamshire Council,Communities,Neales Taxis Ltd,1000473,Contracts (Mainstream),Transport,4101091169,13/03/2024,2472
Buckinghamshire Council,Adults and Health,Neales Taxis Ltd,1000473,Transport - Day Care - external,Transport,4101091170,13/03/2024,3080
Buckinghamshire Council,Communities,Neales Taxis Ltd,1000473,Contracts (Mainstream),Transport,4101091172,13/03/2024,1137
Buckinghamshire Council,Communities,Neales Taxis Ltd,1000473,Contracts (Mainstream),Transport,4101091173,13/03/2024,4120
Buckinghamshire Council,Communities,Neales Taxis Ltd,1000473,Contracts (Mainstream),Transport,4101091174,13/03/2024,1474
Buckinghamshire Council,Communities,Neales Taxis Ltd,1000473,Contracts (Mainstream),Transport,4101091175,13/03/2024,2557.6
Buckinghamshire Council,Communities,Neales Taxis Ltd,1000473,Contracts (Mainstream),Transport,4101091176,13/03/2024,3090
Buckinghamshire Council,Communities,Neales Taxis Ltd,1000473,Contracts (Mainstream),Transport,4101091177,13/03/2024,5217.8
Buckinghamshire Council,Communities,Neales Taxis Ltd,1000473,Contracts (Mainstream),Transport,4101091177,13/03/2024,0.04
Buckinghamshire Council,Adults and Health,Neales Taxis Ltd,1000473,Transport - Day Care - external,Transport,4101091178,13/03/2024,1492.92
Buckinghamshire Council,Communities,Neales Taxis Ltd,1000473,Contracts (Mainstream),Transport,4101091179,13/03/2024,1335.8
Buckinghamshire Council,Adults and Health,Neales Taxis Ltd,1000473,Transport - Day Care - external,Transport,4101091180,13/03/2024,790.92
Buckinghamshire Council,Communities,Neales Taxis Ltd,1000473,Contracts (Mainstream),Transport,4101091181,13/03/2024,2595.6
Buckinghamshire Council,Communities,Neales Taxis Ltd,1000473,Contracts (Mainstream),Transport,4101091182,13/03/2024,1492.25
Buckinghamshire Council,Communities,Neales Taxis Ltd,1000473,Contracts (Mainstream),Transport,4101088551,01/03/2024,2640
Buckinghamshire Council,Communities,Neales Taxis Ltd,1000473,Contracts (Mainstream),Transport,4101088682,01/03/2024,1800
Buckinghamshire Council,Communities,Neales Taxis Ltd,1000473,Contracts (Mainstream),Transport,4101088683,01/03/2024,2280
Buckinghamshire Council,Communities,Neales Taxis Ltd,1000473,Contracts (Mainstream),Transport,4101088684,01/03/2024,1560
Buckinghamshire Council,Communities,Neales Taxis Ltd,1000473,Contracts (Mainstream),Transport,4101088685,01/03/2024,2640
Buckinghamshire Council,Communities,Neales Taxis Ltd,1000473,Contracts (Mainstream),Transport,4101088839,01/03/2024,1527.6
Buckinghamshire Council,Communities,Neales Taxis Ltd,1000473,Contracts (Mainstream),Transport,4101089130,01/03/2024,2000
Buckinghamshire Council,Communities,Neales Taxis Ltd,1000473,Contracts (Mainstream),Transport,4101089131,01/03/2024,3137.8
Buckinghamshire Council,Communities,Neales Taxis Ltd,1000473,Contracts (Mainstream),Transport,4101089132,01/03/2024,1537.8
Buckinghamshire Council,Communities,Neales Taxis Ltd,1000473,Contracts (Mainstream),Transport,4101089133,01/03/2024,1929
Buckinghamshire Council,Communities,Neales Taxis Ltd,1000473,Contracts (Mainstream),Transport,4101089134,01/03/2024,3274.5
Buckinghamshire Council,Communities,Neales Taxis Ltd,1000473,Contracts (Mainstream),Transport,4101089134,01/03/2024,0.03
Buckinghamshire Council,Communities,Neales Taxis Ltd,1000473,Contracts (Mainstream),Transport,4101089222,01/03/2024,2430
Buckinghamshire Council,Communities,Neales Taxis Ltd,1000473,Contracts (Mainstream),Transport,4101090146,08/03/2024,1565.6
Buckinghamshire Council,Communities,Neales Taxis Ltd,1000473,Contracts (Mainstream),Transport,4101090147,08/03/2024,1460.3
Buckinghamshire Council,Communities,Neales Taxis Ltd,1000473,Contracts (Mainstream),Transport,4101090147,08/03/2024,0.04
Buckinghamshire Council,Communities,Neales Taxis Ltd,1000473,Contracts (Mainstream),Transport,4101090148,08/03/2024,3800
Buckinghamshire Council,Communities,Neales Taxis Ltd,1000473,Contracts (Mainstream),Transport,4101090149,08/03/2024,3600
Buckinghamshire Council,Communities,Neales Taxis Ltd,1000473,Contracts (Mainstream),Transport,4101090150,08/03/2024,2125.2
Buckinghamshire Council,Communities,Neales Taxis Ltd,1000473,Contracts (Mainstream),Transport,4101090151,08/03/2024,2929
Buckinghamshire Council,Communities,Neales Taxis Ltd,1000473,Contracts (Mainstream),Transport,4101090152,08/03/2024,2464.02
Buckinghamshire Council,Communities,Neales Taxis Ltd,1000473,Contracts (Mainstream),Transport,4101090153,08/03/2024,6136.05
Buckinghamshire Council,Communities,Neales Taxis Ltd,1000473,Contracts (Mainstream),Transport,4101090154,08/03/2024,1192.32
Buckinghamshire Council,Communities,Neales Taxis Ltd,1000473,Contracts (Mainstream),Transport,4101090155,08/03/2024,1337
Buckinghamshire Council,Communities,Neales Taxis Ltd,1000473,Contracts (Mainstream),Transport,4101090156,08/03/2024,2472
Buckinghamshire Council,Communities,Neales Taxis Ltd,1000473,Contracts (Mainstream),Transport,4101090157,08/03/2024,732.85
Buckinghamshire Council,Communities,Neales Taxis Ltd,1000473,Contracts (Mainstream),Transport,4101090157,08/03/2024,0.04
Buckinghamshire Council,Communities,Neales Taxis Ltd,1000473,Contracts (Mainstream),Transport,4101090158,08/03/2024,1854
Buckinghamshire Council,Communities,Neales Taxis Ltd,1000473,Contracts (Mainstream),Transport,4101090159,08/03/2024,2981.85
Buckinghamshire Council,Communities,Neales Taxis Ltd,1000473,Contracts (Mainstream),Transport,4101090226,08/03/2024,885.25
Buckinghamshire Council,Communities,Neales Taxis Ltd,1000473,Contracts (Mainstream),Transport,4101090226,08/03/2024,0.03
Buckinghamshire Council,Adults and Health,Neales Taxis Ltd,1000473,Transport - Day Care - external,Transport,4101090227,08/03/2024,742.96
Buckinghamshire Council,Adults and Health,Neales Taxis Ltd,1000473,Transport - Day Care - external,Transport,4101090228,08/03/2024,1274.65
Buckinghamshire Council,Adults and Health,Neales Taxis Ltd,1000473,Transport - Day Care - external,Transport,4101090228,08/03/2024,0.03
Buckinghamshire Council,Communities,Neales Taxis Ltd,1000473,Contracts (Mainstream),Transport,4101090245,08/03/2024,3661.4
Buckinghamshire Council,Communities,Neales Taxis Ltd,1000473,Contracts (Mainstream),Transport,4101090245,08/03/2024,0.04
Buckinghamshire Council,Adults and Health,Neales Taxis Ltd,1000473,Transport - Day Care - external,Transport,4101090246,08/03/2024,1307.25
Buckinghamshire Council,Adults and Health,Neales Taxis Ltd,1000473,Transport - Day Care - external,Transport,4101090246,08/03/2024,0.03
Buckinghamshire Council,Communities,Neales Taxis Ltd,1000473,Contracts (Mainstream),Transport,4101090247,08/03/2024,2155.8
Buckinghamshire Council,Communities,Neales Taxis Ltd,1000473,Contracts (Mainstream),Transport,4101090248,08/03/2024,1356.6
Buckinghamshire Council,Communities,Neales Taxis Ltd,1000473,Contracts (Mainstream),Transport,4101090249,08/03/2024,1584.4
Buckinghamshire Council,Communities,Neales Taxis Ltd,1000473,Contracts (Mainstream),Transport,4101090250,08/03/2024,4097.13
Buckinghamshire Council,Communities,Neales Taxis Ltd,1000473,Contracts (Mainstream),Transport,4101090251,08/03/2024,4265.82
Buckinghamshire Council,Communities,Neales Taxis Ltd,1000473,Contracts (Mainstream),Transport,4101090252,08/03/2024,3437.2
Buckinghamshire Council,Communities,Neales Taxis Ltd,1000473,Contracts (Mainstream),Transport,4101090253,08/03/2024,1368.8
Buckinghamshire Council,Communities,Neales Taxis Ltd,1000473,Contracts (Mainstream),Transport,4101090254,08/03/2024,5665
Buckinghamshire Council,Communities,Neales Taxis Ltd,1000473,Contracts (Mainstream),Transport,4101090255,08/03/2024,3025.72
Buckinghamshire Council,Communities,Neales Taxis Ltd,1000473,Contracts (Mainstream),Transport,4101090256,08/03/2024,5859
Buckinghamshire Council,Adults and Health,Neales Taxis Ltd,1000473,Transport - Day Care - external,Transport,4101090266,08/03/2024,1139.4
Buckinghamshire Council,Adults and Health,Neales Taxis Ltd,1000473,Transport - Day Care - external,Transport,4101090269,08/03/2024,879
Buckinghamshire Council,Adults and Health,Neales Taxis Ltd,1000473,Transport - Day Care - external,Transport,4101090269,08/03/2024,0.04
Buckinghamshire Council,Communities,Neales Taxis Ltd,1000473,Contracts (Mainstream),Transport,4101090270,08/03/2024,1535.8
Buckinghamshire Council,Communities,Neales Taxis Ltd,1000473,Contracts (Mainstream),Transport,4101090271,08/03/2024,3346.45
Buckinghamshire Council,Communities,Neales Taxis Ltd,1000473,Contracts (Mainstream),Transport,4101090272,08/03/2024,2680
Buckinghamshire Council,Communities,Neales Taxis Ltd,1000473,Contracts (Mainstream),Transport,4101090273,08/03/2024,6591.27
Buckinghamshire Council,Communities,Neales Taxis Ltd,1000473,Contracts (Mainstream),Transport,4101090274,08/03/2024,5306.76
Buckinghamshire Council,Communities,Neales Taxis Ltd,1000473,Contracts (Mainstream),Transport,4101090276,08/03/2024,3111.45
Buckinghamshire Council,Communities,Neales Taxis Ltd,1000473,Contracts (Mainstream),Transport,4101090276,08/03/2024,0.03
Buckinghamshire Council,Adults and Health,Neales Taxis Ltd,1000473,Transport - Day Care - external,Transport,4101090277,08/03/2024,1996.06
Buckinghamshire Council,Adults and Health,Neales Taxis Ltd,1000473,Transport - Day Care - external,Transport,4101090278,08/03/2024,1755.15
Buckinghamshire Council,Adults and Health,Neales Taxis Ltd,1000473,Transport - Day Care - external,Transport,4101090278,08/03/2024,0.03
Buckinghamshire Council,Communities,Neales Taxis Ltd,1000473,Contracts (Mainstream),Transport,4101090303,08/03/2024,3296
Buckinghamshire Council,Communities,Neales Taxis Ltd,1000473,Contracts (Mainstream),Transport,4101090319,08/03/2024,988.35
Buckinghamshire Council,Communities,Neales Taxis Ltd,1000473,Contracts (Mainstream),Transport,4101090319,08/03/2024,0.03
Buckinghamshire Council,Adults and Health,Neales Taxis Ltd,1000473,Transport - Day Care - external,Transport,4101090320,08/03/2024,1470.45
Buckinghamshire Council,Adults and Health,Neales Taxis Ltd,1000473,Transport - Day Care - external,Transport,4101090320,08/03/2024,0.03
Buckinghamshire Council,Adults and Health,Neales Taxis Ltd,1000473,Transport - Day Care - external,Transport,4101090321,08/03/2024,4332.9
Buckinghamshire Council,Communities,Neales Taxis Ltd,1000473,Contracts (Mainstream),Transport,4101090322,08/03/2024,1648
Buckinghamshire Council,Communities,Neales Taxis Ltd,1000473,Contracts (Mainstream),Transport,4101090323,08/03/2024,1768.3
Buckinghamshire Council,Communities,Neales Taxis Ltd,1000473,Contracts (Mainstream),Transport,4100684247,06/03/2024,2407.72
Buckinghamshire Council,Communities,Neales Taxis Ltd,1000473,Contracts (Mainstream),Transport,4100684248,06/03/2024,3248.62
Buckinghamshire Council,Communities,Neales Taxis Ltd,1000473,Contracts (Mainstream),Transport,4100684249,06/03/2024,2482.06
Buckinghamshire Council,Communities,Neales Taxis Ltd,1000473,Contracts (Mainstream),Transport,4100684250,06/03/2024,1565.6
Buckinghamshire Council,Communities,Neales Taxis Ltd,1000473,Contracts (Mainstream),Transport,4100684251,06/03/2024,2733.72
Buckinghamshire Council,Communities,Neales Taxis Ltd,1000473,Contracts (Mainstream),Transport,4100684252,06/03/2024,4892.5
Buckinghamshire Council,Communities,Neales Taxis Ltd,1000473,Contracts (Mainstream),Transport,4100684253,06/03/2024,2398
Buckinghamshire Council,Communities,Neales Taxis Ltd,1000473,Contracts (Mainstream),Transport,4100684254,06/03/2024,3137.6
Buckinghamshire Council,Communities,Neales Taxis Ltd,1000473,Contracts (Mainstream),Transport,4100684255,06/03/2024,2058.8
Buckinghamshire Council,Communities,Neales Taxis Ltd,1000473,Contracts (Mainstream),Transport,4100684256,06/03/2024,1900
Buckinghamshire Council,Communities,Neales Taxis Ltd,1000473,Contracts (Mainstream),Transport,4100684257,06/03/2024,3400
Buckinghamshire Council,Communities,Neales Taxis Ltd,1000473,Contracts (Mainstream),Transport,4100684258,06/03/2024,2935.5
Buckinghamshire Council,Communities,Neales Taxis Ltd,1000473,Contracts (Mainstream),Transport,4100684259,06/03/2024,3033.35
Buckinghamshire Council,Communities,Neales Taxis Ltd,1000473,Contracts (Mainstream),Transport,4100684302,06/03/2024,2600.72
Buckinghamshire Council,Communities,Neales Taxis Ltd,1000473,Contracts (Mainstream),Transport,4100684303,06/03/2024,3992.25
Buckinghamshire Council,Communities,Neales Taxis Ltd,1000473,Contracts (Mainstream),Transport,4100684303,06/03/2024,0.03
Buckinghamshire Council,Communities,Neales Taxis Ltd,1000473,Contracts (Mainstream),Transport,4100684304,06/03/2024,1832.7
Buckinghamshire Council,Communities,Neales Taxis Ltd,1000473,Contracts (Mainstream),Transport,4100684304,06/03/2024,0.04
Buckinghamshire Council,Communities,Neales Taxis Ltd,1000473,Contracts (Mainstream),Transport,4100684305,06/03/2024,1560
Buckinghamshire Council,Communities,Neales Taxis Ltd,1000473,Contracts (Mainstream),Transport,4100684306,06/03/2024,3090
Buckinghamshire Council,Communities,Neales Taxis Ltd,1000473,Contracts (Mainstream),Transport,4100684307,06/03/2024,2472
Buckinghamshire Council,Communities,Neales Taxis Ltd,1000473,Contracts (Mainstream),Transport,4100684308,06/03/2024,1049.57
Buckinghamshire Council,Communities,Neales Taxis Ltd,1000473,Contracts (Mainstream),Transport,4100684309,06/03/2024,4635
Buckinghamshire Council,Communities,Neales Taxis Ltd,1000473,Contracts (Mainstream),Transport,4100684420,06/03/2024,1854
Buckinghamshire Council,Communities,Neales Taxis Ltd,1000473,Contracts (Mainstream),Transport,4100684421,06/03/2024,1964.95
Buckinghamshire Council,Communities,Neales Taxis Ltd,1000473,Contracts (Mainstream),Transport,4100684421,06/03/2024,0.04
Buckinghamshire Council,Communities,Neales Taxis Ltd,1000473,Contracts (Mainstream),Transport,4100684422,06/03/2024,1648
Buckinghamshire Council,Communities,Neales Taxis Ltd,1000473,Contracts (Mainstream),Transport,4100684423,06/03/2024,3090
Buckinghamshire Council,Communities,Neales Taxis Ltd,1000473,Contracts (Mainstream),Transport,4100684424,06/03/2024,2733
Buckinghamshire Council,Communities,Neales Taxis Ltd,1000473,Contracts (Mainstream),Transport,4100684425,06/03/2024,2571.36
Buckinghamshire Council,Communities,Neales Taxis Ltd,1000473,Contracts (Mainstream),Transport,4100684432,06/03/2024,3183.8
Buckinghamshire Council,Communities,Neales Taxis Ltd,1000473,Contracts (Mainstream),Transport,4100684432,06/03/2024,0.04
Buckinghamshire Council,Communities,Neales Taxis Ltd,1000473,Contracts (Mainstream),Transport,4100684433,06/03/2024,2575
Buckinghamshire Council,Communities,Neales Taxis Ltd,1000473,Contracts (Mainstream),Transport,4100684434,06/03/2024,1662.27
Buckinghamshire Council,Communities,Neales Taxis Ltd,1000473,Contracts (Mainstream),Transport,4100684437,06/03/2024,2781
Buckinghamshire Council,Communities,Neales Taxis Ltd,1000473,Contracts (Mainstream),Transport,4100684457,06/03/2024,3000
Buckinghamshire Council,Communities,Neales Taxis Ltd,1000473,Contracts (Mainstream),Transport,4100684458,06/03/2024,2064.07
Buckinghamshire Council,Communities,Neales Taxis Ltd,1000473,Contracts (Mainstream),Transport,4100684459,06/03/2024,1008
Buckinghamshire Council,Communities,Neales Taxis Ltd,1000473,Contracts (Mainstream),Transport,4100684460,06/03/2024,1200
Buckinghamshire Council,Communities,Neales Taxis Ltd,1000473,Contracts (Mainstream),Transport,4100684461,06/03/2024,1126.56
Buckinghamshire Council,Adults and Health,Neales Taxis Ltd,1000473,Transport - Day Care - external,Transport,4100684507,06/03/2024,1053
Buckinghamshire Council,Communities,Neales Taxis Ltd,1000473,Contracts (Mainstream),Transport,4100684508,06/03/2024,2698.31
Buckinghamshire Council,Communities,Neales Taxis Ltd,1000473,Contracts (Mainstream),Transport,4100684509,06/03/2024,3361.1
Buckinghamshire Council,Communities,Neales Taxis Ltd,1000473,Contracts (Mainstream),Transport,4100684510,06/03/2024,3303.72
Buckinghamshire Council,Communities,Neales Taxis Ltd,1000473,Contracts (Mainstream),Transport,4100684511,06/03/2024,1519.25
Buckinghamshire Council,Communities,Neales Taxis Ltd,1000473,Contracts (Mainstream),Transport,4100684512,06/03/2024,1705.65
Buckinghamshire Council,Communities,Neales Taxis Ltd,1000473,Contracts (Mainstream),Transport,4100684512,06/03/2024,0.03
Buckinghamshire Council,Adults and Health,Neales Taxis Ltd,1000473,Transport - Day Care - external,Transport,4100684514,06/03/2024,1490.9
Buckinghamshire Council,Adults and Health,Neales Taxis Ltd,1000473,Transport - Day Care - external,Transport,4100684514,06/03/2024,0.04
Buckinghamshire Council,Communities,Neales Taxis Ltd,1000473,Contracts (Mainstream),Transport,4100684561,06/03/2024,2720.72
Buckinghamshire Council,Communities,Neales Taxis Ltd,1000473,Contracts (Mainstream),Transport,4100684562,06/03/2024,5700
Buckinghamshire Council,Communities,Neales Taxis Ltd,1000473,Contracts (Mainstream),Transport,4100684563,06/03/2024,3326.9
Buckinghamshire Council,Communities,Neales Taxis Ltd,1000473,Contracts (Mainstream),Transport,4100684564,06/03/2024,2676.91
Buckinghamshire Council,Communities,Neales Taxis Ltd,1000473,Contracts (Mainstream),Transport,4100684565,06/03/2024,4403.25
Buckinghamshire Council,Communities,Neales Taxis Ltd,1000473,Contracts (Mainstream),Transport,4100684566,06/03/2024,1585.55
Buckinghamshire Council,Communities,Neales Taxis Ltd,1000473,Contracts (Mainstream),Transport,4100684567,06/03/2024,1720.95
Buckinghamshire Council,Communities,Neales Taxis Ltd,1000473,Contracts (Mainstream),Transport,4100684567,06/03/2024,0.03
Buckinghamshire Council,Communities,Neales Taxis Ltd,1000473,Contracts (Mainstream),Transport,4100684568,06/03/2024,2028.4
Buckinghamshire Council,Communities,Neales Taxis Ltd,1000473,Contracts (Mainstream),Transport,4100684568,06/03/2024,0.04
Buckinghamshire Council,Adults and Health,ABBA CARS,1000476,Transport - Day Care - external,Transport,4101091516,20/03/2024,2030
Buckinghamshire Council,Communities,ABBA CARS,1000476,Contracts (Mainstream),Transport,4101091610,20/03/2024,2195.96
Buckinghamshire Council,Communities,ABBA CARS,1000476,Contracts (Mainstream),Transport,4101091611,20/03/2024,2801.6
Buckinghamshire Council,Children's Services,ABBA CARS,1000476,Transport - Day Care - external,Transport,4101091612,20/03/2024,1711.61
Buckinghamshire Council,Adults and Health,ABBA CARS,1000476,Transport - Day Care - external,Transport,4101091504,15/03/2024,2180
Buckinghamshire Council,Children's Services,ABBA CARS,1000476,Transport - Day Care - external,Transport,4101091505,15/03/2024,1925.56
Buckinghamshire Council,Communities,PREMIUM MINIBUSES & CARS LTD,1000478,Contracts (Mainstream),Transport,4101090840,13/03/2024,1200
Buckinghamshire Council,Communities,PREMIUM MINIBUSES & CARS LTD,1000478,Contracts (Mainstream),Transport,4101090890,13/03/2024,1154.01
Buckinghamshire Council,Communities,PREMIUM MINIBUSES & CARS LTD,1000478,Contracts (Mainstream),Transport,4101090891,13/03/2024,2827.61
Buckinghamshire Council,Communities,PREMIUM MINIBUSES & CARS LTD,1000478,Contracts (Mainstream),Transport,4101090892,13/03/2024,2119.68
Buckinghamshire Council,Communities,PREMIUM MINIBUSES & CARS LTD,1000478,Contracts (Mainstream),Transport,4101090893,13/03/2024,2655.82
Buckinghamshire Council,Communities,PREMIUM MINIBUSES & CARS LTD,1000478,Contracts (Mainstream),Transport,4101090894,13/03/2024,1529
Buckinghamshire Council,Communities,PREMIUM MINIBUSES & CARS LTD,1000478,Contracts (Mainstream),Transport,4101090895,13/03/2024,1003.42
Buckinghamshire Council,Communities,PREMIUM MINIBUSES & CARS LTD,1000478,Contracts (Mainstream),Transport,4101090896,13/03/2024,1792.7
Buckinghamshire Council,Communities,PREMIUM MINIBUSES & CARS LTD,1000478,Contracts (Mainstream),Transport,4101090897,13/03/2024,1805.7
Buckinghamshire Council,Communities,PREMIUM MINIBUSES & CARS LTD,1000478,Contracts (Mainstream),Transport,4101090898,13/03/2024,1417
Buckinghamshire Council,Communities,PREMIUM MINIBUSES & CARS LTD,1000478,Contracts (Mainstream),Transport,4101090938,13/03/2024,648.7
Buckinghamshire Council,Communities,PREMIUM MINIBUSES & CARS LTD,1000478,Contracts (Mainstream),Transport,4101090947,13/03/2024,1295.36
Buckinghamshire Council,Communities,PREMIUM MINIBUSES & CARS LTD,1000478,Contracts (Mainstream),Transport,4101090952,13/03/2024,1817.14
Buckinghamshire Council,Communities,PREMIUM MINIBUSES & CARS LTD,1000478,Contracts (Mainstream),Transport,4101090954,13/03/2024,2006.84
Buckinghamshire Council,Communities,PREMIUM MINIBUSES & CARS LTD,1000478,Contracts (Mainstream),Transport,4101090955,13/03/2024,2083.5
Buckinghamshire Council,Communities,PREMIUM MINIBUSES & CARS LTD,1000478,Contracts (Mainstream),Transport,4101090956,13/03/2024,2098.95
Buckinghamshire Council,Communities,PREMIUM MINIBUSES & CARS LTD,1000478,Contracts (Mainstream),Transport,4101090958,13/03/2024,2344.3
Buckinghamshire Council,Communities,PREMIUM MINIBUSES & CARS LTD,1000478,Contracts (Mainstream),Transport,4101090961,13/03/2024,2639.1
Buckinghamshire Council,Communities,PREMIUM MINIBUSES & CARS LTD,1000478,Contracts (Mainstream),Transport,4101090963,13/03/2024,2795
Buckinghamshire Council,Adults and Health,PREMIUM MINIBUSES & CARS LTD,1000478,Transport - Day Care - external,Transport,4101090966,13/03/2024,2999.52
Buckinghamshire Council,Communities,PREMIUM MINIBUSES & CARS LTD,1000478,Contracts (Mainstream),Transport,4101090967,13/03/2024,3055.8
Buckinghamshire Council,Communities,PREMIUM MINIBUSES & CARS LTD,1000478,Contracts (Mainstream),Transport,4101090968,13/03/2024,3058
Buckinghamshire Council,Communities,PREMIUM MINIBUSES & CARS LTD,1000478,Contracts (Mainstream),Transport,4101090969,13/03/2024,3701.86
Buckinghamshire Council,Communities,PREMIUM MINIBUSES & CARS LTD,1000478,Contracts (Mainstream),Transport,4101090980,13/03/2024,1635
Buckinghamshire Council,Communities,PREMIUM MINIBUSES & CARS LTD,1000478,Contracts (Mainstream),Transport,4101090981,13/03/2024,2398
Buckinghamshire Council,Communities,PREMIUM MINIBUSES & CARS LTD,1000478,Contracts (Mainstream),Transport,4101093860,27/03/2024,2224
Buckinghamshire Council,Adults and Health,PREMIUM MINIBUSES & CARS LTD,1000478,Transport - Day Care - external,Transport,4101093898,27/03/2024,1058.4
Buckinghamshire Council,Adults and Health,PREMIUM MINIBUSES & CARS LTD,1000478,Transport - Day Care - external,Transport,4101093899,27/03/2024,2490.6
Buckinghamshire Council,Communities,PREMIUM MINIBUSES & CARS LTD,1000478,Contracts (Mainstream),Transport,4101093921,27/03/2024,1276.8
Buckinghamshire Council,Adults and Health,PREMIUM MINIBUSES & CARS LTD,1000478,Transport - Day Care - external,Transport,4101093922,27/03/2024,5880
Buckinghamshire Council,Communities,PREMIUM MINIBUSES & CARS LTD,1000478,Contracts (Mainstream),Transport,4101093981,27/03/2024,1280
Buckinghamshire Council,Communities,PREMIUM MINIBUSES & CARS LTD,1000478,Contracts (Mainstream),Transport,4101093984,27/03/2024,1823.68
Buckinghamshire Council,Communities,PREMIUM MINIBUSES & CARS LTD,1000478,Contracts (Mainstream),Transport,4101093990,27/03/2024,2822.4
Buckinghamshire Council,Adults and Health,PREMIUM MINIBUSES & CARS LTD,1000478,Transport - Day Care - external,Transport,4101093991,27/03/2024,2888
Buckinghamshire Council,Communities,PREMIUM MINIBUSES & CARS LTD,1000478,Contracts (Mainstream),Transport,4100684294,06/03/2024,1596
Buckinghamshire Council,Adults and Health,PREMIUM MINIBUSES & CARS LTD,1000478,Transport - Day Care - external,Transport,4100684296,06/03/2024,1848
Buckinghamshire Council,Communities,PREMIUM MINIBUSES & CARS LTD,1000478,Contracts (Mainstream),Transport,4100684297,06/03/2024,2088.86
Buckinghamshire Council,Adults and Health,PREMIUM MINIBUSES & CARS LTD,1000478,Transport - Day Care - external,Transport,4100684298,06/03/2024,2609.2
Buckinghamshire Council,Communities,PREMIUM MINIBUSES & CARS LTD,1000478,Contracts (Mainstream),Transport,4100684299,06/03/2024,1896.2
Buckinghamshire Council,Communities,PREMIUM MINIBUSES & CARS LTD,1000478,Contracts (Mainstream),Transport,4100684300,06/03/2024,2279.6
Buckinghamshire Council,Adults and Health,PREMIUM MINIBUSES & CARS LTD,1000478,Transport - Day Care - external,Transport,4100684301,06/03/2024,1108.8
Buckinghamshire Council,Communities,PREMIUM MINIBUSES & CARS LTD,1000478,Contracts (Mainstream),Transport,4100684358,06/03/2024,1824.4
Buckinghamshire Council,Communities,PREMIUM MINIBUSES & CARS LTD,1000478,Contracts (Mainstream),Transport,4100684361,06/03/2024,2222.81
Buckinghamshire Council,Communities,PREMIUM MINIBUSES & CARS LTD,1000478,Contracts (Mainstream),Transport,4100684363,06/03/2024,2417.37
Buckinghamshire Council,Communities,PREMIUM MINIBUSES & CARS LTD,1000478,Contracts (Mainstream),Transport,4100684364,06/03/2024,3120.75
Buckinghamshire Council,Communities,PREMIUM MINIBUSES & CARS LTD,1000478,Contracts (Mainstream),Transport,4100684369,06/03/2024,2289
Buckinghamshire Council,Adults and Health,PREMIUM MINIBUSES & CARS LTD,1000478,Transport - Day Care - external,Transport,4100684370,06/03/2024,6160
Buckinghamshire Council,Communities,PREMIUM MINIBUSES & CARS LTD,1000478,Contracts (Mainstream),Transport,4100684426,06/03/2024,4085
Buckinghamshire Council,Communities,PREMIUM MINIBUSES & CARS LTD,1000478,Contracts (Mainstream),Transport,4100684427,06/03/2024,2888
Buckinghamshire Council,Communities,PREMIUM MINIBUSES & CARS LTD,1000478,Contracts (Mainstream),Transport,4100684428,06/03/2024,3512.72
Buckinghamshire Council,Communities,PREMIUM MINIBUSES & CARS LTD,1000478,Contracts (Mainstream),Transport,4100684429,06/03/2024,2620.1
Buckinghamshire Council,Communities,PREMIUM MINIBUSES & CARS LTD,1000478,Contracts (Mainstream),Transport,4100684430,06/03/2024,3418.48
Buckinghamshire Council,Communities,PREMIUM MINIBUSES & CARS LTD,1000478,Contracts (Mainstream),Transport,4100684438,06/03/2024,2279.43
Buckinghamshire Council,Adults and Health,PREMIUM MINIBUSES & CARS LTD,1000478,Transport - Day Care - external,Transport,4100684454,06/03/2024,3080
Buckinghamshire Council,Adults and Health,PREMIUM MINIBUSES & CARS LTD,1000478,Transport - Day Care - external,Transport,4100684455,06/03/2024,2976
Buckinghamshire Council,Communities,PREMIUM MINIBUSES & CARS LTD,1000478,Contracts (Mainstream),Transport,4100684492,06/03/2024,1000
Buckinghamshire Council,Communities,PREMIUM MINIBUSES & CARS LTD,1000478,Contracts (Mainstream),Transport,4100684493,06/03/2024,2391.53
Buckinghamshire Council,Communities,PREMIUM MINIBUSES & CARS LTD,1000478,Contracts (Mainstream),Transport,4100684494,06/03/2024,3780
Buckinghamshire Council,Communities,PREMIUM MINIBUSES & CARS LTD,1000478,Contracts (Mainstream),Transport,4100684495,06/03/2024,2090
Buckinghamshire Council,Communities,PREMIUM MINIBUSES & CARS LTD,1000478,Contracts (Mainstream),Transport,4100684496,06/03/2024,4425.86
Buckinghamshire Council,Communities,PREMIUM MINIBUSES & CARS LTD,1000478,Contracts (Mainstream),Transport,4100684497,06/03/2024,2639.67
Buckinghamshire Council,Communities,PREMIUM MINIBUSES & CARS LTD,1000478,Contracts (Mainstream),Transport,4100684498,06/03/2024,1824.95
Buckinghamshire Council,Communities,PREMIUM MINIBUSES & CARS LTD,1000478,Contracts (Mainstream),Transport,4100684499,06/03/2024,3134.43
Buckinghamshire Council,Communities,PREMIUM MINIBUSES & CARS LTD,1000478,Contracts (Mainstream),Transport,4100684500,06/03/2024,3476.62
Buckinghamshire Council,Communities,PREMIUM MINIBUSES & CARS LTD,1000478,Contracts (Mainstream),Transport,4100684501,06/03/2024,3382
Buckinghamshire Council,Communities,PREMIUM MINIBUSES & CARS LTD,1000478,Contracts (Mainstream),Transport,4100684502,06/03/2024,3322.91
Buckinghamshire Council,Communities,PREMIUM MINIBUSES & CARS LTD,1000478,Contracts (Mainstream),Transport,4100684503,06/03/2024,3142.6
Buckinghamshire Council,Communities,PREMIUM MINIBUSES & CARS LTD,1000478,Contracts (Mainstream),Transport,4100684504,06/03/2024,2752.91
Buckinghamshire Council,Communities,PREMIUM MINIBUSES & CARS LTD,1000478,Contracts (Mainstream),Transport,4100684505,06/03/2024,2619.53
Buckinghamshire Council,Communities,PREMIUM MINIBUSES & CARS LTD,1000478,Contracts (Mainstream),Transport,4100684622,06/03/2024,2639.1
Buckinghamshire Council,Communities,PREMIUM MINIBUSES & CARS LTD,1000478,Contracts (Mainstream),Transport,4100684627,06/03/2024,3036.77
Buckinghamshire Council,Adults and Health,PREMIUM MINIBUSES & CARS LTD,1000478,Transport - Day Care - external,Transport,4100684456,08/03/2024,954
Buckinghamshire Council,Communities,PREMIUM MINIBUSES & CARS LTD,1000478,Contracts (Mainstream),Transport,4100684744,08/03/2024,1797.8
Buckinghamshire Council,Communities,PREMIUM MINIBUSES & CARS LTD,1000478,Contracts (Mainstream),Transport,4100684788,08/03/2024,3679.73
Buckinghamshire Council,Communities,PREMIUM MINIBUSES & CARS LTD,1000478,Contracts (Mainstream),Transport,4100684789,08/03/2024,1999
Buckinghamshire Council,Communities,PREMIUM MINIBUSES & CARS LTD,1000478,Contracts (Mainstream),Transport,4100684790,08/03/2024,2847.91
Buckinghamshire Council,Communities,PREMIUM MINIBUSES & CARS LTD,1000478,Contracts (Mainstream),Transport,4100684791,08/03/2024,2393.05
Buckinghamshire Council,Communities,PREMIUM MINIBUSES & CARS LTD,1000478,Contracts (Mainstream),Transport,4100684792,08/03/2024,3268
Buckinghamshire Council,Communities,PREMIUM MINIBUSES & CARS LTD,1000478,Contracts (Mainstream),Transport,4100684793,08/03/2024,2355.24
Buckinghamshire Council,Communities,PREMIUM MINIBUSES & CARS LTD,1000478,Contracts (Mainstream),Transport,4101090107,08/03/2024,2565
Buckinghamshire Council,Communities,PREMIUM MINIBUSES & CARS LTD,1000478,Contracts (Mainstream),Transport,4101090108,08/03/2024,1915.2
Buckinghamshire Council,Communities,PREMIUM MINIBUSES & CARS LTD,1000478,Contracts (Mainstream),Transport,4101090109,08/03/2024,2640.43
Buckinghamshire Council,Adults and Health,PREMIUM MINIBUSES & CARS LTD,1000478,Transport - Day Care - external,Transport,4101094052,28/03/2024,901
Buckinghamshire Council,Communities,PREMIUM MINIBUSES & CARS LTD,1000478,Contracts (Mainstream),Transport,4101094053,28/03/2024,960
Buckinghamshire Council,Communities,PREMIUM MINIBUSES & CARS LTD,1000478,Contracts (Mainstream),Transport,4101094054,28/03/2024,2162.29
Buckinghamshire Council,Communities,PREMIUM MINIBUSES & CARS LTD,1000478,Contracts (Mainstream),Transport,4101094055,28/03/2024,1532.16
Buckinghamshire Council,Adults and Health,PREMIUM MINIBUSES & CARS LTD,1000478,Transport - Day Care - external,Transport,4101094056,28/03/2024,1764
Buckinghamshire Council,Communities,PREMIUM MINIBUSES & CARS LTD,1000478,Contracts (Mainstream),Transport,4101094099,28/03/2024,2628
Buckinghamshire Council,Communities,PREMIUM MINIBUSES & CARS LTD,1000478,Contracts (Mainstream),Transport,4101094100,28/03/2024,3727.04
Buckinghamshire Council,Communities,PREMIUM MINIBUSES & CARS LTD,1000478,Contracts (Mainstream),Transport,4101094101,28/03/2024,660
Buckinghamshire Council,Communities,PREMIUM MINIBUSES & CARS LTD,1000478,Contracts (Mainstream),Transport,4101094102,28/03/2024,1536.8
Buckinghamshire Council,Communities,PREMIUM MINIBUSES & CARS LTD,1000478,Contracts (Mainstream),Transport,4101094103,28/03/2024,887.7
Buckinghamshire Council,Communities,PREMIUM MINIBUSES & CARS LTD,1000478,Contracts (Mainstream),Transport,4101094152,28/03/2024,3098.72
Buckinghamshire Council,Communities,PREMIUM MINIBUSES & CARS LTD,1000478,Contracts (Mainstream),Transport,4101094153,28/03/2024,800
Buckinghamshire Council,Communities,PREMIUM MINIBUSES & CARS LTD,1000478,Contracts (Mainstream),Transport,4101094154,28/03/2024,2205.92
Buckinghamshire Council,Communities,PREMIUM MINIBUSES & CARS LTD,1000478,Contracts (Mainstream),Transport,4101094155,28/03/2024,1438.24
Buckinghamshire Council,Communities,PREMIUM MINIBUSES & CARS LTD,1000478,Contracts (Mainstream),Transport,4101094263,28/03/2024,2160
Buckinghamshire Council,Communities,PREMIUM MINIBUSES & CARS LTD,1000478,Contracts (Mainstream),Transport,4101094264,28/03/2024,2646.4
Buckinghamshire Council,Communities,PREMIUM MINIBUSES & CARS LTD,1000478,Contracts (Mainstream),Transport,4101094265,28/03/2024,2798.24
Buckinghamshire Council,Communities,PREMIUM MINIBUSES & CARS LTD,1000478,Contracts (Mainstream),Transport,4101094266,28/03/2024,1983.36
Buckinghamshire Council,Communities,PREMIUM MINIBUSES & CARS LTD,1000478,Contracts (Mainstream),Transport,4101094267,28/03/2024,2752
Buckinghamshire Council,Communities,PREMIUM MINIBUSES & CARS LTD,1000478,Contracts (Mainstream),Transport,4101094268,28/03/2024,2015.2
Buckinghamshire Council,Communities,PREMIUM MINIBUSES & CARS LTD,1000478,Contracts (Mainstream),Transport,4101094269,28/03/2024,2223.52
Buckinghamshire Council,Communities,PREMIUM MINIBUSES & CARS LTD,1000478,Contracts (Mainstream),Transport,4101094270,28/03/2024,2927.68
Buckinghamshire Council,Communities,PREMIUM MINIBUSES & CARS LTD,1000478,Contracts (Mainstream),Transport,4101094275,28/03/2024,1759.04
Buckinghamshire Council,Communities,PREMIUM MINIBUSES & CARS LTD,1000478,Contracts (Mainstream),Transport,4101094276,28/03/2024,2639.52
Buckinghamshire Council,Communities,PREMIUM MINIBUSES & CARS LTD,1000478,Contracts (Mainstream),Transport,4101094277,28/03/2024,2958.08
Buckinghamshire Council,Communities,PREMIUM MINIBUSES & CARS LTD,1000478,Contracts (Mainstream),Transport,4101094278,28/03/2024,2557.28
Buckinghamshire Council,Communities,PREMIUM MINIBUSES & CARS LTD,1000478,Contracts (Mainstream),Transport,4101094279,28/03/2024,2318.24
Buckinghamshire Council,Communities,PREMIUM MINIBUSES & CARS LTD,1000478,Contracts (Mainstream),Transport,4101094280,28/03/2024,2222.88
Buckinghamshire Council,Communities,PREMIUM MINIBUSES & CARS LTD,1000478,Contracts (Mainstream),Transport,4101094281,28/03/2024,2013.92
Buckinghamshire Council,Communities,PREMIUM MINIBUSES & CARS LTD,1000478,Contracts (Mainstream),Transport,4101094282,28/03/2024,2398.24
Buckinghamshire Council,Communities,PREMIUM MINIBUSES & CARS LTD,1000478,Contracts (Mainstream),Transport,4101094313,28/03/2024,1871.84
Buckinghamshire Council,Communities,PREMIUM MINIBUSES & CARS LTD,1000478,Contracts (Mainstream),Transport,4101094314,28/03/2024,1760
Buckinghamshire Council,Communities,PREMIUM MINIBUSES & CARS LTD,1000478,Contracts (Mainstream),Transport,4101094315,28/03/2024,2878.72
Buckinghamshire Council,Communities,PREMIUM MINIBUSES & CARS LTD,1000478,Contracts (Mainstream),Transport,4101094316,28/03/2024,2848
Buckinghamshire Council,Communities,PREMIUM MINIBUSES & CARS LTD,1000478,Contracts (Mainstream),Transport,4101094317,28/03/2024,1596.8
Buckinghamshire Council,Communities,PREMIUM MINIBUSES & CARS LTD,1000478,Contracts (Mainstream),Transport,4101094318,28/03/2024,2560
Buckinghamshire Council,Communities,PREMIUM MINIBUSES & CARS LTD,1000478,Contracts (Mainstream),Transport,4101094319,28/03/2024,2432
Buckinghamshire Council,Communities,PREMIUM MINIBUSES & CARS LTD,1000478,Contracts (Mainstream),Transport,4101094320,28/03/2024,3200
Buckinghamshire Council,Communities,PREMIUM MINIBUSES & CARS LTD,1000478,Contracts (Mainstream),Transport,4101094321,28/03/2024,3197.92
Buckinghamshire Council,Communities,PREMIUM MINIBUSES & CARS LTD,1000478,Contracts (Mainstream),Transport,4101094322,28/03/2024,2958.88
Buckinghamshire Council,Communities,PREMIUM MINIBUSES & CARS LTD,1000478,Contracts (Mainstream),Transport,4101094323,28/03/2024,1919.52
Buckinghamshire Council,Communities,PREMIUM MINIBUSES & CARS LTD,1000478,Contracts (Mainstream),Transport,4101094324,28/03/2024,1459.52
Buckinghamshire Council,Communities,PREMIUM MINIBUSES & CARS LTD,1000478,Contracts (Mainstream),Transport,4101094325,28/03/2024,2206.4
Buckinghamshire Council,Children's Services,INDUSTRIAL PIPE SERVS(2003)LTD,1000494,Construction - Building Work,Capital - Expenditure -Controllable,7001537252,08/03/2024,15124.41
Buckinghamshire Council,"Planning, Growth & Sustainability",INDUSTRIAL PIPE SERVS(2003)LTD,1000494,Urgent Repairs & Maintenance,Premises,7003188578,27/03/2024,845
Buckinghamshire Council,Adults and Health,Bucks Vision,1000512,Payments To Contractors,Supplies & Services,4101091646,15/03/2024,24542.33
Buckinghamshire Council,"Planning, Growth & Sustainability",Buckinghamshire College Group,1000534,Project Funding,Supplies & Services,4101093053,22/03/2024,16640
Buckinghamshire Council,Deputy Chief Executive,Buckinghamshire College Group,1000534,Grants to Voluntary Bodies,Transfer Payments,4100684555,06/03/2024,6421.91
Buckinghamshire Council,"Planning, Growth & Sustainability",KEE SERVICES LTD,1000542,Buy Back Contracts,Premises,7003185580,20/03/2024,556.25
Buckinghamshire Council,"Planning, Growth & Sustainability",KEE SERVICES LTD,1000542,Urgent Repairs & Maintenance,Premises,7003175744,06/03/2024,1429
Buckinghamshire Council,Children's Services,GILBERTS OF CHESHAM,1000556,Sec 20/31: Transport,Transfer Payments,4101090921,13/03/2024,1040
Buckinghamshire Council,Communities,GILBERTS OF CHESHAM,1000556,Contracts (Mainstream),Transport,4101091668,15/03/2024,2940
Buckinghamshire Council,Communities,GILBERTS OF CHESHAM,1000556,Contracts (Mainstream),Transport,4100684199,08/03/2024,1154.92
Buckinghamshire Council,Communities,GILBERTS OF CHESHAM,1000556,Contracts (Mainstream),Transport,4100684200,08/03/2024,3780
Buckinghamshire Council,Communities,GILBERTS OF CHESHAM,1000556,Contracts (Mainstream),Transport,4100684201,08/03/2024,1584
Buckinghamshire Council,Communities,GILBERTS OF CHESHAM,1000556,Contracts (Mainstream),Transport,4100684202,08/03/2024,1232
Buckinghamshire Council,Communities,GILBERTS OF CHESHAM,1000556,Contracts (Mainstream),Transport,4100684203,08/03/2024,2776.25
Buckinghamshire Council,Communities,GILBERTS OF CHESHAM,1000556,Contracts (Mainstream),Transport,4100684204,08/03/2024,1483.2
Buckinghamshire Council,Communities,GILBERTS OF CHESHAM,1000556,Contracts (Mainstream),Transport,4100684205,08/03/2024,2224.8
Buckinghamshire Council,Communities,GILBERTS OF CHESHAM,1000556,Contracts (Mainstream),Transport,4100684206,08/03/2024,3500.16
Buckinghamshire Council,Communities,GILBERTS OF CHESHAM,1000556,Contracts (Mainstream),Transport,4100684207,08/03/2024,1153.6
Buckinghamshire Council,Communities,GILBERTS OF CHESHAM,1000556,Contracts (Mainstream),Transport,4100684208,08/03/2024,1927.2
Buckinghamshire Council,Communities,GILBERTS OF CHESHAM,1000556,Contracts (Mainstream),Transport,4100684209,08/03/2024,2550.35
Buckinghamshire Council,Communities,GILBERTS OF CHESHAM,1000556,Contracts (Mainstream),Transport,4100684212,08/03/2024,2200
Buckinghamshire Council,Communities,GILBERTS OF CHESHAM,1000556,Contracts (Mainstream),Transport,4100684213,08/03/2024,2128
